{"text_format":"1","workbook":"xlsx","n_sheets":22,"sheets":["Table1A List of required stocks","Table1B Planning of sampling ","Table1C Sampling intensity ","Table1D Recreational Fisheries","Table1E Anadromous catadromous","Table1F Incidental by catch","Table1G List of research survey","Table1H Research survey data","Table2A Fishing activity variab","Table3A  Pop segment fisheries","Table3B Pop segments aquacultur","Table3C Pop segments processin","Table4A Sampling plan descripti","Table4B Sampling frame descrip","Table4C Data on the fisheries","Table4D Landing locations","Table5A Quality assurance frame","Table5B Quality assurance frame","Table6A_Data_availability","Table7A_Planned Regional_coord","Table7B_Follow up of Recommenda","Table7C_Bi- and multilateral "],"not_rendered":{"charts":0,"images":0,"macros":0,"external_links":5,"defined_names":292,"comments":0,"pivot_tables":0},"unopened":[],"bounds":{"document_bytes":16777216,"sheet_cells":100000,"rows_first":2000,"rows_last":500,"rows_between":2000,"halvings":0,"cell_chars":16384,"cell_head_chars":4096},"cells_cut":0,"cells_raw":0,"read":"whole","date_system":"1900"}

{"sheet":"Table1A List of required stocks","index":0,"n_rows":49,"n_cols":13,"rows_kept":49,"cut":false,"hidden":false,"merged":[[4,11,30,11],[33,11,46,11]]}
["Table1A: List of required stocks"]
[null,null,null,null,null,null,null,null,null,null,null,"WP  years","2017-2019"]
[null,null,null,null,null,null,null,null,null,null,null,"AR year",2019]
["MS","Reference years","Species","Region","RFMO/RFO/IO","Area / Stock","Selected for sampling  (Y/N)","Average landings in the reference years (tons)","\nEU TAC (if any)\n(%)","Share (%) in EU landings","Threshold  (Y/N)","Comments","Changes in species landings"]
["POL","2013-2015","Anguilla anguilla","Baltic Sea","ICES","22-32","Y","<200",null,8,"N","Shares in EU landings (column J) are based on the EU landings most recently uploaded by MS to the Regional Data Base (FishFrame) hosted by the ICES, which proved to be most reliable data source. Other available potential data source (e.g. FIDES, EUROSTAT) proved to be not reliable at the level of resolution required (stocks and/or areas)."]
["POL","2013-2015","Clupea harengus","Baltic Sea","ICES","22-24","Y",2720,13,null,"N",null,-0.6]
["POL","2013-2015","Clupea harengus","Baltic Sea","ICES","25-29","Y",27250,25,null,"N",null,0.45]
["POL","2013-2015","Coregonus lavaretus","Baltic Sea","ICES","IIId","N","<200",null,3,"Y"]
["POL","2013-2015","Coregonus albula","Baltic Sea","ICES","22-32","N","None",null,"None","Y"]
["POL","2013-2015","Gadus morhua","Baltic Sea","ICES","22-24","Y",780,12,null,"N",null,0.3]
["POL","2013-2015","Gadus morhua","Baltic Sea","ICES","25-32","Y",11950,26,null,"N",null,-0.72]
["POL","2013-2015","Limanda limanda","Baltic Sea","ICES","22-32","N","None",null,"None","Y"]
["POL","2013-2015","Perca fluviatilis","Baltic Sea","ICES","IIId","Y",990,null,26,"N",null,0.12]
["POL","2013-2015","Platichthys flesus","Baltic Sea","ICES","22-32","Y",11250,null,60,"N",null,0.49]
["POL","2013-2015","Pleuronectes platessa","Baltic Sea","ICES","22-32","Y","<200",15,null,"N"]
["POL","2013-2015","Psetta maxima","Baltic Sea","ICES","22-32","Y","<200",null,20,"N"]
["POL","2013-2015","Salmo salar","Baltic Sea","ICES","22-31","Y","<200",6,null,"N"]
["POL","2013-2015","Salmo trutta","Baltic Sea","ICES","22-32","Y","<200",null,54,"N"]
["POL","2013-2015","Sander lucioperca","Baltic Sea","ICES","IIId","Y",320,null,29,"N",null,0.5]
["POL","2013-2015","Scophthalmus rhombus","Baltic Sea","ICES","22-32","N","None",null,"None","Y"]
["POL","2013-2015","Sprattus sprattus","Baltic Sea","ICES","22-32","Y",67600,29,null,"N",null,0.1]
[]
["POL","2013-2015","Brosme brosme","North Sea and Eastern Arctic","ICES","I, II","N","<200","None",2,"Y"]
["POL","2013-2015","Clupea harengus","North Sea and Eastern Arctic","ICES","I, II","N","None",1.7,"None","Y"]
["POL","2013-2015","Gadus morhua","North Sea and Eastern Arctic","ICES","I, II","Y",5100,8.1999999999999993,14,"N",null,-0.48]
["POL","2013-2015","Melanogrammus aeglefinus","North Sea and Eastern Arctic","ICES","I, II","Y",280,"None",15,"N",null,-0.68]
["POL","2013-2015","Micromesistius potassou","North Sea and Eastern Arctic","ICES","I, II","N","None","None","None","Y"]
["POL","2013-2015","Pollachius virens","North Sea and Eastern Arctic","ICES","I, II","Y",380,"None",21,"N",null,-0.88]
["POL","2013-2015","Reinhardtius hippoglossoides","North Sea and Eastern Arctic","ICES","I, II","N","<200","None",4,"Y"]
["POL","2013-2015","Scomber scombrus","North Sea and Eastern Arctic","ICES","II ","N","None","None","None","Y"]
["POL","2013-2015","Sebastes mentella","North Sea and Eastern Arctic","ICES","I, II","N","<200","None",2,"Y"]
["POL","2013-2015","Sebastes marinus","North Sea and Eastern Arctic","ICES","I, II","N","<200","None",null,"Y","Average landing 16 t (as a by-catch only). EU Landing data not available"]
[]
["POL","2013-2015","Brachydeuterus auritus","Other regions","CECAF","34.3.1","N","<200",null,"N.A.","Y","No reliable data source on EU landings available at present (see comments above).  Selection for sampling stemming from international obligations and based on the Multi-lateral agreement for biological data collection of pelagic fisheries in CECAF waters and on the Sampling Protocol -  “Biological Data Collection of pelagic fisheries in CECAF waters in compliance with the DCF, version 28/04/2011”. ( http://dcf.mir.gdynia.pl/?page_id=367 )"]
["POL","2013-2015","Dentex spp.","Other regions","CECAF","34.3.1","N","<200",null,"N.A.","Y"]
["POL","2013-2015","Engraulis encrasicolus","Other regions","CECAF","34.1.3","N","<200",null,"N.A.","Y"]
["POL","2013-2015","Merluccius merluccius","Other regions","CECAF","34.1.3","N","<200",null,"N.A.","Y"]
["POL","2013-2015","Merluccius merluccius","Other regions","CECAF","34.3.1","N","<200",null,"N.A.","Y"]
["POL","2013-2015","Merluccius senegalensis","Other regions","CECAF","34.1.3","N","None",null,"N.A.","Y"]
["POL","2013-2015","Sardinella aurita","Other regions","CECAF","34.1.3","Y",2730,null,"N.A.","N"]
["POL","2013-2015","Sardinella aurita","Other regions","CECAF","34.3.1","Y",3500,null,"N.A.","N"]
["POL","2013-2015","Sardina pilchardus","Other regions","CECAF","34.1.3","Y",690,null,"N.A.","N"]
["POL","2013-2015","Scomber spp.","Other regions","CECAF","34.1.3","Y",3241,null,"N.A.","N"]
["POL","2013-2015","Scomber spp.","Other regions","CECAF","34.3.1","Y",570,null,"N.A.","N"]
["POL","2013-2015","Sparus spp.","Other regions","CECAF","34.1.3","N","None",null,"N.A.","Y"]
["POL","2013-2015","Trachurus trachurus","Other regions","CECAF","34.1.3","Y",11230,null,"N.A.","N"]
["POL","2013-2015","Trachurus trachurus","Other regions","CECAF","34.3.1","Y",3380,null,"N.A.","N"]
[]
["POL","2013-2015","Trachurus murphyi","Other regions","SPRFMO","SPRFMO Convention Area","Y","None",30,"None","N","Selection for sampling stemming from international obligations and based on Sampling protocol \"Manual for scientific observers on board EU pelagic trawlers in the Pacific\"  in accordance with the SPRFMO Data Standards (Most recent Data Standards available at: https://www.sprfmo.int/assets/Fisheries/Conservation-and-Management-Measures/CMM-4.02-Data-Standards-2016-4Mar2016.pdf or at: http://dcf.mir.gdynia.pl/?page_id=367 )"]

{"sheet":"Table1B Planning of sampling ","index":1,"n_rows":32,"n_cols":25,"rows_kept":32,"cut":false,"hidden":false,"merged":[[5,21,5,23],[3,0,4,0],[2,17,2,23],[1,17,1,23],[3,6,3,8],[3,1,4,1],[3,2,4,2],[3,3,4,3],[3,4,4,4],[3,5,4,5],[3,21,3,23],[3,9,3,11],[3,12,3,14],[3,15,3,17],[3,18,3,20]]}
["Table 1B: Planning of sampling for biological variables"]
[null,null,null,null,null,null,null,null,null,null,null,null,null,null,null,null,null,"WP years",null,null,null,null,null,null,"2017-2019"]
[null,null,null,null,null,null,null,null,null,null,null,null,null,null,null,null,null,"AR  year ",null,null,null,null,null,null,"2019"]
["MS","Species","Region","RFMO/RFO/IO","Area / Stock","Frequency","Length",null,null,"Age",null,null,"Weight",null,null,"Sex ratio",null,null,"Sexual maturity",null,null,"Fecundity",null,null,"Comments"]
[null,null,null,null,null,null,2017,2018,2019,2017,2018,2019,2017,2018,2019,2017,2018,2019,2017,2018,2019,2017,2018,2019]
["POL","Anguilla anguilla","Baltic Sea","ICES","22-32","A","X","X","X","X","X","X","X","X","X","X","X","X"]
["POL","Clupea harengus","Baltic Sea","ICES","22-24","Q","X","X","X","X","X","X","X","X","X","X","X","X","X","X","X"]
["POL","Clupea harengus","Baltic Sea","ICES","25-29","Q","X","X","X","X","X","X","X","X","X","X","X","X","X","X","X"]
["POL","Gadus morhua","Baltic Sea","ICES","22-24","Q","X","X","X","X","X","X","X","X","X","X","X","X","X","X","X"]
["POL","Gadus morhua","Baltic Sea","ICES","25-32","Q","X","X","X","X","X","X","X","X","X","X","X","X","X","X","X"]
["POL","Perca fluviatilis","Baltic Sea","ICES","IIId","A","X","X","X","X","X","X","X","X","X","X","X","X","X","X","X"]
["POL","Platichthys flesus","Baltic Sea","ICES","22-32","Q","X","X","X","X","X","X","X","X","X","X","X","X","X","X","X"]
["POL","Pleuronectes platessa","Baltic Sea","ICES","22-32","Q","X","X","X","X","X","X","X","X","X","X","X","X","X","X","X"]
["POL","Psetta maxima","Baltic Sea","ICES","22-32","Q","X","X","X","X","X","X","X","X","X","X","X","X","X","X","X"]
["POL","Salmo salar","Baltic Sea","ICES","22-31","A","X","X","X","X","X","X","X","X","X","X","X","X"]
["POL","Salmo trutta","Baltic Sea","ICES","22-32","A","X","X","X","X","X","X","X","X","X","X","X","X"]
["POL","Sander lucioperca","Baltic Sea","ICES","IIId","A","X","X","X","X","X","X","X","X","X","X","X","X","X","X","X"]
["POL","Sprattus sprattus","Baltic Sea","ICES","22-32","Q","X","X","X","X","X","X","X","X","X","X","X","X","X","X","X"]
[]
["POL","Gadus morhua","North Sea and Eastern Arctic","ICES","I, II","A","X","X","X","X","X","X","X","X","X","X","X","X","X","X","X"]
["POL","Melanogrammus aeglefinus","North Sea and Eastern Arctic","ICES","I, II","A","X","X","X","X","X","X","X","X","X","X","X","X","X","X","X"]
["POL","Pollachius virens","North Sea and Eastern Arctic","ICES","I, II","A","X","X","X","X","X","X","X","X","X","X","X","X","X","X","X"]
[]
["POL","Sardinella aurita","Other regions","CECAF","34.1.3","Q","X","X","X",null,null,null,"X","X","X","X","X","X","X","X","X"]
["POL","Sardinella aurita","Other regions","CECAF","34.3.1","Q","X","X","X",null,null,null,"X","X","X","X","X","X","X","X","X"]
["POL","Sardina pilchardus","Other regions","CECAF","34.1.3","Q","X","X","X",null,null,null,"X","X","X","X","X","X","X","X","X"]
["POL","Scomber spp.","Other regions","CECAF","34.1.3","Q","X","X","X",null,null,null,"X","X","X","X","X","X","X","X","X"]
["POL","Scomber spp.","Other regions","CECAF","34.3.1","Q","X","X","X",null,null,null,"X","X","X","X","X","X","X","X","X"]
["POL","Trachurus trachurus","Other regions","CECAF","34.1.3","Q","X","X","X",null,null,null,"X","X","X","X","X","X","X","X","X"]
["POL","Trachurus trachurus","Other regions","CECAF","34.3.1","Q","X","X","X",null,null,null,"X","X","X","X","X","X","X","X","X"]
[]
["POL","Trachurus murphyi","Other regions","SPRFMO","SPRFMO Convention Area","A","X","X","X","X","X","X",null,null,null,"X","X","X","X","X","X"]

{"sheet":"Table1C Sampling intensity ","index":2,"n_rows":90,"n_cols":17,"rows_kept":90,"cut":false,"hidden":false,"merged":[[83,11,84,11],[12,11,13,11],[18,11,19,11],[24,11,25,11],[30,11,31,11],[38,11,39,11],[40,11,41,11],[42,11,43,11],[44,11,45,11],[46,11,47,11],[58,11,59,11],[68,11,81,11]]}
["Table 1C: Sampling intensity for biological variables"]
[null,null,null,null,null,null,null,null,null,null,null,null,null,null,null,"WP  years","2017-2019"]
[null,null,null,null,null,null,null,null,null,null,null,null,null,null,null,"AR year",2019]
["MS","MS partcipating in sampling","Sampling year","Species","Region","RFMO/RFO/IO","Area / Stock","Variables","Data sources","Planned minimum no of individuals to be measured at the national level","Planned minimum no of individuals to be measured at the regional level","Comments","Achieved number of individuals measured at the national level","% of achievement (100*M/J)","Achieved number of samples ","Sampling protocol","AR  Comments"]
["POL","POL","2017 -2019","Anguilla anguilla","Baltic Sea","ICES","22-32","length","Commercial ","all fish caught per haul","NA",null,447,94.559299999999993,16,"all fish caught per haul","%of achievement = no of fish measured /  no of fish in the catch"]
["POL","POL","2017 -2019","Anguilla anguilla","Baltic Sea","ICES","22-32","age, weight, sex","Commercial ","200 per eel management unit","NA",null,354,88.5,4,"200 per eel management unit","%of achievement = no of fish aged / 400 eel (2 management units)"]
["POL","POL","2017 -2019","Anguilla anguilla","Baltic Sea","ICES","22-32","length","Surveys","all fish caught per haul","NA",null,276,100,78,"all fish caught per haul","%of achievement = no of fish measured /  no of fish in the catch"]
["POL","POL","2017 -2019","Anguilla anguilla","Baltic Sea","ICES","22-32","age, weight, sex","Surveys","all fish caught per haul","NA",null,276,100,78,"all fish caught per haul","%of achievement = no of fish aged / no of fish in the catch"]
["POL","POL","2017 -2019","Clupea harengus","Baltic Sea","ICES","22-24","length","Commercial at sea","200 fish per haul","NA",null,1195,119.5,8,"200 fish per haul","Planned no of fish = 200 * no of samples from trips targeting herring"]
["POL","POL","2017 -2019","Clupea harengus","Baltic Sea","ICES","22-24","age, weight, sex, maturity ","Commercial at sea","4 per 0.5 cm per haul","NA",null,331,120.2,7,"4 per 0.5 cm per haul","Planned no of fish = 4 individuals or no at length if less than 4, summed up for all trips targeting herring, subdivisions and length classes"]
["POL","POL","2017 -2019","Clupea harengus","Baltic Sea","ICES","22-24","length","Commercial on shore","200 fish from the last haul","NA",null,1141,95.083333333333329,7,"200 fish from the last haul","Planned no of fish = 200 * no of samples from trips targeting herring"]
["POL","POL","2017 -2019","Clupea harengus","Baltic Sea","ICES","22-24","age, weight, sex, maturity ","Commercial on shore","4 per 0.5 cm from the last haul","NA",null,351,113.6,6,"4 per 0.5 cm from the last haul","Planned no of fish = 4 individuals or no at length if less than 4, summed up for all trips targeting herring, subdivisions and length classes"]
["POL","POL","2017 -2019","Clupea harengus","Baltic Sea","ICES","22-24","length","Surveys","200 fish per haul","NA","According to IBAS & BITS Surveys Manuals ( http://dcf.mir.gdynia.pl/?page_id=367 )",715,100.42134831460675,4,"200 fish per haul","Planned no of fish = 200 individuals or estimated no of fish in the catch if less than 200, summed up for all samples"]
["POL","POL","2017 -2019","Clupea harengus","Baltic Sea","ICES","22-24","age, weight, sex, maturity ","Surveys","5-10 per 0.5 cm per haul","NA",null,149,97.385620915032675,4,"5-10 per 0.5 cm per haul","Planned no of fish = no of fish aged if between 5 and 10; 5 individuals or no of fish measured if less than 5; 10 individuals if no of fish aged greater than 10, summed up for all trips, subdivisions and length classes"]
["POL","POL","2017 -2019","Clupea harengus","Baltic Sea","ICES","25-29","length","Commercial at sea","200 fish per haul","NA",null,3402,189,41,"200 fish per haul","Planned no of fish = 200 * no of samples from trips targeting herring"]
["POL","POL","2017 -2019","Clupea harengus","Baltic Sea","ICES","25-29","age, weight, sex, maturity ","Commercial at sea","4 per 0.5 cm per haul per ICES Sub-Diivision","NA",null,880,101.9,23,"4 per 0.5 cm per haul per ICES Sub-Diivision","Planned no of fish = 4 individuals or no at length if less than 4, summed up for all trips targeting herring, subdivisions and length classes"]
["POL","POL","2017 -2019","Clupea harengus","Baltic Sea","ICES","25-29","length","Commercial on shore","200 fish from the last haul","NA",null,2113,96.045454545454547,11,"200 fish from the last haul","Planned no of fish = 200 * no of samples from trips targeting herring"]
["POL","POL","2017 -2019","Clupea harengus","Baltic Sea","ICES","25-29","age, weight, sex, maturity ","Commercial on shore","4 per 0.5 cm from the last haul","NA",null,623,107.22891566265061,11,"4 per 0.5 cm from the last haul","Planned no of fish = 4 individuals or no at length if less than 4, summed up for all trips targeting herring, subdivisions and length classes"]
["POL","POL","2017 -2019","Clupea harengus","Baltic Sea","ICES","25-29","length","Surveys","200 fish per haul","NA","According to IBAS & BITS Surveys Manuals (http://dcf.mir.gdynia.pl/?page_id=367 )",24418,90.001102577168126,169,"200 fish per haul","Planned no of fish = 200 individuals or estimated no of fish in the catch if less than 200, summed up for all samples"]
["POL","POL","2017 -2019","Clupea harengus","Baltic Sea","ICES","25-29","age, weight, sex, maturity ","Surveys","5-10 per 0.5 cm per haul","NA",null,3158,144.20091324200914,144,"5-10 per 0.5 cm per haul","Planned no of fish = no of fish aged if between 5 and 10; 5 individuals or no of fish measured if less than 5; 10 individuals if no of fish aged greater than 10, summed up for all trips, subdivisions and length classes"]
["POL","POL","2017 -2019","Gadus morhua","Baltic Sea","ICES","22-24","length","Commercial at sea","5 boxes per haul","NA",null,33,2.1839999999999997,1,"5 boxes per haul","%of achievement = sum of sample weights / no of samples from trips targeting cod * 125kg(5 boxes)"]
["POL","POL","2017 -2019","Gadus morhua","Baltic Sea","ICES","22-24","age, weight, sex, maturity ","Commercial at sea","5 per 1cm ","NA",null,0,0,0,"5 per 1cm ","Planned no of fish = 5 individuals or no at length if less than 5, summed up for all trips targeting cod, subdivisions and length classes"]
["POL","POL","2017 -2019","Gadus morhua","Baltic Sea","ICES","22-24","length","Commercial on shore","2 boxes from the last haul","NA",null,397,115.99999999999999,5,"2 boxes from the last haul","%of achievement = sum of sample weights / no of samples from trips targeting cod * 50kg(2 boxes)"]
["POL","POL","2017 -2019","Gadus morhua","Baltic Sea","ICES","22-24","age, weight, sex, maturity ","Commercial on shore","4 per 1 cm","NA",null,271,118.6,5,"4 per 1 cm","Planned no of fish = 4 individuals or no at length if less than 4, summed up for all trips targeting cod, subdivisions and length classes"]
["POL","POL","2017 -2019","Gadus morhua","Baltic Sea","ICES","22-24","length","Surveys","5 boxes per haul","NA","According to IBAS & BITS Surveys Manuals (http://dcf.mir.gdynia.pl/?page_id=367 )",721,100,5,"5 boxes per haul","%of achievement = sum of sample weights / (125kg (5 boxes) or catch weight if less than 125kg summed up for all samples)"]
["POL","POL","2017 -2019","Gadus morhua","Baltic Sea","ICES","22-24","age, weight, sex, maturity ","Surveys","5 per 1cm ","NA",null,185,123.33333333333334,5,"5 per 1cm ","Planned no of fish = 5 individuals or no at length if less than 5, summed up for all trips, subdivisions and length classes"]
["POL","POL","2017 -2019","Gadus morhua","Baltic Sea","ICES","25-32","length","Commercial at sea","5 boxes per haul","NA",null,3266,89.182857142857145,47,"5 boxes per haul","%of achievement = sum of sample weights / no of samples from trips targeting cod * 125kg(5 boxes)"]
["POL","POL","2017 -2019","Gadus morhua","Baltic Sea","ICES","25-32","age, weight, sex, maturity ","Commercial at sea","5 per 1cm ","NA",null,654,79.900000000000006,14,"5 per 1cm ","Planned no of fish = 5 individuals or no at length if less than 5, summed up for all trips targeting cod, subdivisions and length classes"]
["POL","POL","2017 -2019","Gadus morhua","Baltic Sea","ICES","25-32","length","Commercial on shore","2 boxes from the last haul","NA",null,485,90.92,5,"2 boxes from the last haul","%of achievement = sum of sample weights / no of samples from trips targeting cod * 50kg(2 boxes)"]
["POL","POL","2017 -2019","Gadus morhua","Baltic Sea","ICES","25-32","age, weight, sex, maturity ","Commercial on shore","4 per 1 cm","NA",null,204,116,5,"4 per 1 cm","Planned no of fish = 4 individuals or no at length if less than 4, summed up for all trips targeting cod, subdivisions and length classes"]
["POL","POL","2017 -2019","Gadus morhua","Baltic Sea","ICES","25-32","length","Surveys","5 boxes per haul","NA","According to IBAS & BITS Surveys Manuals (http://dcf.mir.gdynia.pl/?page_id=367 )",22185,139.19275541593376,141,"5 boxes per haul","%of achievement = sum of sample weights / (125kg (5 boxes) or catch weight if less than 125kg summed up for all samples)"]
["POL","POL","2017 -2019","Gadus morhua","Baltic Sea","ICES","25-32","age, weight, sex, maturity ","Surveys","5 per 1cm per ICES Sub-Division","NA",null,1542,145.33459000942509,117,"5 per 1cm per ICES Sub-Division","Planned no of fish = 5 individuals or no at length if less than 5, summed up for all trips, subdivisions and length classes"]
["POL","POL","2017 -2019","Perca fluviatilis","Baltic Sea","ICES","IIId","length","Commercial ","1 box per haul  ","NA",null,1580,48.68,25,"1 box per haul  ","%of achievement = sum of sample weights / no of samples from trips targeting perch * 25kg(1 box)"]
["POL","POL","2017 -2019","Perca fluviatilis","Baltic Sea","ICES","IIId","age, weight, sex, maturity ","Commercial ","5 per 1 cm per fishing ground","NA",null,558,276.23762376237619,24,"5 per 1 cm per fishing ground","Planned no of fish = 5 individuals or no at length if less than 5, summed up for all subdivisions and length classes from trips targeting perch"]
["POL","POL","2017 -2019","Platichthys flesus","Baltic Sea","ICES","22-32","length","Commercial at sea","1 box per haul  ","NA",null,4409,173.78666666666669,60,"1 box per haul  ","%of achievement = sum of sample weights / no of samples from trips targeting flounder * 25kg(1 box)"]
["POL","POL","2017 -2019","Platichthys flesus","Baltic Sea","ICES","22-32","age, weight, sex, maturity ","Commercial at sea","5 per 1 cm","NA",null,680,83.5,15,"5 per 1 cm","Planned no of fish = 5 individuals or no at length if less than 5, summed up for all trips targeting flounder, subdivisions and length classes"]
["POL","POL","2017 -2019","Platichthys flesus","Baltic Sea","ICES","22-32","length","Commercial on shore","1 box from the last haul","NA",null,1184,107.28888888888891,10,"1 box from the last haul","%of achievement = sum of sample weights / no of samples from trips targeting flounder * 25kg(1 box)"]
["POL","POL","2017 -2019","Platichthys flesus","Baltic Sea","ICES","22-32","age, weight, sex, maturity ","Commercial on shore","5 per 1 cm","NA",null,540,100,10,"5 per 1 cm","Planned no of fish = 5 individuals or no at length if less than 5, summed up for all trips targeting flounder, subdivisions and length classes"]
["POL","POL","2017 -2019","Platichthys flesus","Baltic Sea","ICES","22-32","length","Surveys","1 box per haul per ICES Sub-Division","NA","According to BITS Surveys Manual (http://dcf.mir.gdynia.pl/?page_id=367)",13176,110.57911850211917,135,"1 box per haul per ICES Sub-Division","%of achievement = sum of sample weights / (25kg (1 box) or catch weight if less than 25kg summed up for all samples)"]
["POL","POL","2017 -2019","Platichthys flesus","Baltic Sea","ICES","22-32","age, weight, sex, maturity ","Surveys","10 per 1cm per sex per ICES Sub-Division","NA",null,1713,96.235955056179776,124,"10 per 1cm per sex per ICES Sub-Division","Planned no of fish = 10 individuals or no at length if less than 10, summed up for all trips, subdivisions, sex and length classes"]
["POL","POL","2017 -2019","Pleuronectes platessa","Baltic Sea","ICES","22-32","length","Commercial at sea","all fish caught per haul","NA","no directed fishery (bycatch in cod and flounder fisheries)",158,7.0217000000000001,17,"all fish caught per haul","%of achievement = sum of sample weights / sum of catch weights of plaice"]
["POL","POL","2017 -2019","Pleuronectes platessa","Baltic Sea","ICES","22-32","age, weight, sex, maturity ","Commercial at sea","all fish caught per haul","NA",null,13,8.2278481012658222,4,"all fish caught per haul","%of achievement = no of fish aged / estimated no of fish in the catch"]
["POL","POL","2017 -2019","Pleuronectes platessa","Baltic Sea","ICES","22-32","length","Surveys","all fish caught per haul","NA","According to BITS Surveys Manual (http://dcf.mir.gdynia.pl/?page_id=367)",2367,99.897727156508125,103,"all fish caught per haul","%of achievement = sum of sample weights / sum of catch weights"]
["POL","POL","2017 -2019","Pleuronectes platessa","Baltic Sea","ICES","22-32","age, weight, sex, maturity ","Surveys","all fish caught per haul","NA",null,1117,47.190536544148706,97,"all fish caught per haul","%of achievement = no of fish aged / no of fish measured"]
["POL","POL","2017 -2019","Psetta maxima","Baltic Sea","ICES","22-32","length","Commercial at sea","all fish caught per haul","NA","no directed fishery (bycatch in cod and flounder fisheries)",52,100,6,"all fish caught per haul","%of achievement = sum of sample weights / sum of catch weights of turbot"]
["POL","POL","2017 -2019","Psetta maxima","Baltic Sea","ICES","22-32","age, weight, sex, maturity ","Commercial at sea","all fish caught per haul","NA",null,0,0,0,"all fish caught per haul","%of achievement = no of fish aged / estimated no of fish in the catch"]
["POL","POL","2017 -2019","Psetta maxima","Baltic Sea","ICES","22-32","length","Surveys","all fish caught per haul","NA","According to BITS Surveys Manual (http://dcf.mir.gdynia.pl/?page_id=367)",86,100,36,"all fish caught per haul","%of achievement = sum of sample weights / sum of catch weights"]
["POL","POL","2017 -2019","Psetta maxima","Baltic Sea","ICES","22-32","age, weight, sex, maturity ","Surveys","all fish caught per haul","NA",null,86,100,36,"all fish caught per haul","%of achievement = no of fish aged / no of fish measured"]
["POL","POL","2017 -2019","Salmo salar","Baltic Sea","ICES","22-31","length","Commercial ","all fish caught per haul","NA",null,1,100,1,"all fish caught per haul","%of achievement = sum of sample weights / sum of catch weights of salmon"]
["POL","POL","2017 -2019","Salmo salar","Baltic Sea","ICES","22-31","age, weight, sex","Commercial ","5 per 1 cm per year","NA",null,0,0,0,"5 per 1 cm per year","Planned no of fish = 5 individuals or no at length if less than 5, summed up for whole year and all length classes"]
["POL","POL","2017 -2019","Salmo trutta","Baltic Sea","ICES","22-32","length","Commercial ","all fish caught per haul","NA",null,66,100,29,"all fish caught per haul","%of achievement = sum of sample weights / sum of catch weights of sea trout"]
["POL","POL","2017 -2019","Salmo trutta","Baltic Sea","ICES","22-32","age, weight, sex","Commercial ","5 per 1 cm per year","NA",null,63,100,28,"5 per 1 cm per year","Planned no of fish = 5 individuals or no at length if less than 5, summed up for whole year and all length classes"]
["POL","POL","2017 -2019","Sander lucioperca","Baltic Sea","ICES","IIId","length","Commercial ","5 box per haul  ","NA",null,876,35.204000000000001,23,"5 box per haul  ","%of achievement = sum of sample weights / no of samples from trips targeting pike-perch * 125kg(5 boxes)"]
["POL","POL","2017 -2019","Sander lucioperca","Baltic Sea","ICES","IIId","age, weight, sex, maturity ","Commercial ","5 per 1 cm per fishing ground","NA",null,422,131.46417445482865,22,"5 per 1 cm per fishing ground","Planned no of fish = 5 individuals or no at length if less than 5, summed up for all subdivisions and length classes from trips targeting pike-perch"]
["POL","POL","2017 -2019","Sprattus sprattus","Baltic Sea","ICES","22-32","length","Commercial at sea","200 fish per haul","NA",null,8598,122.82857142857142,41,"200 fish per haul","Planned no of fish = 200 * no of samples from trips targeting sprat"]
["POL","POL","2017 -2019","Sprattus sprattus","Baltic Sea","ICES","22-32","age, weight, sex, maturity ","Commercial at sea","5-10 per 0.5 cm per haul per ICES Sub-Diivision","NA",null,2076,98.6,30,"5-10 per 0.5 cm per haul per ICES Sub-Diivision","Planned no of fish = no of fish aged if between 5 and 10; 5 individuals or no of fish measured if less than 5; 10 individuals if no of fish aged greater than 10, summed up for all trips targeting sprat, subdivisions and length classes"]
["POL","POL","2017 -2019","Sprattus sprattus","Baltic Sea","ICES","22-32","length","Commercial on shore","200 fish from the last haul","NA",null,216,108,1,"200 fish from the last haul","Planned no of fish = 200 * no of samples from trips targeting sprat"]
["POL","POL","2017 -2019","Sprattus sprattus","Baltic Sea","ICES","22-32","age, weight, sex, maturity ","Commercial on shore","5-10 per 0.5 cm from the last haul","NA",null,63,100,1,"5-10 per 0.5 cm from the last haul","Planned no of fish = no of fish aged if between 5 and 10; 5 individuals or no of fish measured if less than 5; 10 individuals if no of fish aged greater than 10, summed up for all trips targeting sprat, subdivisions and length classes"]
["POL","POL","2017 -2019","Sprattus sprattus","Baltic Sea","ICES","22-32","length","Surveys","200 fish per haul","NA","According to BITS Surveys Manual (http://dcf.mir.gdynia.pl/?page_id=367)",25956,100.29865472047386,151,"200 fish per haul","Planned no of fish = 200 individuals or estimated no of fish in the catch if less than 200, summed up for all samples"]
["POL","POL","2017 -2019","Sprattus sprattus","Baltic Sea","ICES","22-32","age, weight, sex, maturity ","Surveys","5-10 per 0.5 cm per haul","NA",null,2001,176.1443661971831,78,"5-10 per 0.5 cm per haul","Planned no of fish = no of fish aged if between 5 and 10; 5 individuals or no of fish measured if less than 5; 10 individuals if no of fish aged greater than 10, summed up for all trips, subdivisions and length classes"]
[]
["POL","POL","2017 -2019","Gadus morhua","North Sea and Eastern Arctic","ICES","I, II","length","Commercial at sea","300 fish per haul","NA",null,7123,79.144444444444446,29,"300 fish per haul","Planned no of fish = 300 * no of samples from trips targeting cod"]
["POL","POL","2017 -2019","Gadus morhua","North Sea and Eastern Arctic","ICES","I, II","age, weight, sex, maturity ","Commercial at sea","5 per 1 cm per trip","NA",null,342,99.130434782608702,6,"5 per 1 cm per trip","Planned no of fish = 5 individuals or no at length if less than 5, summed up for all trips targeting cod, subdivisions and length classes"]
["POL","POL","2017 -2019","Melanogrammus aeglefinus","North Sea and Eastern Arctic","ICES","I, II","length","Commercial at sea","300 fish per haul","NA",null,195,2.166666666666667,13,"300 fish per haul","Planned no of fish = 300 * no of samples from trips targeting cod (with bycatch of haddock)"]
["POL","POL","2017 -2019","Melanogrammus aeglefinus","North Sea and Eastern Arctic","ICES","I, II","age, weight, sex, maturity ","Commercial at sea","5 per 1 cm per trip","NA",null,0,0,0,"5 per 1 cm per trip","Planned no of fish = 5 individuals or no at length if less than 5, summed up for all trips targeting cod, subdivisions and length classes"]
["POL","POL","2017 -2019","Pollachius virens","North Sea and Eastern Arctic","ICES","I, II","length","Commercial at sea","300 fish per haul","NA",null,510,7.7272727272727266,3,"300 fish per haul","Planned no of fish = 300 * no of samples from trips targeting cod (with bycatch of saithe)"]
["POL","POL","2017 -2019","Pollachius virens","North Sea and Eastern Arctic","ICES","I, II","age, weight, sex, maturity ","Commercial at sea","5 per 1 cm per trip","NA",null,0,0,0,"5 per 1 cm per trip","Planned no of fish = 5 individuals or no at length if less than 5, summed up for all trips targeting cod, subdivisions and length classes"]
[]
["POL","DEU - LTU -LVA - NLD - POL","2017 -2019","Sardinella aurita","Other regions","CECAF","34.1.3","length","Commercial at sea","sample of 25 kg per haul","NA","Sampling Protocol - \"Biological Data Collection of pelagic fisheries in CECAF waters in compliance with the DCF\" (http://dcf.mir.gdynia.pl/?page_id=367)",6,0,1,"sample of 25 kg per haul","only two fishing trips sampled in 2019 (due to unavailability of the space for observer on board fishing vessels active in this area). In two observed trips only one haul took place in area 34.3.1."]
["POL","DEU - LTU -LVA - NLD - POL","2017 -2019","Sardinella aurita","Other regions","CECAF","34.1.3","weight, sex, maturity ","Commercial at sea","100 per quarter","NA",null,6,1.5,1,"100 per quarter","only two fishing trips sampled in 2019 (due to unavailability of the space for observer on board fishing vessels active in this area). In two observed trips only one haul took place in area 34.3.1."]
["POL","DEU - LTU -LVA - NLD - POL","2017 -2019","Sardinella aurita","Other regions","CECAF","34.3.1","length","Commercial at sea","sample of 25 kg per haul","NA",null,0,0,0,"sample of 25 kg per haul","only two fishing trips sampled in 2019 (due to unavailability of the space for observer on board fishing vessels active in this area). In two observed trips only one haul took place in area 34.3.1."]
["POL","DEU - LTU -LVA - NLD - POL","2017 -2019","Sardinella aurita","Other regions","CECAF","34.3.1","weight, sex, maturity ","Commercial at sea","100 per quarter","NA",null,0,0,0,"100 per quarter","only two fishing trips sampled in 2019 (due to unavailability of the space for observer on board fishing vessels active in this area). In two observed trips only one haul took place in area 34.3.1."]
["POL","DEU - LTU -LVA - NLD - POL","2017 -2019","Sardina pilchardus","Other regions","CECAF","34.1.3","length","Commercial at sea","sample of 25 kg per haul","NA",null,1828,38.117142857142852,14,"sample of 25 kg per haul","only two fishing trips sampled in 2019 (due to unavailability of the space for observer on board fishing vessels active in this area). In two observed trips only one haul took place in area 34.3.1."]
["POL","DEU - LTU -LVA - NLD - POL","2017 -2019","Sardina pilchardus","Other regions","CECAF","34.1.3","weight, sex, maturity ","Commercial at sea","100 per quarter","NA",null,227,56.75,9,"100 per quarter","only two fishing trips sampled in 2019 (due to unavailability of the space for observer on board fishing vessels active in this area). In two observed trips only one haul took place in area 34.3.1."]
["POL","DEU - LTU -LVA - NLD - POL","2017 -2019","Scomber spp.","Other regions","CECAF","34.1.3","length","Commercial at sea","sample of 25 kg per haul","NA",null,3533,71.755714285714291,28,"sample of 25 kg per haul","only two fishing trips sampled in 2019 (due to unavailability of the space for observer on board fishing vessels active in this area). In two observed trips only one haul took place in area 34.3.1."]
["POL","DEU - LTU -LVA - NLD - POL","2017 -2019","Scomber spp.","Other regions","CECAF","34.1.3","weight, sex, maturity ","Commercial at sea","100 per quarter","NA",null,206,51.5,11,"100 per quarter","only two fishing trips sampled in 2019 (due to unavailability of the space for observer on board fishing vessels active in this area). In two observed trips only one haul took place in area 34.3.1."]
["POL","DEU - LTU -LVA - NLD - POL","2017 -2019","Scomber spp.","Other regions","CECAF","34.3.1","length","Commercial at sea","sample of 25 kg per haul","NA",null,4,2.8,1,"sample of 25 kg per haul","only two fishing trips sampled in 2019 (due to unavailability of the space for observer on board fishing vessels active in this area). In two observed trips only one haul took place in area 34.3.1."]
["POL","DEU - LTU -LVA - NLD - POL","2017 -2019","Scomber spp.","Other regions","CECAF","34.3.1","weight, sex, maturity ","Commercial at sea","100 per quarter","NA",null,4,1,1,"100 per quarter","only two fishing trips sampled in 2019 (due to unavailability of the space for observer on board fishing vessels active in this area). In two observed trips only one haul took place in area 34.3.1."]
["POL","DEU - LTU -LVA - NLD - POL","2017 -2019","Trachurus trachurus","Other regions","CECAF","34.1.3","length","Commercial at sea","sample of 25 kg per haul","NA",null,1030,22.082105263157896,19,"sample of 25 kg per haul","only two fishing trips sampled in 2019 (due to unavailability of the space for observer on board fishing vessels active in this area). In two observed trips only one haul took place in area 34.3.1."]
["POL","DEU - LTU -LVA - NLD - POL","2017 -2019","Trachurus trachurus","Other regions","CECAF","34.1.3","weight, sex, maturity ","Commercial at sea","100 per quarter","NA",null,131,32.75,11,"100 per quarter","only two fishing trips sampled in 2019 (due to unavailability of the space for observer on board fishing vessels active in this area). In two observed trips only one haul took place in area 34.3.1."]
["POL","DEU - LTU -LVA - NLD - POL","2017 -2019","Trachurus trachurus","Other regions","CECAF","34.3.1","length","Commercial at sea","sample of 25 kg per haul","NA",null,10,5.76,1,"sample of 25 kg per haul","only two fishing trips sampled in 2019 (due to unavailability of the space for observer on board fishing vessels active in this area). In two observed trips only one haul took place in area 34.3.1."]
["POL","DEU - LTU -LVA - NLD - POL","2017 -2019","Trachurus trachurus","Other regions","CECAF","34.3.1","weight, sex, maturity ","Commercial at sea","100 per quarter","NA",null,10,2.5,1,"100 per quarter","only two fishing trips sampled in 2019 (due to unavailability of the space for observer on board fishing vessels active in this area). In two observed trips only one haul took place in area 34.3.1."]
[]
["POL","DEU - LTU - NLD - POL","2017 -2019","Trachurus murphyi","Other regions","SPRFMO","SPRFMO Convention Area","length","Commercial at sea","2-3 baskets per haul (ca. 100 fish per haul)","NA","\"Manual for scientific observers on board EU pelagic trawlers in the Pacific\" (in accordance to SPRFMO Data Standards) (http://dcf.mir.gdynia.pl/?page_id=367)",5152,99.07,52,"2-3 baskets per haul (ca. 100 fish per haul)"]
["POL","DEU - LTU - NLD - POL","2017 -2019","Trachurus murphyi","Other regions","SPRFMO","SPRFMO Convention Area","age, sex, maturity ","Commercial at sea","25 fish per day","NA",null,251,100,22,"5 fish per length class","New sampling requirement was introduced in 2018 providing that 5 specimens per length class shall be collected for age, sex and maturity data."]
["POL","POL",2019,"Belone belone ","Baltic Sea","ICES","NA","age, weight, sex, maturity ","Commercial on shore","NA","NA",null,121,"NA",2,"NA","New row - GAR fishery was not selected as a sampling frame in the WP. Fishery season is very short. Two samples were collected for biological variables due to importance of this fishery to local community in Puck Bay (part of Gulf of Gdańsk)"]
["POL","POL",2019,"Belone belone ","Baltic Sea","ICES","NA","length","Commercial on shore","NA","NA",null,121,"NA",2,"NA","New row - GAR fishery was not selected as a sampling frame in the WP. Fishery season is very short. Two samples were collected for biological variables due to importance of this fishery to local community in Puck Bay (part of Gulf of Gdańsk)"]
["POL","POL",2019,"Sprattus sprattus","Baltic Sea","ICES","22-32","age, weight, sex, maturity ","Commercial on shore","NA","NA",null,1288,"NA",25,"NA","New row. There is no corresponding sampling frame in the WP. Samples were taken by DNK from POL vessels on landings in DNK ports. Samples were collected in 2019 and delivered to POL in January 2020. "]
["POL","POL",2019,"Sprattus sprattus","Baltic Sea","ICES","22-32","length","Commercial on shore","NA","NA",null,3552,"NA",25,"NA","New row. There is no corresponding sampling frame in the WP. Samples were taken by DNK from POL vessels on landings in DNK ports. Samples were collected in 2019 and delivered to POL in January 2021"]
["POL","POL",2019,"marine crabs nei (CRA - Brachyura)","North Sea and Eastern Arctic","ICES","IV","NA","NA","NA","NA",null,0,"NA",0,"NA","New row - vessel started fishing in 2018 thus not included in WP and not sampled"]

{"sheet":"Table1D Recreational Fisheries","index":3,"n_rows":11,"n_cols":25,"rows_kept":11,"cut":false,"hidden":false,"merged":[[11,3,11,10],[6,12,8,12],[9,12,10,12],[6,24,10,24]]}
["Table 1D: Recreational fisheries"]
[null,null,null,null,null,null,null,null,null,null,null,null,null,null,null,null,null,null,null,null,null,null,null,"WP  years","2017-2019"]
[null,null,null,null,null,null,null,null,null,null,null,null,null,null,null,null,null,null,null,null,null,null,null,"AR year",2019]
["MS","Sampling year","Area/EMU","RFMO/RFO/IO","Species","Applicable (Species present in the MS?)","Reasons for not sampling","Threshold (Y/N)","Annual estimate of catch? (Y/N)","Annual percentage of released catch? (Y/N)","Collection of catch composition data? (Y/N)","Type of Survey","Comments","Unique Survey ID or Name of sampling scheme\n(Linked to Table 5A)","Is the survey part of a pilot study or part of an established programme? \n","Frequency","Is the sampling design documented?\n(Linked to Table 5A)","Are non-response and refusal recorded?\n(Linked to Table 5A)","Are the editing and imputation methods documented? (Linked to Table 5A)","Estimation of  the yearly weight and numbers of catch (Y/N)","Estimation of  the yearly percentage release (Y/N)","Collection of catch composition data (Y/N)","Evaluated by external experts/bodies (Y/N)","Conform with accepted standards Y/N","AR Comments "]
["POL","2017-2019","Baltic Sea","ICES","Gadus morhua","Y","NA","N","Y","Y","Y","National estimates of numbers of trips &number of anglers & onsite surveys of catch per unit effort & of catch composition","Planned number of at sea trips: 24","At sea cod recreational fishery","Routine","Annual","Y","Y","N ","Y","Y","Y","Y","Y","The estimation of annual catch and number for the sampling Year (N) is available in the year after (N+1). Survey evaluated by WGRFS. Imputation is not performed at national level. Refusals recorded for questionnaires' survey. At-sea biological sampling not randomized but based on vessels' availability (drawing from vessel list)."]
["POL","2017-2019","Vistula/Oder EMU","ICES","Anguilla anguilla","Y","NA","N","Y","N","N","National estimates of catch based on questionaires and  catch register",null,"NA","NA","NA","NA","NA","NA","NA","NA","NA","NA","NA","Data collected through other program by Inland Fisheries Institute, annually by questionnaires as part of national statistics and based on contract with government. Annual data publicly available (http://www.infish.com.pl/)"]
["POL","2017-2018","Baltic Sea","ICES","Salmo salar","Y","Pilot Sudy planned","N","Y","Y","Y",null,"see Pilot Study 1 in text file","Pilot Study 1","Pilot","Biennial","Y","Y","N ","N","N","N","N","N","See Text Box on Pilot Study 1 for comments"]
["POL","2017-2018","Baltic Sea","ICES","Salmo trutta","Y","Pilot Sudy planned","N","Y","Y","Y",null,null,"Pilot Study 1","Pilot","Biennial","Y","Y","N ","N","N","N","N","N"]
["POL","2017-2018","Baltic Sea","ICES","Anguilla anguilla","Y","Pilot Sudy planned","N","Y","Y","Y",null,null,"Pilot Study 1","Pilot","Biennial","Y","Y","N ","N","N","N","N","N"]
["POL","2017-2018","Baltic Sea inland waters","ICES","Salmo salar","Y","Pilot Sudy planned","N","Y","Y","N",null,"see Pilot Study 1 in text file","Pilot Study 1","Pilot","Biennial","Y","Y","N ","N","N","N","N","N"]
["POL","2017-2018","Baltic Sea inland waters","ICES","Salmo trutta","Y","Pilot Sudy planned","N","Y","Y","N",null,null,"Pilot Study 1","Pilot","Biennial","Y","Y","N ","N","N","N","N","N"]

{"sheet":"Table1E Anadromous catadromous","index":4,"n_rows":21,"n_cols":21,"rows_kept":21,"cut":false,"hidden":false,"merged":[[3,11,4,11],[3,0,4,0],[3,1,4,1],[3,2,4,2],[3,3,4,3],[3,4,4,4],[3,5,4,5],[3,6,4,6],[3,7,4,7],[3,8,4,8],[3,9,4,9],[3,10,4,10],[3,18,4,18],[3,19,4,19],[3,20,4,20],[3,12,4,12],[3,13,4,13],[3,14,4,14],[3,15,4,15],[3,16,4,16],[3,17,4,17]]}
["Table 1E: Anadromous and catadromous species data collection in fresh water "]
[null,null,null,null,null,null,null,null,null,null,null,null,null,null,null,null,null,null,null,"WP  years","2017-2019"]
[null,null,null,null,null,null,null,null,null,null,null,null,null,null,null,null,null,null,null,"AR year",2019]
["MS","Sampling period","Area","RFMO/RFO/IO","Species","Applicable (Y/N)","Reasons for not sampling","Water Body","Life stage","Fishery / Independent data collection","Method","Unit","Planned nos","Frequency","Comments","Achieved numbers","% of achievement (100*P/M)","Reasons for non-conformity","Survey ID","Agreed at RCG level?","AR Comments"]
[]
["POL","2017-2019","ODER EMU","ICES","Anguilla anguilla","Y","NA","Szczecin Lagoon","yellow","F","sampling","n.samples",100,"Y","biological variables ","NA","NA","NA","NA","NA","This sampling refers to commercial fisheries in marine waters (not fresh waters) and is defined in Tables 1 A-C"]
["POL","2017-2019","VISTULA EMU","ICES","Anguilla anguilla","Y","NA","Vistula Lagoon","yellow","F","sampling","n.samples",100,"Y","biological variables ","NA","NA","NA","NA","NA","This sampling refers to commercial fisheries in marine waters (not fresh waters) and is defined in Tables 1 A-C"]
["POL","2017-2019","ODER EMU","ICES","Anguilla anguilla","Y","NA","Szczecin Lagoon","silver","F","sampling","n.samples",100,"Y","biological variables ","NA","NA","NA","NA","NA","This sampling refers to commercial fisheries in marine waters (not fresh waters) and is defined in Tables 1 A-C"]
["POL","2017-2019","VISTULA EMU","ICES","Anguilla anguilla","Y","NA","Vistula Lagoon","silver","F","sampling","n.samples",100,"Y","biological variables ","NA","NA","NA","NA","NA","This sampling refers to commercial fisheries in marine waters (not fresh waters) and is defined in Tables 1 A-C"]
["POL","2017-2019","ODER EMU","ICES","Anguilla anguilla","Y","NA","Inland - lakes","yellow","F","sampling","n.samples",100,"Y","biological variables ",107,{"$f":"P10*100/M10","v":107},"NA","POL-ELE-FRW-FYK-commercial fishing","N"]
["POL","2017-2019","VISTULA EMU","ICES","Anguilla anguilla","Y","NA","Inland - lakes","yellow","F","sampling","n.samples",100,"Y","biological variables ",100,{"$f":"P11*100/M11","v":100},"NA","POL-ELE-FRW-FYK-commercial fishing","N"]
["POL","2017-2019","ODER EMU","ICES","Anguilla anguilla","Y","NA","Inland - lakes","silver","F","sampling","n.samples",150,"Y","biological variables ",302,{"$f":"P12*100/M12","v":201.33333333333334},"See Text Box 1E for comments","POL-ELE-FRW-FYK-commercial fishing","N","A larger number of individuals is associated with large catches in the autumn. The entire catch of the day was analyzed "]
["POL","2017-2019","VISTULA EMU","ICES","Anguilla anguilla","Y","NA","Inland - lakes","silver","F","sampling","n.samples",150,"Y","biological variables ",332,{"$f":"P13*100/M13","v":221.33333333333334},"See Text Box 1E for comments","POL-ELE-FRW-FYK-commercial fishing","N","A larger number of individuals is associated with large catches in the autumn. The entire catch of the day was analyzed "]
["POL","2017-2019","ODER EMU","ICES","Anguilla anguilla","Y","NA","Szczecin Lagoon","yellow","I","trap","n.sites",2,"Y","yellow eel abundance",1,50,"See Text Box 1E for comments","POL-ELE-FRW-FYK-fishery-independent","N","The number of individuals caught in one fishing gear is sufficient. In addition, there is a data series only for this one site."]
["POL","2017-2019","VISTULA EMU","ICES","Anguilla anguilla","Y","NA","Vistula Lagoon","yellow","I","trap","n.sites",2,"Y","yellow eel abundance",2,{"$f":"P15*100/M15","v":100},"See Text Box 1E for comments","POL-ELE-FRW-FYK-fishery-independent","N"]
["POL","2017-2019","ODER EMU","ICES","Anguilla anguilla","Y","NA","Inland - lakes","yellow","I","electrofishing","n.sites",10,"Y","yellow eel abundance",18,180,"See Text Box 1E for comments","POL-ELE-FRW-MEL-fishery-independent","N","Low eel density requires more sampling sites"]
["POL","2017-2019","VISTULA EMU","ICES","Anguilla anguilla","Y","NA","Inland - lakes","yellow","I","electrofishing","n.sites",10,"Y","yellow eel abundance",21,210,"See Text Box 1E for comments","POL-ELE-FRW-MEL-fishery-independent","N","Low eel density requires more sampling sites"]
["POL","2017-2019","ODER EMU","ICES","Anguilla anguilla","Y","NA","Pomeranian rivers","yellow","I","trap","n.sites",5,"Y","abundance of recruits",3,60,"See Text Box 1E for comments","POL-ELE-FRW-FIX-fishery independant","N","Based on experience from last years, sites with large water fluctuations cousing trap damages were abandoned. The current number of traps and sites is sufficient."]
["POL","2017-2019","VISTULA EMU","ICES","Anguilla anguilla","Y","NA","Pomeranian rivers","yellow","I","trap","n.sites",4,"Y","abundance of recruits",3,75,"See Text Box 1E for comments","POL-ELE-FRW-FIX-fishery independant","N","Based on experience from last years, sites with large water fluctuations cousing trap damages were abandoned. The current number of traps and sites is sufficient."]
["POL","2017-2019","Baltic Sea","ICES","Salmo trutta","Y","NA","Oder and Vistula RBD","adult","F","sampling","n.samples",100,"Y","biological variables ",156,156,"See Text Box 1E for comments","POL-TRS-FRW-FIX-commercial fishing","N","Additional sampling of spawners were conducted. "]
["POL","2017-2019","Baltic Sea","ICES","Salmo trutta","Y","NA","Pomeranian rivers","parr","I","electrofishing","n.sites",30,"Y","parr density",40,133.33333333333334,"See Text Box 1E for comments","POL-TRS-FRW-MEL-fishery-independent","N","Sampling fitted to the national assessment needs"]

{"sheet":"Table1F Incidental by catch","index":5,"n_rows":27,"n_cols":23,"rows_kept":27,"cut":false,"hidden":false,"merged":[[4,21,5,21],[4,22,5,22],[4,20,5,20],[4,9,5,9],[4,10,5,10],[4,11,5,11],[4,12,5,12],[4,13,5,13],[4,14,5,14],[4,15,5,15],[4,16,5,16],[4,17,5,17],[4,18,5,18],[4,19,5,19],[3,15,3,19],[4,0,5,0],[4,1,5,1],[4,2,5,2],[4,3,5,3],[4,4,5,4],[4,5,5,5],[4,6,5,6],[4,7,5,7],[4,8,5,8]]}
["Table 1F: Incidental by-catch of birds, mammals, reptiles and fish "]
[null,null,null,null,null,null,null,null,null,null,null,null,null,null,null,null,null,null,null,null,null,"WP  years","2017-2019"]
[null,null,null,null,null,null,null,null,null,null,null,null,null,null,null,null,null,null,null,null,null,"AR year",2019]
[null,null,null,null,null,null,null,null,null,null,null,null,null,null,null,"Has there be occurrence of bycatch?"]
["MS","Sampling period/year(s)","Region","RFMO/RFO/IO","Sub-area / Fishing ground","Scheme","Stratum ID code / Name of the survey","Group of vulnerable species","Expected occurence of recordings ","Comments","Total number of PSU in the sampling year","Achieved number of PSU in the sampling year","Number of PSU sampled in which observers have been instructed to look for bycatch","Does your sampling protocol allow for the calculation of observation effort “at haul level” (Y/N)","Is there any mitigation device? (Y/N) ","Fish (Y/N/NA)","Mammals (Y/N/NA)","Birds (Y/N/NA)","Reptiles (Y/N/NA)","Other (Y/N/NA)","Are data stored in a national database?","Are data stored in international database(s)?","AR Comments"]
[]
["POL","2017-2019","Baltic Sea","ICES","22-24","Demersal at sea and on shore","POL DCT1","fish","X",null,336,1,1,"Y","N ","Y","Y","Y","NA","Y","Y","Y","National database: NPZDRpl. International databases: ICES Bycatch DB"]
["POL","2017-2019","Baltic Sea","ICES","22-24","Demersal at sea and on shore","POL GNSC1","fish, birds, mammals","X",null,377,0,0,"Y","Y","Y","Y","Y","NA","Y","Y","Y","Acoustic deterrent devices.  National database: NPZDRpl. International databases: ICES Bycatch DB"]
["POL","2017-2019","Baltic Sea","ICES","25-32","Demersal at sea and on shore","POL DCT2","fish","X",null,1021,8,8,"Y","N","Y","Y","Y","NA","Y","Y","Y","National database: NPZDRpl. International databases: ICES Bycatch DB"]
["POL","2017-2019","Baltic Sea","ICES","25-32","Demersal at sea and on shore","POL GNSC2","fish, birds, mammals","X",null,3267,1,1,"Y","Y","Y","Y","Y","NA","Y","Y","Y","Acoustic deterrent devices.  National database: NPZDRpl. International databases: ICES Bycatch DB"]
["POL","2017-2019","Baltic Sea","ICES","25-32","Demersal at sea and on shore","POL DTF","fish","X",null,1323,10,10,"Y","N","Y","Y","Y","NA","Y","Y","Y","National database: NPZDRpl. International databases: ICES Bycatch DB"]
["POL","2017-2019","Baltic Sea","ICES","25-32","Demersal at sea and on shore","POL GNSF","fish, birds, mammals","X",null,14561,8,8,"Y","Y","Y","Y","Y","NA","Y","Y","Y","Acoustic deterrent devices.  National database: NPZDRpl. International databases: ICES Bycatch DB"]
["POL","2017-2019","Baltic Sea","ICES","22-32","Pelagic at sea and on shore","POL PST","fish","X",null,3048,24,24,"Y","N","Y","Y","Y","NA","Y","Y","Y","National database: NPZDRpl. International databases: ICES Bycatch DB"]
["POL","2017-2019","Baltic Sea","ICES","22-24","Pelagic at sea and on shore","POL PHT1","fish","X",null,47,3,3,"Y","N","Y","Y","Y","NA","Y","Y","Y","National database: NPZDRpl. International databases: ICES Bycatch DB"]
["POL","2017-2019","Baltic Sea","ICES","22-24","Pelagic at sea and on shore","POL BH1","fish, birds","X",null,140,8,8,"Y","N","Y","Y","Y","NA","Y","Y","Y","National database: NPZDRpl. International databases: ICES Bycatch DB"]
["POL","2017-2019","Baltic Sea","ICES","25-32","Pelagic at sea and on shore","POL PHT2","fish","X",null,1589,10,10,"Y","N","Y","Y","Y","NA","Y","Y","Y","National database: NPZDRpl. International databases: ICES Bycatch DB"]
["POL","2017-2019","Baltic Sea","ICES","25-32","Pelagic at sea and on shore","POL BH2","fish, birds","X",null,1776,7,7,"Y","N","Y","Y","Y","NA","Y","Y","Y","National database: NPZDRpl. International databases: ICES Bycatch DB"]
["POL","2017-2019","Baltic Sea","ICES","22-24","Freshwater at sea and on shore","POL BFWS1","fish, birds, mammals","X",null,4033,13,13,"Y","Y","Y","Y","Y","NA","Y","Y","Y","Typing error in WP in the name of Scheme (column F) - should read: \"Freshwater and eel at sea and on shore\". Escape device.  National database: NPZDRpl. International databases: ICES Bycatch DB"]
["POL","2017-2019","Baltic Sea","ICES","25-32","Freshwater at sea and on shore","POL BFWS2","fish, birds, mammals","X",null,7203,16,16,"Y","Y","Y","Y","Y","NA","Y","Y","Y","Typing error in WP in the name of Scheme (column F) - should read: \"Freshwater and eel at sea and on shore\". Escape device.  National database: NPZDRpl. International databases: ICES Bycatch DB"]
["POL","2017-2019","Baltic Sea","ICES","22-32","Salmonids at sea and on shore","POL GNSSAL","birds, mammals","X",null,1905,14,14,"Y","N","Y","Y","Y","NA","Y","Y","Y","National database: NPZDRpl. International databases: ICES Bycatch DB"]
["POL","2017-2019","Baltic Sea","ICES","22-32","Salmonids at sea and on shore","POL LLDSAL","birds, mammals","X",null,325,0,0,"Y","N","Y","Y","Y","NA","Y","Y","Y","National database: NPZDRpl. International databases: ICES Bycatch DB"]
["POL","2017-2019","North Sea and Eastern Arctic","ICES","I, II","at sea","LDF1","fish, birds, mammals","X",null,7,1,1,"Y","Y","Y","Y","Y","NA","Y","Y","Y","Escape device.  National database: NPZDRpl. International databases: ICES Bycatch DB"]
["POL","2017-2019","other regions","CECAF","34.1.3; 34.3.1","at sea","LDF2","fish, mammals","X",null,0,2,2,"Y","N","Y","Y","Y","NA","Y","Y","N","No international database. Data are reported to CECAF Working Group. National database under re-development to incorporate data from Other Regions."]
["POL","2017-2019","other regions","SPRFMO","SPRFMO Convention Area","at sea","LDF3","fish, birds, mammals","X",null,4,2,2,"Y","Y","Y","Y","Y","Y","Y","Y","Y","Bird Baffler -obligatory birds mitigation device in SPRFMO area. Data reported to SPRFMO Secretariat and Scientific Council. National database under re-development to incorporate data from Other Regions."]
["POL",2019,"Baltic Sea","ICES","22-32","on shore","POLGAR","fish, birds, mammals","X",null,943,2,0,"NA","NA","NA","NA","NA","NA","NA","Y","Y","New row - GAR fishery was not selected as a sampling frame in the WP. Fishery season is very short. Two samples were collected for biological variables due to importance of this fishery to local community in Puck Bay (part of Gulf of Gdańsk)"]
["POL",2019,"Baltic Sea","ICES","22-32","on shore","POLDNK SPR","fish, birds","X",null,473,25,0,"NA","NA","NA","NA","NA","NA","NA","Y","Y","New row. There is no corresponding sampling frame in the WP. Samples were taken by DNK from POL vessels on landings in DNK ports. Samples were collected in 2019 and delivered to POL in January 2020"]
["POL",2019,"North Sea and Eastern Arctic","ICES","IV","NA","POLNSCRA","NA","NA ",null,51,0,0,"NA","NA","NA","NA","NA","NA","NA","N","N","New row - vessel started fishing in 2018 thus not included in WP and not sampled"]

{"sheet":"Table1G List of research survey","index":6,"n_rows":10,"n_cols":27,"rows_kept":10,"cut":false,"hidden":false,"merged":[[1,17,1,19],[1,20,1,22],[2,17,2,19],[1,7,1,8],[1,9,1,10],[1,11,1,12],[1,13,1,14],[1,15,1,16],[6,10,7,10],[6,13,7,13],[6,14,7,14],[6,15,7,15],[8,0,9,0],[6,5,7,5],[6,6,7,6],[6,7,7,7],[6,8,7,8],[6,9,7,9],[6,0,7,0],[6,1,7,1],[6,2,7,2],[6,3,7,3],[6,4,7,4],[8,1,9,1],[8,2,9,2],[8,3,9,3],[8,4,9,4],[8,5,9,5],[8,6,9,6],[8,7,9,7],[8,8,9,8],[8,9,9,9],[8,10,9,10],[8,13,9,13],[8,14,9,14],[8,15,9,15],[6,17,7,17],[6,18,7,18],[8,17,9,17],[8,18,9,18],[4,16,9,16],[6,19,7,19],[6,21,7,21],[6,22,7,22],[6,23,7,23],[6,26,7,26],[8,26,9,26],[8,19,9,19],[8,21,9,21],[8,22,9,22],[8,23,9,23]]}
["Table 1G: List of research surveys at sea"]
[null,null,null,null,null,null,null,null,null,null,null,null,null,null,null,null,null,null,null,null,null,null,null,null,null,"WP  years","2017-2019"]
[null,null,null,null,null,null,null,null,null,null,null,null,null,null,null,null,null,null,null,null,null,null,null,null,null,"AR year",2019]
["MS","Name of survey","Acronym ","Mandatory (Y/N)","Threshold (Y/N)","Agreed at RCG level","MS participation","Area(s)\ncovered","Period (Month)","Frequency","Days at sea planned","Type of sampling activities","Planned target ","Map","Relevant international planning group - RFMO/RFO/IO","International database","Comments","Type of MS participation","In case of financial participation, is payment done? (Y/N)","Days at sea achieved","Achieved target","Other data assimilations (Y/N)","Was the survey carried out within the official time period? (Y/N)","Was the survey carried out within the official survey area? (Y/N)","Indication if AR comments by MS are required concerning effort achieved","Indication if AR comments by MS are required concerning temporal and spatial coverage","AR Comments"]
["POL","Baltic International Trawl Survey","BITS-1Q","Y","N","Y","DEU - E; DNK - E; LTU - E; LVA - E; SWE - E","IIIb-d","February","Annual",28,"Fish Hauls",81,"Fig 1.1","ICES WGBIFS","DATRAS, TowData, ROSCOP","Number of planned days at sea and planned targets (no of hauls, Nm) may change between years according to recommendations from WGBIFS","P",null,24,69,"N","Y","Y",{"$f":"IF(((K5-T5)/K5*100)>[2]Settings!H4,\"x\",IF(((K5-T5)/K5*100)>[2]Settings!H4,\"x\",IF(T5=\"\",\"\",\"\")))","v":"x"},null,"Typing error in the WP - the acronim for this survey shaal read: BITS Q1. 24 days were planned for this survey in 2019 (see comment in column \"Q\"). All fish control hauls planned by WGBIFS were made."]
["POL","Baltic International Trawl Survey","BITS-4Q","Y","N","Y","DEU - E; DNK - E; EST - E; LTU - E; LVA - E; SWE - E","IIIb-d","November","Annual ",23,"Fish Hauls",60,"Fig 1.2","ICES WGBIFS","DATRAS, TowData, ROSCOP",null,"P",null,19,61,"N","Y","Y",null,null,"Typing error in the WP - the acronim for this survey shaal read: BITS Q4. 19 days were planned for this survey in 2019  (see comment in column \"Q\"). All fish control hauls planned by WGBIFS were made."]
["POL","Baltic International Acoustic Survey ","BIAS","Y","N","Y","DEU - E; DNK - C; EST - E; FIN - E; LTU - E; LVA - E; SWE - E","IIIb-d","September","Annual ",18,"Echo Nm",830,"Fig 1.3","ICES WGBIFS","BIAS-DB",null,"P",null,16,782,"N","Y","Y",null,null,"16 days, 750 Nm and 32 control hauls were planned for this survey in 2019 (see comment in column \"Q\"). Due to a heavy weather condition for a number of days, 27 out of 32 planned control hauls were made."]
[null,null,null,null,null,null,null,null,null,null,null,"Fish Hauls",35,null,null,null,null,null,null,null,27]
["POL","Sprat Acoustic Survey","SPRAS","Y","N","Y","DEU - E; EST - E; LTU - E; LVA - E","IIId","May","Annual ",12,"Echo Nm",830,"Fig 1.3","ICES WGBIFS","BASS-DB",null,"P",null,13,774,"N","Y","Y",null,null,"Despite the extention of the survey duration by one day, planned targets were not fully achieved due to a heavy weather condition for a number of days."]
[null,null,null,null,null,null,null,null,null,null,null,"Fish Hauls",35,null,null,null,null,null,null,null,31]

{"sheet":"Table1H Research survey data","index":7,"n_rows":20,"n_cols":13,"rows_kept":20,"cut":false,"hidden":false,"merged":[[4,0,8,0],[4,1,8,1],[4,2,8,2],[9,0,13,0],[9,1,13,1],[9,2,13,2],[14,0,16,0],[14,1,16,1],[14,2,16,2],[17,0,19,0],[17,1,19,1],[17,2,19,2]]}
["Table 1H: Research survey data collection and dissemination"]
[null,null,null,null,null,null,null,null,null,null,null,"WP  years","2017-2019"]
[null,null,null,null,null,null,null,null,null,null,null,"AR year",2019]
["MS","Name of survey","Acronym ","Type of data collected","Core/ Additional variable","Used as basis for advice (Y/N)","Comments","Was the sampling carried out? (Y/N/P)","Relevant International database","Was the data uploaded to the relevant database? (Y/N)","Other data assimilations? (Y/N)","Indication if AR comments are required by MS","AR comments"]
["POL","Baltic International Trawl Survey","BITS-1Q","Biological data for Cod 25-32 and Flounder 22-32","C","Y",null,"Y","DATRAS, TowData, ROSCOP","Y","N",{"$f":"IF(OR(H5=\"Y\",H5=\"\"),\"\",\"x\")","v":""},"Typing error in the WP - the acronim for this survey shaal read: BITS Q1"]
[null,null,null,"CTD by haul","A","N",null,"Y","ICES Oceanographic DB; ICES - IROC","Y","N",""]
[null,null,null,"Litter by haul","A","N",null,"Y","DATRAS ","Y","N",""]
[null,null,null,"Marine mammal observations","A","N",null,"Y","No existing database","N","N"]
[null,null,null,"stomach content","A","N",null,"Y","No existing database","N","N",""]
["POL","Baltic International Trawl Survey","BITS-4Q","Biological data for Cod 25-32 and Flounder 22-32","C","Y",null,"Y","DATRAS, TowData, ROSCOP","Y","N",{"$f":"IF(OR(H10=\"Y\",H10=\"\"),\"\",\"x\")","v":""},"Typing error in the WP - the acronim for this survey shaal read: BITS Q4"]
[null,null,null,"CTD by haul","A","N",null,"Y","ICES Oceanographic DB; ICES - IROC","Y","N",""]
[null,null,null,"Litter by haul","A","N",null,"Y","DATRAS ","Y","N",""]
[null,null,null,"Marine mammal observations","A","N",null,"Y","No existing database","N","N"]
[null,null,null,"stomach content","A","N",null,"Y","No existing database","N","N",""]
["POL","Baltic International Acoustic Survey ","BIAS","Biological data for Herring 25-29 and Sprat 22-32","C","Y",null,"Y","ICES Acoustic trawl surveys DB","Y","N",""]
[null,null,null,"CTD by haul","A","N",null,"Y","ICES Oceanographic DB; ICES - IROC","Y","N",""]
[null,null,null,"Marine mammal observations","A","N",null,"Y","No existing database","N","N",""]
["POL","Sprat Acoustic Survey","SPRAS","Biological data for Sprat 22-32","C","Y",null,"Y","ICES Acoustic trawl surveys DB","Y","N",""]
[null,null,null,"CTD by haul","A","N",null,"Y","ICES Oceanographic DB; ICES - IROC","Y","N",""]
[null,null,null,"Marine mammal observations","A","N",null,"Y","No existing database","N","N",""]

{"sheet":"Table2A Fishing activity variab","index":8,"n_rows":78,"n_cols":20,"rows_kept":78,"cut":false,"hidden":false,"merged":[]}
["Table 2A: Fishing activity variables data collection strategy "]
[null,null,null,null,null,null,null,null,null,null,null,null,null,null,null,null,null,null,"WP  years","2017-2019"]
[null,null,null,null,null,null,null,null,null,null,null,null,null,null,null,null,null,null,"AR year",2019]
["MS","Supra region ","Region","Variable Group ","Variable","Fishing technique ","Length class ","Metiers (level 6)","Data collected  under control regulation appropriate for scientific use (Y/N/I)","Type of data collected under control regulation used to calculate the estimates ","Expected coverage of data collected under control regulation (% of fishing trips)","Additional data collection (Y/N)","Data collection scheme ","Planned coverage of data collected under complementary data collection (% of fishing trips)","Comments","Data collected  under control regulation accessible for scientific use (Y/N/I)","Data source for complementary data collection","Achieved coverage of data collected under complementary data collection ","Response Rate (%)","AR comments"]
["POL","Baltic Sea; North Sea; Eastern Arctic; NAFO; Extended North-Western waters (Ices areas V, VI and VII) and Southern Western waters","Baltic Sea (ICES areas III b-d)","Effort","Days at sea, Hours fished, Fishing days, kW*Fishing days, GT*Fishing days, Number of trips, Number of fishing operations","Demersal trawlers and/or seiners","10-<12","All metiers","Y","Aggregated data from logbooks",100,"N","None","NA",null,"Y","NA","NA","NA","Length class in meters"]
["POL","Baltic Sea; North Sea; Eastern Arctic; NAFO; Extended North-Western waters (Ices areas V, VI and VII) and Southern Western waters","Baltic Sea (ICES areas III b-d)","Effort","Days at sea, Hours fished, Fishing days, kW*Fishing days, GT*Fishing days, Number of trips, Number of fishing operations","Demersal trawlers and/or seiners","12-<18","All metiers","Y","Aggregated data from logbooks, VMS data",100,"N","None","NA",null,"Y","NA","NA","NA","Length class in meters"]
["POL","Baltic Sea; North Sea; Eastern Arctic; NAFO; Extended North-Western waters (Ices areas V, VI and VII) and Southern Western waters","Baltic Sea (ICES areas III b-d)","Effort","Days at sea, Hours fished, Fishing days, kW*Fishing days, GT*Fishing days, Number of trips, Number of fishing operations","Demersal trawlers and/or seiners","18-<24","All metiers","Y","Aggregated data from logbooks, VMS data",100,"N","None","NA",null,"Y","NA","NA","NA","Length class in meters"]
["POL","Baltic Sea; North Sea; Eastern Arctic; NAFO; Extended North-Western waters (Ices areas V, VI and VII) and Southern Western waters","Baltic Sea (ICES areas III b-d)","Effort","Days at sea, Hours fished, Fishing days, kW*Fishing days, GT*Fishing days, Number of trips, Number of fishing operations","Demersal trawlers and/or seiners","24-<40","All metiers","Y","Aggregated data from logbooks, VMS data",100,"N","None","NA",null,"Y","NA","NA","NA","Length class in meters"]
["POL","Baltic Sea; North Sea; Eastern Arctic; NAFO; Extended North-Western waters (Ices areas V, VI and VII) and Southern Western waters","Baltic Sea (ICES areas III b-d)","Capacity","Number of vessels, GT, kW, Vessel Age","Demersal trawlers and/or seiners","10-<12","All metiers","Y","Aggregated data from logbooks, Fleet register",100,"N","None","NA",null,"Y","NA","NA","NA","Length class in meters"]
["POL","Baltic Sea; North Sea; Eastern Arctic; NAFO; Extended North-Western waters (Ices areas V, VI and VII) and Southern Western waters","Baltic Sea (ICES areas III b-d)","Capacity","Number of vessels, GT, kW, Vessel Age","Demersal trawlers and/or seiners","12-<18","All metiers","Y","Aggregated data from logbooks, Fleet register",100,"N","None","NA",null,"Y","NA","NA","NA","Length class in meters"]
["POL","Baltic Sea; North Sea; Eastern Arctic; NAFO; Extended North-Western waters (Ices areas V, VI and VII) and Southern Western waters","Baltic Sea (ICES areas III b-d)","Capacity","Number of vessels, GT, kW, Vessel Age","Demersal trawlers and/or seiners","18-<24","All metiers","Y","Aggregated data from logbooks, Fleet register",100,"N","None","NA",null,"Y","NA","NA","NA","Length class in meters"]
["POL","Baltic Sea; North Sea; Eastern Arctic; NAFO; Extended North-Western waters (Ices areas V, VI and VII) and Southern Western waters","Baltic Sea (ICES areas III b-d)","Capacity","Number of vessels, GT, kW, Vessel Age","Demersal trawlers and/or seiners","24-<40","All metiers","Y","Aggregated data from logbooks, Fleet register",100,"N","None","NA",null,"Y","NA","NA","NA","Length class in meters"]
["POL","Baltic Sea; North Sea; Eastern Arctic; NAFO; Extended North-Western waters (Ices areas V, VI and VII) and Southern Western waters","Baltic Sea (ICES areas III b-d)","Landings","Value of landings total and per commercial species, Live Weight of landings total and per species, Prices by commercial species","Demersal trawlers and/or seiners","10-<12","All metiers","Y","Aggregated data from logbooks and sales notes",100,"N","None","NA",null,"Y","NA","NA","NA","Length class in meters"]
["POL","Baltic Sea; North Sea; Eastern Arctic; NAFO; Extended North-Western waters (Ices areas V, VI and VII) and Southern Western waters","Baltic Sea (ICES areas III b-d)","Landings","Value of landings total and per commercial species, Live Weight of landings total and per species, Prices by commercial species","Demersal trawlers and/or seiners","12-<18","All metiers","Y","Aggregated data from logbooks and sales notes, VMS data",100,"N","None","NA",null,"Y","NA","NA","NA","Length class in meters"]
["POL","Baltic Sea; North Sea; Eastern Arctic; NAFO; Extended North-Western waters (Ices areas V, VI and VII) and Southern Western waters","Baltic Sea (ICES areas III b-d)","Landings","Value of landings total and per commercial species, Live Weight of landings total and per species, Prices by commercial species","Demersal trawlers and/or seiners","18-<24","All metiers","Y","Aggregated data from logbooks and sales notes, VMS data",100,"N","None","NA",null,"Y","NA","NA","NA","Length class in meters"]
["POL","Baltic Sea; North Sea; Eastern Arctic; NAFO; Extended North-Western waters (Ices areas V, VI and VII) and Southern Western waters","Baltic Sea (ICES areas III b-d)","Landings","Value of landings total and per commercial species, Live Weight of landings total and per species, Prices by commercial species","Demersal trawlers and/or seiners","24-<40","All metiers","Y","Aggregated data from logbooks and sales notes, VMS data",100,"N","None","NA",null,"Y","NA","NA","NA","Length class in meters"]
["POL","Baltic Sea; North Sea; Eastern Arctic; NAFO; Extended North-Western waters (Ices areas V, VI and VII) and Southern Western waters","Baltic Sea (ICES areas III b-d)","Effort","Days at sea, Hours fished, Fishing days, kW*Fishing days, GT*Fishing days, Number of trips, Number of fishing operations","Pelagic trawlers","12-<18","All metiers","Y","Aggregated data from logbooks, VMS data",100,"N","None","NA",null,"Y","NA","NA","NA","Length class in meters"]
["POL","Baltic Sea; North Sea; Eastern Arctic; NAFO; Extended North-Western waters (Ices areas V, VI and VII) and Southern Western waters","Baltic Sea (ICES areas III b-d)","Effort","Days at sea, Hours fished, Fishing days, kW*Fishing days, GT*Fishing days, Number of trips, Number of fishing operations","Pelagic trawlers","18-<24","All metiers","Y","Aggregated data from logbooks, VMS data",100,"N","None","NA",null,"Y","NA","NA","NA","Length class in meters"]
["POL","Baltic Sea; North Sea; Eastern Arctic; NAFO; Extended North-Western waters (Ices areas V, VI and VII) and Southern Western waters","Baltic Sea (ICES areas III b-d)","Effort","Days at sea, Hours fished, Fishing days, kW*Fishing days, GT*Fishing days, Number of trips, Number of fishing operations","Pelagic trawlers","24-<40","All metiers","Y","Aggregated data from logbooks, VMS data",100,"N","None","NA",null,"Y","NA","NA","NA","Length class in meters"]
["POL","Baltic Sea; North Sea; Eastern Arctic; NAFO; Extended North-Western waters (Ices areas V, VI and VII) and Southern Western waters","Baltic Sea (ICES areas III b-d)","Capacity","Number of vessels, GT, kW, Vessel Age","Pelagic trawlers","12-<18","All metiers","Y","Aggregated data from logbooks, Fleet register",100,"N","None","NA",null,"Y","NA","NA","NA","Length class in meters"]
["POL","Baltic Sea; North Sea; Eastern Arctic; NAFO; Extended North-Western waters (Ices areas V, VI and VII) and Southern Western waters","Baltic Sea (ICES areas III b-d)","Capacity","Number of vessels, GT, kW, Vessel Age","Pelagic trawlers","18-<24","All metiers","Y","Aggregated data from logbooks, Fleet register",100,"N","None","NA",null,"Y","NA","NA","NA","Length class in meters"]
["POL","Baltic Sea; North Sea; Eastern Arctic; NAFO; Extended North-Western waters (Ices areas V, VI and VII) and Southern Western waters","Baltic Sea (ICES areas III b-d)","Capacity","Number of vessels, GT, kW, Vessel Age","Pelagic trawlers","24-<40","All metiers","Y","Aggregated data from logbooks, Fleet register",100,"N","None","NA",null,"Y","NA","NA","NA","Length class in meters"]
["POL","Baltic Sea; North Sea; Eastern Arctic; NAFO; Extended North-Western waters (Ices areas V, VI and VII) and Southern Western waters","Baltic Sea (ICES areas III b-d)","Landings","Value of landings total and per commercial species, Live Weight of landings total and per species, Prices by commercial species","Pelagic trawlers","12-<18","All metiers","Y","Aggregated data from logbooks and sales notes, VMS data",100,"N","None","NA",null,"Y","NA","NA","NA","Length class in meters"]
["POL","Baltic Sea; North Sea; Eastern Arctic; NAFO; Extended North-Western waters (Ices areas V, VI and VII) and Southern Western waters","Baltic Sea (ICES areas III b-d)","Landings","Value of landings total and per commercial species, Live Weight of landings total and per species, Prices by commercial species","Pelagic trawlers","18-<24","All metiers","Y","Aggregated data from logbooks and sales notes, VMS data",100,"N","None","NA",null,"Y","NA","NA","NA","Length class in meters"]
["POL","Baltic Sea; North Sea; Eastern Arctic; NAFO; Extended North-Western waters (Ices areas V, VI and VII) and Southern Western waters","Baltic Sea (ICES areas III b-d)","Landings","Value of landings total and per commercial species, Live Weight of landings total and per species, Prices by commercial species","Pelagic trawlers","24-<40","All metiers","Y","Aggregated data from logbooks and sales notes, VMS data",100,"N","None","NA",null,"Y","NA","NA","NA","Length class in meters"]
["POL","Baltic Sea; North Sea; Eastern Arctic; NAFO; Extended North-Western waters (Ices areas V, VI and VII) and Southern Western waters","Baltic Sea (ICES areas III b-d)","Effort","Days at sea, Hours fished, Fishing days, kW*Fishing days, GT*Fishing days, Number of trips, Number of nets","Drift and/or fixed netters","0-<10","All metiers","Y","Data from monthly catch reports",100,"N","None","NA","Mesh size information is missing which causes difficulties in metier identification.","Y","NA","NA","NA","Length class in meters"]
["POL","Baltic Sea; North Sea; Eastern Arctic; NAFO; Extended North-Western waters (Ices areas V, VI and VII) and Southern Western waters","Baltic Sea (ICES areas III b-d)","Effort","Days at sea, Hours fished, Fishing days, kW*Fishing days, GT*Fishing days, Number of trips, Number of fishing operations, Number of nets","Drift and/or fixed netters","10-<12","All metiers","Y","Aggregated data from logbooks",100,"N","None","NA",null,"Y","NA","NA","NA","Length class in meters"]
["POL","Baltic Sea; North Sea; Eastern Arctic; NAFO; Extended North-Western waters (Ices areas V, VI and VII) and Southern Western waters","Baltic Sea (ICES areas III b-d)","Effort","Days at sea, Hours fished, Fishing days, kW*Fishing days, GT*Fishing days, Number of trips, Number of fishing operations, Number of nets","Drift and/or fixed netters","12-<18","All metiers","Y","Aggregated data from logbooks, VMS data",100,"N","None","NA",null,"Y","NA","NA","NA","Length class in meters"]
["POL","Baltic Sea; North Sea; Eastern Arctic; NAFO; Extended North-Western waters (Ices areas V, VI and VII) and Southern Western waters","Baltic Sea (ICES areas III b-d)","Capacity","Number of vessels, GT, kW, Vessel Age","Drift and/or fixed netters","0-<10","All metiers","Y","Data from monthly catch reports, Fleet register",100,"N","None","NA","Mesh size information is missing which causes difficulties in metier identification.","Y","NA","NA","NA","Length class in meters"]
["POL","Baltic Sea; North Sea; Eastern Arctic; NAFO; Extended North-Western waters (Ices areas V, VI and VII) and Southern Western waters","Baltic Sea (ICES areas III b-d)","Capacity","Number of vessels, GT, kW, Vessel Age","Drift and/or fixed netters","10-<12","All metiers","Y","Aggregated data from logbooks, Fleet register",100,"N","None","NA",null,"Y","NA","NA","NA","Length class in meters"]
["POL","Baltic Sea; North Sea; Eastern Arctic; NAFO; Extended North-Western waters (Ices areas V, VI and VII) and Southern Western waters","Baltic Sea (ICES areas III b-d)","Capacity","Number of vessels, GT, kW, Vessel Age","Drift and/or fixed netters","12-<18","All metiers","Y","Aggregated data from logbooks, Fleet register",100,"N","None","NA",null,"Y","NA","NA","NA","Length class in meters"]
["POL","Baltic Sea; North Sea; Eastern Arctic; NAFO; Extended North-Western waters (Ices areas V, VI and VII) and Southern Western waters","Baltic Sea (ICES areas III b-d)","Landings","Value of landings total and per commercial species, Live Weight of landings total and per species, Prices by commercial species","Drift and/or fixed netters","0-<10","All metiers","Y","Data from monthly catch reports ad sales notes",100,"N","None","NA","Mesh size information is missing which causes difficulties in metier identification.","Y","NA","NA","NA","Limited access to sales notes which are stored in a paper form. "]
["POL","Baltic Sea; North Sea; Eastern Arctic; NAFO; Extended North-Western waters (Ices areas V, VI and VII) and Southern Western waters","Baltic Sea (ICES areas III b-d)","Landings","Value of landings total and per commercial species, Live Weight of landings total and per species, Prices by commercial species","Drift and/or fixed netters","10-<12","All metiers","Y","Aggregated data from logbooks and sales notes",100,"N","None","NA",null,"Y","NA","NA","NA","Length class in meters"]
["POL","Baltic Sea; North Sea; Eastern Arctic; NAFO; Extended North-Western waters (Ices areas V, VI and VII) and Southern Western waters","Baltic Sea (ICES areas III b-d)","Landings","Value of landings total and per commercial species, Live Weight of landings total and per species, Prices by commercial species","Drift and/or fixed netters","12-<18","All metiers","Y","Aggregated data from logbooks and sales notes, VMS data",100,"N","None","NA",null,"Y","NA","NA","NA","Length class in meters"]
["POL","Baltic Sea; North Sea; Eastern Arctic; NAFO; Extended North-Western waters (Ices areas V, VI and VII) and Southern Western waters","Baltic Sea (ICES areas III b-d)","Effort","Days at sea, Hours fished, Fishing days, kW*Fishing days, GT*Fishing days, Number of trips, Number of pots/traps","Vessels using Pots and/or traps","0-<10","All metiers","Y","Data from monthly catch reports",100,"N","None","NA","Mesh size information is missing which causes difficulties in metier identification.","Y","NA","NA","NA","Length class in meters"]
["POL","Baltic Sea; North Sea; Eastern Arctic; NAFO; Extended North-Western waters (Ices areas V, VI and VII) and Southern Western waters","Baltic Sea (ICES areas III b-d)","Effort","Days at sea, Hours fished, Fishing days, kW*Fishing days, GT*Fishing days, Number of trips, Number of fishing operations, Number of pots/traps","Vessels using Pots and/or traps","10-<12","All metiers","Y","Aggregated data from logbooks",100,"N","None","NA",null,"Y","NA","NA","NA","Length class in meters"]
["POL","Baltic Sea; North Sea; Eastern Arctic; NAFO; Extended North-Western waters (Ices areas V, VI and VII) and Southern Western waters","Baltic Sea (ICES areas III b-d)","Capacity","Number of vessels, GT, kW, Vessel Age","Vessels using Pots and/or traps","0-<10","All metiers","Y","Data from monthly catch reports, Fleet register",100,"N","None","NA","Mesh size information is missing which causes difficulties in metier identification.","Y","NA","NA","NA","Length class in meters"]
["POL","Baltic Sea; North Sea; Eastern Arctic; NAFO; Extended North-Western waters (Ices areas V, VI and VII) and Southern Western waters","Baltic Sea (ICES areas III b-d)","Capacity","Number of vessels, GT, kW, Vessel Age","Vessels using Pots and/or traps","10-<12","All metiers","Y","Aggregated data from logbooks, Fleet register",100,"N","None","NA",null,"Y","NA","NA","NA","Length class in meters"]
["POL","Baltic Sea; North Sea; Eastern Arctic; NAFO; Extended North-Western waters (Ices areas V, VI and VII) and Southern Western waters","Baltic Sea (ICES areas III b-d)","Landings","Value of landings total and per commercial species, Live Weight of landings total and per species, Prices by commercial species","Vessels using Pots and/or traps","0-<10","All metiers","Y","Data from monthly catch reports ad sales notes",100,"N","None","NA","Mesh size information is missing which causes difficulties in metier identification.","Y","NA","NA","NA","Length class in meters. Limited access to sales notes which are stored in a paper form."]
["POL","Baltic Sea; North Sea; Eastern Arctic; NAFO; Extended North-Western waters (Ices areas V, VI and VII) and Southern Western waters","Baltic Sea (ICES areas III b-d)","Landings","Value of landings total and per commercial species, Live Weight of landings total and per species, Prices by commercial species","Vessels using Pots and/or traps","10-<12","All metiers","Y","Aggregated data from logbooks and sales notes",100,"N","None","NA",null,"Y","NA","NA","NA","Length class in meters"]
["POL","Baltic Sea; North Sea; Eastern Arctic; NAFO; Extended North-Western waters (Ices areas V, VI and VII) and Southern Western waters","Baltic Sea (ICES areas III b-d)","Effort","Days at sea, Hours fished, Fishing days, kW*Fishing days, GT*Fishing days, Number of trips, Number of hooks","Vessels using hooks","0-<10","All metiers","Y","Data from monthly catch reports",100,"N","None","NA","Mesh size information is missing which causes difficulties in metier identification.","Y","NA","NA","NA","Length class in meters"]
["POL","Baltic Sea; North Sea; Eastern Arctic; NAFO; Extended North-Western waters (Ices areas V, VI and VII) and Southern Western waters","Baltic Sea (ICES areas III b-d)","Effort","Days at sea, Hours fished, Fishing days, kW*Fishing days, GT*Fishing days, Number of trips, Number of fishing operations, Number of hooks","Vessels using hooks","10-<12","All metiers","Y","Aggregated data from logbooks",100,"N","None","NA",null,"Y","NA","NA","NA","Length class in meters"]
["POL","Baltic Sea; North Sea; Eastern Arctic; NAFO; Extended North-Western waters (Ices areas V, VI and VII) and Southern Western waters","Baltic Sea (ICES areas III b-d)","Effort","Days at sea, Hours fished, Fishing days, kW*Fishing days, GT*Fishing days, Number of trips, Number of fishing operations, Number of hooks","Vessels using hooks","12-<18","All metiers","Y","Aggregated data from logbooks, VMS data",100,"N","None","NA",null,"Y","NA","NA","NA","Segment did not exist in 2018. Length class in meters"]
["POL","Baltic Sea; North Sea; Eastern Arctic; NAFO; Extended North-Western waters (Ices areas V, VI and VII) and Southern Western waters","Baltic Sea (ICES areas III b-d)","Effort","Days at sea, Hours fished, Fishing days, kW*Fishing days, GT*Fishing days, Number of trips, Number of fishing operations, Number of hooks","Vessels using hooks","18-<24","All metiers","Y","Aggregated data from logbooks, VMS data",100,"N","None","NA",null,"Y","NA","NA","NA","Segment did not exist in 2018. Length class in meters"]
["POL","Baltic Sea; North Sea; Eastern Arctic; NAFO; Extended North-Western waters (Ices areas V, VI and VII) and Southern Western waters","Baltic Sea (ICES areas III b-d)","Capacity","Number of vessels, GT, kW, Vessel Age","Vessels using hooks","0-<10","All metiers","Y","Data from monthly catch reports, Fleet register",100,"N","None","NA","Mesh size information is missing which causes difficulties in metier identification.","Y","NA","NA","NA","Length class in meters"]
["POL","Baltic Sea; North Sea; Eastern Arctic; NAFO; Extended North-Western waters (Ices areas V, VI and VII) and Southern Western waters","Baltic Sea (ICES areas III b-d)","Capacity","Number of vessels, GT, kW, Vessel Age","Vessels using hooks","10-<12","All metiers","Y","Aggregated data from logbooks, Fleet register",100,"N","None","NA",null,"Y","NA","NA","NA","Length class in meters"]
["POL","Baltic Sea; North Sea; Eastern Arctic; NAFO; Extended North-Western waters (Ices areas V, VI and VII) and Southern Western waters","Baltic Sea (ICES areas III b-d)","Capacity","Number of vessels, GT, kW, Vessel Age","Vessels using hooks","12-<18","All metiers","Y","Aggregated data from logbooks, Fleet register",100,"N","None","NA",null,"Y","NA","NA","NA","Segment did not exist in 2018. Length class in meters"]
["POL","Baltic Sea; North Sea; Eastern Arctic; NAFO; Extended North-Western waters (Ices areas V, VI and VII) and Southern Western waters","Baltic Sea (ICES areas III b-d)","Capacity","Number of vessels, GT, kW, Vessel Age","Vessels using hooks","18-<24","All metiers","Y","Aggregated data from logbooks, Fleet register",100,"N","None","NA",null,"Y","NA","NA","NA","Segment did not exist in 2018. Length class in meters"]
["POL","Baltic Sea; North Sea; Eastern Arctic; NAFO; Extended North-Western waters (Ices areas V, VI and VII) and Southern Western waters","Baltic Sea (ICES areas III b-d)","Landings","Value of landings total and per commercial species, Live Weight of landings total and per species, Prices by commercial species","Vessels using hooks","0-<10","All metiers","Y","Data from monthly catch reports ad sales notes",100,"N","None","NA","Mesh size information is missing which causes difficulties in metier identification.","Y","NA","NA","NA","Length class in meters"]
["POL","Baltic Sea; North Sea; Eastern Arctic; NAFO; Extended North-Western waters (Ices areas V, VI and VII) and Southern Western waters","Baltic Sea (ICES areas III b-d)","Landings","Value of landings total and per commercial species, Live Weight of landings total and per species, Prices by commercial species","Vessels using hooks","10-<12","All metiers","Y","Aggregated data from logbooks and sales notes",100,"N","None","NA",null,"Y","NA","NA","NA","Length class in meters"]
["POL","Baltic Sea; North Sea; Eastern Arctic; NAFO; Extended North-Western waters (Ices areas V, VI and VII) and Southern Western waters","Baltic Sea (ICES areas III b-d)","Landings","Value of landings total and per commercial species, Live Weight of landings total and per species, Prices by commercial species","Vessels using hooks","12-<18","All metiers","Y","Aggregated data from logbooks and sales notes, VMS data",100,"N","None","NA",null,"Y","NA","NA","NA","Segment did not exist in 2018. Length class in meters"]
["POL","Baltic Sea; North Sea; Eastern Arctic; NAFO; Extended North-Western waters (Ices areas V, VI and VII) and Southern Western waters","Baltic Sea (ICES areas III b-d)","Landings","Value of landings total and per commercial species, Live Weight of landings total and per species, Prices by commercial species","Vessels using hooks","18-<24","All metiers","Y","Aggregated data from logbooks and sales notes, VMS data",100,"N","None","NA",null,"Y","NA","NA","NA","Segment did not exist in 2018. Length class in meters"]
["POL","Baltic Sea; North Sea; Eastern Arctic; NAFO; Extended North-Western waters (Ices areas V, VI and VII) and Southern Western waters","Eastern Arctic (ICES areas I and II)","Effort","Days at sea, Hours fished, Fishing days, kW*Fishing days, GT*Fishing days, Number of trips, Number of fishing operations","Demersal trawlers and/or seiners","40 m or larger","All metiers","Y","Aggregated data from logbooks, VMS data",100,"N","None","NA",null,"Y","NA","NA","NA"]
["POL","Baltic Sea; North Sea; Eastern Arctic; NAFO; Extended North-Western waters (Ices areas V, VI and VII) and Southern Western waters","Eastern Arctic (ICES areas I and II)","Capacity","Number of vessels, GT, kW, Vessel Age","Demersal trawlers and/or seiners","40 m or larger","All metiers","Y","Aggregated data from logbooks, Fleet register",100,"N","None","NA",null,"Y","NA","NA","NA"]
["POL","Baltic Sea; North Sea; Eastern Arctic; NAFO; Extended North-Western waters (Ices areas V, VI and VII) and Southern Western waters","Eastern Arctic (ICES areas I and II)","Landings","Live Weight of landings total and per species","Demersal trawlers and/or seiners","40 m or larger","All metiers","Y","Aggregated data from logbooks and sales notes, VMS data",100,"N","None","NA",null,"Y","NA","NA","NA"]
["POL","Other regions","CECAF","Effort","Days at sea, Hours fished, Fishing days, kW*Fishing days, GT*Fishing days, Number of trips, Number of fishing operations","Pelagic trawlers","40 m or larger","All metiers","Y","Aggregated data from logbooks, VMS data",100,"N","None","NA",null,"Y","NA","NA","NA"]
["POL","Other regions","CECAF","Capacity","Number of vessels, GT, kW, Vessel Age","Pelagic trawlers","40 m or larger","All metiers","Y","Aggregated data from logbooks, Fleet register",100,"N","None","NA",null,"Y","NA","NA","NA"]
["POL","Other regions","CECAF","Landings","Live Weight of landings total and per species","Pelagic trawlers","40 m or larger","All metiers","Y","Aggregated data from logbooks and sales notes, VMS data",100,"N","None","NA",null,"Y","NA","NA","NA"]
["POL","Other regions","SPRFMO","Effort","Days at sea, Hours fished, Fishing days, kW*Fishing days, GT*Fishing days, Number of trips, Number of fishing operations","Pelagic trawlers","40 m or larger","All metiers","Y","Aggregated data from logbooks, VMS data",100,"N","None","NA",null,"Y","NA","NA","NA"]
["POL","Other regions","SPRFMO","Capacity","Number of vessels, GT, kW, Vessel Age","Pelagic trawlers","40 m or larger","All metiers","Y","Aggregated data from logbooks, Fleet register",100,"N","None","NA",null,"Y","NA","NA","NA"]
["POL","Other regions","SPRFMO","Landings","Live Weight of landings total and per species","Pelagic trawlers","40 m or larger","All metiers","Y","Aggregated data from logbooks and sales notes, VMS data",100,"N","None","NA",null,"Y","NA","NA","NA"]
["POL","Baltic Sea; North Sea; Eastern Arctic; NAFO; Extended North-Western waters (Ices areas V, VI and VII) and Southern Western waters","Baltic Sea (ICES areas III b-d)","Capacity","Number of vessels, GT, kW, Vessel Age","Inactive","0-<10 m","NA","Y","Fleet register","100","N","None","NA",null,"Y","NA","NA","NA","New row"]
["POL","Baltic Sea; North Sea; Eastern Arctic; NAFO; Extended North-Western waters (Ices areas V, VI and VII) and Southern Western waters","Baltic Sea (ICES areas III b-d)","Capacity","Number of vessels, GT, kW, Vessel Age","Inactive","10-<12 m","NA","Y","Fleet register","100","N","None","NA",null,"Y","NA","NA","NA","New row"]
["POL","Baltic Sea; North Sea; Eastern Arctic; NAFO; Extended North-Western waters (Ices areas V, VI and VII) and Southern Western waters","Baltic Sea (ICES areas III b-d)","Capacity","Number of vessels, GT, kW, Vessel Age","Inactive","12-<18 m","NA","Y","Fleet register","100","N","None","NA",null,"Y","NA","NA","NA","New row"]
["POL","Baltic Sea; North Sea; Eastern Arctic; NAFO; Extended North-Western waters (Ices areas V, VI and VII) and Southern Western waters","Baltic Sea (ICES areas III b-d)","Capacity","Number of vessels, GT, kW, Vessel Age","Inactive","18-<24 m","NA","Y","Fleet register","100","N","None","NA",null,"Y","NA","NA","NA","New row"]
["POL","Baltic Sea; North Sea; Eastern Arctic; NAFO; Extended North-Western waters (Ices areas V, VI and VII) and Southern Western waters","Baltic Sea (ICES areas III b-d)","Capacity","Number of vessels, GT, kW, Vessel Age","Inactive","24-<40 m","NA","Y","Fleet register","100","N","None","NA",null,"Y","NA","NA","NA","New row"]
["POL","Baltic Sea; North Sea; Eastern Arctic; NAFO; Extended North-Western waters (Ices areas V, VI and VII) and Southern Western waters","North Sea (ICES areas IIIa and IV)","Effort","Days at sea, Hours fished, Fishing days, kW*Fishing days, GT*Fishing days, Number of trips, Number of fishing operations, Number of pots/traps","Vessels using Pots and/or traps","24-<40 m","All metiers","Y","Aggregated data from logbooks, VMS data",100,"N","None","NA",null,"Y","NA","NA","NA","New row. Segment was not included in WP"]
["POL","Baltic Sea; North Sea; Eastern Arctic; NAFO; Extended North-Western waters (Ices areas V, VI and VII) and Southern Western waters","North Sea (ICES areas IIIa and IV)","Capacity","Number of vessels, GT, kW, Vessel Age","Vessels using Pots and/or traps","24-<40 m","All metiers","Y","Fleet register",100,"N","None","NA",null,"Y","NA","NA","NA","New row. Segment was not included in WP"]
["POL","Baltic Sea; North Sea; Eastern Arctic; NAFO; Extended North-Western waters (Ices areas V, VI and VII) and Southern Western waters","North Sea (ICES areas IIIa and IV)","Landings","Value of landings total and per commercial species, Live Weight of landings total and per species, Prices by commercial species","Vessels using Pots and/or traps","24-<40 m","All metiers","Y","Aggregated data from logbooks and sales notes, VMS data",100,"N","None","NA",null,"Y","NA","NA","NA","New row. Segment was not included in WP"]
["POL","Baltic Sea; North Sea; Eastern Arctic; NAFO; Extended North-Western waters (Ices areas V, VI and VII) and Southern Western waters","Baltic Sea (ICES areas III b-d)","Effort","Days at sea, Hours fished, Fishing days, kW*Fishing days, GT*Fishing days, Number of trips, Number of fishing operations","Vessels using active and passive gears","12-<18 m","All metiers","Y","Aggregated data from logbooks, VMS data",100,"N","None","NA",null,"Y","NA","NA","NA","New row. Segment was not included in WP"]
["POL","Baltic Sea; North Sea; Eastern Arctic; NAFO; Extended North-Western waters (Ices areas V, VI and VII) and Southern Western waters","Baltic Sea (ICES areas III b-d)","Capacity","Number of vessels, GT, kW, Vessel Age","Vessels using active and passive gears","12-<18 m","All metiers","Y","Aggregated data from logbooks, Fleet register",100,"N","None","NA",null,"Y","NA","NA","NA","New row. Segment was not included in WP"]
["POL","Baltic Sea; North Sea; Eastern Arctic; NAFO; Extended North-Western waters (Ices areas V, VI and VII) and Southern Western waters","Baltic Sea (ICES areas III b-d)","Landings","Value of landings total and per commercial species, Live Weight of landings total and per species, Prices by commercial species","Vessels using active and passive gears","12-<18 m","All metiers","Y","Aggregated data from logbooks and sales notes, VMS data",100,"N","None","NA",null,"Y","NA","NA","NA","New row. Segment was not included in WP"]
["POL","Baltic Sea; North Sea; Eastern Arctic; NAFO; Extended North-Western waters (Ices areas V, VI and VII) and Southern Western waters","Baltic Sea (ICES areas III b-d)","Effort","Days at sea, Hours fished, Fishing days, kW*Fishing days, GT*Fishing days, Number of trips, Number of fishing operations","Vessels using active and passive gears","18-<24 m","All metiers","Y","Aggregated data from logbooks, VMS data",100,"N","None","NA",null,"Y","NA","NA","NA","New row. Segment was not included in WP"]
["POL","Baltic Sea; North Sea; Eastern Arctic; NAFO; Extended North-Western waters (Ices areas V, VI and VII) and Southern Western waters","Baltic Sea (ICES areas III b-d)","Capacity","Number of vessels, GT, kW, Vessel Age","Vessels using active and passive gears","18-<24 m","All metiers","Y","Aggregated data from logbooks, Fleet register",100,"N","None","NA",null,"Y","NA","NA","NA","New row. Segment was not included in WP"]
["POL","Baltic Sea; North Sea; Eastern Arctic; NAFO; Extended North-Western waters (Ices areas V, VI and VII) and Southern Western waters","Baltic Sea (ICES areas III b-d)","Landings","Value of landings total and per commercial species, Live Weight of landings total and per species, Prices by commercial species","Vessels using active and passive gears","18-<24 m","All metiers","Y","Aggregated data from logbooks and sales notes, VMS data",100,"N","None","NA",null,"Y","NA","NA","NA","New row. Segment was not included in WP"]
["POL","Baltic Sea; North Sea; Eastern Arctic; NAFO; Extended North-Western waters (Ices areas V, VI and VII) and Southern Western waters","Baltic Sea (ICES areas III b-d)","Effort","Days at sea, Hours fished, Fishing days, kW*Fishing days, GT*Fishing days, Number of trips, Number of fishing operations, Number of nets","Drift and/or fixed netters","18-<24 m","All metiers","Y","Aggregated data from logbooks, VMS data",100,"N","None","NA",null,"Y","NA","NA","NA","New row. Segment was not included in WP"]
["POL","Baltic Sea; North Sea; Eastern Arctic; NAFO; Extended North-Western waters (Ices areas V, VI and VII) and Southern Western waters","Baltic Sea (ICES areas III b-d)","Capacity","Number of vessels, GT, kW, Vessel Age","Drift and/or fixed netters","18-<24 m","All metiers","Y","Aggregated data from logbooks, Fleet register",100,"N","None","NA",null,"Y","NA","NA","NA","New row. Segment was not included in WP"]
["POL","Baltic Sea; North Sea; Eastern Arctic; NAFO; Extended North-Western waters (Ices areas V, VI and VII) and Southern Western waters","Baltic Sea (ICES areas III b-d)","Landings","Value of landings total and per commercial species, Live Weight of landings total and per species, Prices by commercial species","Drift and/or fixed netters","18-<24 m","All metiers","Y","Aggregated data from logbooks and sales notes, VMS data",100,"N","None","NA",null,"Y","NA","NA","NA","New row. Segment was not included in WP"]

{"sheet":"Table3A  Pop segment fisheries","index":9,"n_rows":409,"n_cols":18,"rows_kept":409,"cut":false,"hidden":false,"merged":[]}
["Table 3A: Population segments for collection of economic and social data for fisheries"]
[null,null,null,null,null,null,null,null,null,null,null,null,null,null,null,null,"WP  years","2017-2019"]
[null,null,null,null,null,null,null,null,null,null,null,null,null,null,null,null,"AR year",2019]
["MS","Supra region ","Fishing technique ","Length class ","Cluster Name","Type of variables (E/S)","Variable","Data Source","Type of data collection scheme ","Frequency","Planned sample rate % ","Comments","Frame population","Achieved sample number","Achieved Sample Rate %","Response Rate %","Achieved Sample no/Planned sample no.","AR Comments"]
["POL","Baltic Sea, North Sea and Eastern Arctic, and North Atlantic","Passive gears","00-<10 m","NA","E","Gross value of landings","landing declaration, sales notes","A","Every Year",100,null,510,510,{"$f":"N5/M5","v":1},{"$f":"N5/M5","v":1},{"$f":"N5/(M5*K5/100)","v":1},"Typing error in WP - name in column C should read: \"Vessels using Polyvalent ‘passive’ gears only\". Additional Data Source - first sale documents. Includes vessels using hooks, fixed netters, vessels using pots and traps and vessels using Polyvalent passive gears. "]
["POL","Baltic Sea, North Sea and Eastern Arctic, and North Atlantic","Passive gears","00-<10 m","NA","E","Income from leasing out quota or other fishing rights","not relevant",null,null,null,null,"N/A","N/A","N/A","N/A","N/A"]
["POL","Baltic Sea, North Sea and Eastern Arctic, and North Atlantic","Passive gears","00-<10 m","NA","E","Other income","questionnaires","A","Every Year",100,null,510,248,{"$f":"N7/M7","v":0.48627450980392156},{"$f":"N7/M7","v":0.48627450980392156},0.48627450980392156,"Typing error in WP - name in column C should read: \"Vessels using Polyvalent ‘passive’ gears only\". Includes vessels using hooks, fixed netters, vessels using pots and traps and vessels using Polyvalent passive gears. Achieved Sample Rate lower than expected due to low no of responses "]
["POL","Baltic Sea, North Sea and Eastern Arctic, and North Atlantic","Passive gears","00-<10 m","NA","E","Wages and salaries of crew","questionnaires","A","Every Year",100,null,510,248,0.48627450980392156,{"$f":"N8/M8","v":0.48627450980392156},0.48627450980392156,"Typing error in WP - name in column C should read: \"Vessels using Polyvalent ‘passive’ gears only\". Wrong variable name in WP - should read: \"Personnel cost\". Includes vessels using hooks, fixed netters, vessels using pots and traps and vessels using Polyvalent passive gears. Achieved Sample Rate lower than expected due to low no of responses "]
["POL","Baltic Sea, North Sea and Eastern Arctic, and North Atlantic","Passive gears","00-<10 m","NA","E","Imputed value of unpaid labour","estimation","D","Every Year",100,null,510,248,0.48627450980392156,0.48627450980392156,0.48627450980392156,"Typing error in WP - name in column C should read: \"Vessels using Polyvalent ‘passive’ gears only\". Wrong variable name in WP - should read: \"Value of unpaid labour\". Includes vessels using hooks, fixed netters, vessels using pots and traps and vessels using Polyvalent passive gears. Achieved Sample Rate lower than expected due to low no of responses "]
["POL","Baltic Sea, North Sea and Eastern Arctic, and North Atlantic","Passive gears","00-<10 m","NA","E","Energy costs","questionnaires","A","Every Year",100,null,510,248,0.48627450980392156,0.48627450980392156,0.48627450980392156,"Typing error in WP - name in column C should read: \"Vessels using Polyvalent ‘passive’ gears only\". Includes vessels using hooks, fixed netters, vessels using pots and traps and vessels using Polyvalent passive gears. Achieved Sample Rate lower than expected due to low no of responses "]
["POL","Baltic Sea, North Sea and Eastern Arctic, and North Atlantic","Passive gears","00-<10 m","NA","E","Repair and maintenance costs","questionnaires","A","Every Year",100,null,510,248,0.48627450980392156,0.48627450980392156,0.48627450980392156,"Typing error in WP - name in column C should read: \"Vessels using Polyvalent ‘passive’ gears only\". Includes vessels using hooks, fixed netters, vessels using pots and traps and vessels using Polyvalent passive gears. Achieved Sample Rate lower than expected due to low no of responses "]
["POL","Baltic Sea, North Sea and Eastern Arctic, and North Atlantic","Passive gears","00-<10 m","NA","E","Variable costs","questionnaires","A","Every Year",100,null,510,248,0.48627450980392156,0.48627450980392156,0.48627450980392156,"Typing error in WP - name in column C should read: \"Vessels using Polyvalent ‘passive’ gears only\". Includes vessels using hooks, fixed netters, vessels using pots and traps and vessels using Polyvalent passive gears. Achieved Sample Rate lower than expected due to low no of responses "]
["POL","Baltic Sea, North Sea and Eastern Arctic, and North Atlantic","Passive gears","00-<10 m","NA","E","Non-variable costs","questionnaires","A","Every Year",100,null,510,248,0.48627450980392156,0.48627450980392156,0.48627450980392156,"Typing error in WP - name in column C should read: \"Vessels using Polyvalent ‘passive’ gears only\". Includes vessels using hooks, fixed netters, vessels using pots and traps and vessels using Polyvalent passive gears. Achieved Sample Rate lower than expected due to low no of responses "]
["POL","Baltic Sea, North Sea and Eastern Arctic, and North Atlantic","Passive gears","00-<10 m","NA","E","Lease/rental payments for quota or other fishing rights","questionnaires","A","Every Year",100,null,510,248,0.48627450980392156,0.48627450980392156,0.48627450980392156,"Typing error in WP - name in column C should read: \"Vessels using Polyvalent ‘passive’ gears only\". Includes vessels using hooks, fixed netters, vessels using pots and traps and vessels using Polyvalent passive gears. Achieved Sample Rate lower than expected due to low no of responses "]
["POL","Baltic Sea, North Sea and Eastern Arctic, and North Atlantic","Passive gears","00-<10 m","NA","E","Operating Subsidies","administrative records","A","Every Year",100,null,510,248,0.48627450980392156,0.48627450980392156,0.48627450980392156,"Typing error in WP - name in column C should read: \"Vessels using Polyvalent ‘passive’ gears only\". Includes vessels using hooks, fixed netters, vessels using pots and traps and vessels using Polyvalent passive gears. Achieved Sample Rate lower than expected due to low no of responses "]
["POL","Baltic Sea, North Sea and Eastern Arctic, and North Atlantic","Passive gears","00-<10 m","NA","E","Subsidies on investments","administrative records","A","Every Year",100,null,510,510,1,1,1,"Typing error in WP - name in column C should read: \"Vessels using Polyvalent ‘passive’ gears only\". Includes vessels using hooks, fixed netters, vessels using pots and traps and vessels using Polyvalent passive gears. Achieved Sample Rate lower than expected due to low no of responses "]
["POL","Baltic Sea, North Sea and Eastern Arctic, and North Atlantic","Passive gears","00-<10 m","NA","E","Lease/rental payments for quota or other fishing rights","not relevant",null,null,null,null,"N/A","N/A","N/A","N/A","N/A"]
["POL","Baltic Sea, North Sea and Eastern Arctic, and North Atlantic","Passive gears","00-<10 m","NA","E","Consumption of fixed capital","questionnaires","A","Every Year",100,null,510,248,0.48627450980392156,0.48627450980392156,0.48627450980392156,"Typing error in WP - name in column C should read: \"Vessels using Polyvalent ‘passive’ gears only\". Includes vessels using hooks, fixed netters, vessels using pots and traps and vessels using Polyvalent passive gears. Achieved Sample Rate lower than expected due to low no of responses "]
["POL","Baltic Sea, North Sea and Eastern Arctic, and North Atlantic","Passive gears","00-<10 m","NA","E","Value of physical capital","calculated based on scraping premium","A","Every Year",100,null,510,510,1,1,1,"Typing error in WP - name in column C should read: \"Vessels using Polyvalent ‘passive’ gears only\". Includes vessels using hooks, fixed netters, vessels using pots and traps and vessels using Polyvalent passive gears. Achieved Sample Rate lower than expected due to low no of responses "]
["POL","Baltic Sea, North Sea and Eastern Arctic, and North Atlantic","Passive gears","00-<10 m","NA","E","Value of quota and other fishing rights","not relevant",null,null,null,null,"N/A","N/A","N/A","N/A","N/A"]
["POL","Baltic Sea, North Sea and Eastern Arctic, and North Atlantic","Passive gears","00-<10 m","NA","E","Investments of tangible assets, net","questionnaires","A","Every Year",100,null,510,248,0.48627450980392156,0.48627450980392156,0.48627450980392156,"Typing error in WP - name in column C should read: \"Vessels using Polyvalent ‘passive’ gears only\". Includes vessels using hooks, fixed netters, vessels using pots and traps and vessels using Polyvalent passive gears. Achieved Sample Rate lower than expected due to low no of responses "]
["POL","Baltic Sea, North Sea and Eastern Arctic, and North Atlantic","Passive gears","00-<10 m","NA","E","Long/short debts","questionnaires","A","Every Year",100,null,510,248,0.48627450980392156,0.48627450980392156,0.48627450980392156,"Typing error in WP - name in column C should read: \"Vessels using Polyvalent ‘passive’ gears only\". Includes vessels using hooks, fixed netters, vessels using pots and traps and vessels using Polyvalent passive gears. Achieved Sample Rate lower than expected due to low no of responses "]
["POL","Baltic Sea, North Sea and Eastern Arctic, and North Atlantic","Passive gears","00-<10 m","NA","E","Total assets","questionnaires","A","Every Year",100,null,510,248,0.48627450980392156,0.48627450980392156,0.48627450980392156,"Typing error in WP - name in column C should read: \"Vessels using Polyvalent ‘passive’ gears only\". Includes vessels using hooks, fixed netters, vessels using pots and traps and vessels using Polyvalent passive gears. Achieved Sample Rate lower than expected due to low no of responses "]
["POL","Baltic Sea, North Sea and Eastern Arctic, and North Atlantic","Passive gears","00-<10 m","NA","E","Engaged crew","questionnaires","A","Every Year",100,null,510,248,0.48627450980392156,0.48627450980392156,0.48627450980392156,"Typing error in WP - name in column C should read: \"Vessels using Polyvalent ‘passive’ gears only\". Includes vessels using hooks, fixed netters, vessels using pots and traps and vessels using Polyvalent passive gears. Achieved Sample Rate lower than expected due to low no of responses "]
["POL","Baltic Sea, North Sea and Eastern Arctic, and North Atlantic","Passive gears","00-<10 m","NA","E","Unpaid labour","questionnaires","A","Every Year",100,null,510,248,0.48627450980392156,0.48627450980392156,0.48627450980392156,"Typing error in WP - name in column C should read: \"Vessels using Polyvalent ‘passive’ gears only\". Includes vessels using hooks, fixed netters, vessels using pots and traps and vessels using Polyvalent passive gears. Achieved Sample Rate lower than expected due to low no of responses "]
["POL","Baltic Sea, North Sea and Eastern Arctic, and North Atlantic","Passive gears","00-<10 m","NA","E","Total hours worked per year","questionnaires","A","Every Year",100,null,510,248,0.48627450980392156,0.48627450980392156,0.48627450980392156,"Typing error in WP - name in column C should read: \"Vessels using Polyvalent ‘passive’ gears only\". Includes vessels using hooks, fixed netters, vessels using pots and traps and vessels using Polyvalent passive gears. Achieved Sample Rate lower than expected due to low no of responses "]
["POL","Baltic Sea, North Sea and Eastern Arctic, and North Atlantic","Passive gears","00-<10 m","NA","E","Number of vessels","questionnaires, Register","A","Every Year",100,null,510,510,1,1,1,"Typing error in WP - name in column C should read: \"Vessels using Polyvalent ‘passive’ gears only\". Includes vessels using hooks, fixed netters, vessels using pots and traps and vessels using Polyvalent passive gears. "]
["POL","Baltic Sea, North Sea and Eastern Arctic, and North Atlantic","Passive gears","00-<10 m","NA","E","Mean LOA of vessels","questionnaires, Register","A","Every Year",100,null,510,510,1,1,1,"Typing error in WP - name in column C should read: \"Vessels using Polyvalent ‘passive’ gears only\". Includes vessels using hooks, fixed netters, vessels using pots and traps and vessels using Polyvalent passive gears. "]
["POL","Baltic Sea, North Sea and Eastern Arctic, and North Atlantic","Passive gears","00-<10 m","NA","E","Total vessels tonnage","questionnaires, Register","A","Every Year",100,null,510,510,1,1,1,"Typing error in WP - name in column C should read: \"Vessels using Polyvalent ‘passive’ gears only\". Includes vessels using hooks, fixed netters, vessels using pots and traps and vessels using Polyvalent passive gears. "]
["POL","Baltic Sea, North Sea and Eastern Arctic, and North Atlantic","Passive gears","00-<10 m","NA","E","Total vessels power","questionnaires, Register","A","Every Year",100,null,510,510,1,1,1,"Typing error in WP - name in column C should read: \"Vessels using Polyvalent ‘passive’ gears only\". Includes vessels using hooks, fixed netters, vessels using pots and traps and vessels using Polyvalent passive gears. "]
["POL","Baltic Sea, North Sea and Eastern Arctic, and North Atlantic","Passive gears","00-<10 m","NA","E","Mean age of vessels","questionnaires, Register","A","Every Year",100,null,510,510,1,1,1,"Typing error in WP - name in column C should read: \"Vessels using Polyvalent ‘passive’ gears only\". Includes vessels using hooks, fixed netters, vessels using pots and traps and vessels using Polyvalent passive gears. "]
["POL","Baltic Sea, North Sea and Eastern Arctic, and North Atlantic","Passive gears","00-<10 m","NA","E","Days at sea","questionnaires, logbooks","A","Every Year",100,null,510,510,1,1,1,"Typing error in WP - name in column C should read: \"Vessels using Polyvalent ‘passive’ gears only\". Includes vessels using hooks, fixed netters, vessels using pots and traps and vessels using Polyvalent passive gears. "]
["POL","Baltic Sea, North Sea and Eastern Arctic, and North Atlantic","Passive gears","00-<10 m","NA","E","Energy consuption","questionnaires","A","Every Year",100,null,510,248,0.48627450980392156,0.48627450980392156,0.48627450980392156,"Typing error in WP - name in column C should read: \"Vessels using Polyvalent ‘passive’ gears only\". Includes vessels using hooks, fixed netters, vessels using pots and traps and vessels using Polyvalent passive gears. Achieved Sample Rate lower than expected due to low no of responses "]
["POL","Baltic Sea, North Sea and Eastern Arctic, and North Atlantic","Passive gears","00-<10 m","NA","E","Number of fishing enterprises/units","Register","A","Every Year",100,null,510,510,1,1,1,"Typing error in WP - name in column C should read: \"Vessels using Polyvalent ‘passive’ gears only\". Includes vessels using hooks, fixed netters, vessels using pots and traps and vessels using Polyvalent passive gears. "]
["POL","Baltic Sea, North Sea and Eastern Arctic, and North Atlantic","Passive gears","00-<10 m","NA","E","Value of landings per species","First sale document","A","Every Year",100,null,510,510,1,1,1,"Typing error in WP - name in column C should read: \"Vessels using Polyvalent ‘passive’ gears only\". Includes vessels using hooks, fixed netters, vessels using pots and traps and vessels using Polyvalent passive gears. "]
["POL","Baltic Sea, North Sea and Eastern Arctic, and North Atlantic","Passive gears","00-<10 m","NA","E","Average price per spices","First sale document","A","Every Year",100,null,510,510,1,1,1,"Typing error in WP - name in column C should read: \"Vessels using Polyvalent ‘passive’ gears only\". Includes vessels using hooks, fixed netters, vessels using pots and traps and vessels using Polyvalent passive gears. "]
["POL","Baltic Sea, North Sea and Eastern Arctic, and North Atlantic","Passive gears","00-<10 m","NA","S","Employment by gender","questionnaires","A","Every Year",100,null,510,248,0.48627450980392156,0.48627450980392156,0.48627450980392156,"Typing error in WP - name in column C should read: \"Vessels using Polyvalent ‘passive’ gears only\". Includes vessels using hooks, fixed netters, vessels using pots and traps and vessels using Polyvalent passive gears. Achieved Sample Rate lower than expected due to low no of responses "]
["POL","Baltic Sea, North Sea and Eastern Arctic, and North Atlantic","Passive gears","00-<10 m","NA","S","FTE by gender","questionnaires","A","Every Year",100,null,510,248,0.48627450980392156,0.48627450980392156,0.48627450980392156,"Typing error in WP - name in column C should read: \"Vessels using Polyvalent ‘passive’ gears only\". Includes vessels using hooks, fixed netters, vessels using pots and traps and vessels using Polyvalent passive gears. Achieved Sample Rate lower than expected due to low no of responses "]
["POL","Baltic Sea, North Sea and Eastern Arctic, and North Atlantic","Passive gears","00-<10 m","NA","S","Unpaid labour by gender","questionnaires","A","Every Year",100,null,510,248,0.48627450980392156,0.48627450980392156,0.48627450980392156,"Typing error in WP - name in column C should read: \"Vessels using Polyvalent ‘passive’ gears only\". Includes vessels using hooks, fixed netters, vessels using pots and traps and vessels using Polyvalent passive gears. Achieved Sample Rate lower than expected due to low no of responses "]
["POL","Baltic Sea, North Sea and Eastern Arctic, and North Atlantic","Passive gears","00-<10 m","NA","S","Employment by age","questionnaires","A","Every Year",100,null,510,248,0.48627450980392156,0.48627450980392156,0.48627450980392156,"Typing error in WP - name in column C should read: \"Vessels using Polyvalent ‘passive’ gears only\". Includes vessels using hooks, fixed netters, vessels using pots and traps and vessels using Polyvalent passive gears. Achieved Sample Rate lower than expected due to low no of responses "]
["POL","Baltic Sea, North Sea and Eastern Arctic, and North Atlantic","Passive gears","00-<10 m","NA","S","Employment by education level","questionnaires","A","Every Year",100,null,510,248,0.48627450980392156,0.48627450980392156,0.48627450980392156,"Typing error in WP - name in column C should read: \"Vessels using Polyvalent ‘passive’ gears only\". Includes vessels using hooks, fixed netters, vessels using pots and traps and vessels using Polyvalent passive gears. Achieved Sample Rate lower than expected due to low no of responses "]
["POL","Baltic Sea, North Sea and Eastern Arctic, and North Atlantic","Passive gears","00-<10 m","NA","S","Employment by nationality","questionnaires","A","Every Year",100,null,510,248,0.48627450980392156,0.48627450980392156,0.48627450980392156,"Typing error in WP - name in column C should read: \"Vessels using Polyvalent ‘passive’ gears only\".  Data were collected in 2019 (for 2018), data are estimated based on questionnaires"]
["POL","Baltic Sea, North Sea and Eastern Arctic, and North Atlantic","Passive gears","00-<10 m","NA","S","Employment by employment status","questionnaires","A","Every Year",100,null,510,248,0.48627450980392156,0.48627450980392156,0.48627450980392156,"Typing error in WP - name in column C should read: \"Vessels using Polyvalent ‘passive’ gears only\". Includes vessels using hooks, fixed netters, vessels using pots and traps and vessels using Polyvalent passive gears. Achieved Sample Rate lower than expected due to low no of responses "]
["POL","Baltic Sea, North Sea and Eastern Arctic, and North Atlantic","Passive gears","00-<10 m","NA","S","FTE National","questionnaires","A","Every Year",100,null,510,248,0.48627450980392156,0.48627450980392156,0.48627450980392156,"Typing error in WP - name in column C should read: \"Vessels using Polyvalent ‘passive’ gears only\". Includes vessels using hooks, fixed netters, vessels using pots and traps and vessels using Polyvalent passive gears. Achieved Sample Rate lower than expected due to low no of responses "]
["POL","Baltic Sea, North Sea and Eastern Arctic, and North Atlantic","Passive gears","10-<12 m","NA","E","Gross value of landings","landing declaration, sales notes","A","Every Year",100,null,107,107,1,{"$f":"N45/M45","v":1},1,"Typing error in WP - name in column C should read: \"Vessels using Polyvalent ‘passive’ gears only\". Additional Data Source - first sale documents. Includes vessels using hooks, fixed netters, vessels using pots and traps and vessels using Polyvalent passive gears. "]
["POL","Baltic Sea, North Sea and Eastern Arctic, and North Atlantic","Passive gears","10-<12 m","NA","E","Income from leasing out quota or other fishing rights","not relevant",null,null,null,null,"N/A","N/A","N/A","N/A","N/A"]
["POL","Baltic Sea, North Sea and Eastern Arctic, and North Atlantic","Passive gears","10-<12 m","NA","E","Other income","questionnaires","A","Every Year",100,null,107,40,{"$f":"N47/M47","v":0.37383177570093457},{"$f":"N47/M47","v":0.37383177570093457},0.37383177570093457,"Typing error in WP - name in column C should read: \"Vessels using Polyvalent ‘passive’ gears only\". Includes vessels using hooks, fixed netters, vessels using pots and traps and vessels using Polyvalent passive gears. Achieved Sample Rate lower than expected due to low no of responses "]
["POL","Baltic Sea, North Sea and Eastern Arctic, and North Atlantic","Passive gears","10-<12 m","NA","E","Wages and salaries of crew","questionnaires","A","Every Year",100,null,107,40,{"$f":"N48/M48","v":0.37383177570093457},{"$f":"N48/M48","v":0.37383177570093457},0.37383177570093457,"Typing error in WP - name in column C should read: \"Vessels using Polyvalent ‘passive’ gears only\". Wrong variable name in WP - should read: \"Personnel cost\". Includes vessels using hooks, fixed netters, vessels using pots and traps and vessels using Polyvalent passive gears. Achieved Sample Rate lower than expected due to low no of responses "]
["POL","Baltic Sea, North Sea and Eastern Arctic, and North Atlantic","Passive gears","10-<12 m","NA","E","Imputed value of unpaid labour","estimation","D","Every Year",100,null,107,40,0.37383177570093457,0.37383177570093457,0.37383177570093457,"Typing error in WP - name in column C should read: \"Vessels using Polyvalent ‘passive’ gears only\". Wrong variable name in WP - should read: \"Value of unpaid labour\". Includes vessels using hooks, fixed netters, vessels using pots and traps and vessels using Polyvalent passive gears. Achieved Sample Rate lower than expected due to low no of responses "]
["POL","Baltic Sea, North Sea and Eastern Arctic, and North Atlantic","Passive gears","10-<12 m","NA","E","Energy costs","questionnaires","A","Every Year",100,null,107,40,0.37383177570093457,0.37383177570093457,0.37383177570093457,"Typing error in WP - name in column C should read: \"Vessels using Polyvalent ‘passive’ gears only\". Includes vessels using hooks, fixed netters, vessels using pots and traps and vessels using Polyvalent passive gears. Achieved Sample Rate lower than expected due to low no of responses "]
["POL","Baltic Sea, North Sea and Eastern Arctic, and North Atlantic","Passive gears","10-<12 m","NA","E","Repair and maintenance costs","questionnaires","A","Every Year",100,null,107,40,0.37383177570093457,0.37383177570093457,0.37383177570093457,"Typing error in WP - name in column C should read: \"Vessels using Polyvalent ‘passive’ gears only\". Includes vessels using hooks, fixed netters, vessels using pots and traps and vessels using Polyvalent passive gears. Achieved Sample Rate lower than expected due to low no of responses "]
["POL","Baltic Sea, North Sea and Eastern Arctic, and North Atlantic","Passive gears","10-<12 m","NA","E","Variable costs","questionnaires","A","Every Year",100,null,107,40,0.37383177570093457,0.37383177570093457,0.37383177570093457,"Typing error in WP - name in column C should read: \"Vessels using Polyvalent ‘passive’ gears only\". Includes vessels using hooks, fixed netters, vessels using pots and traps and vessels using Polyvalent passive gears. Achieved Sample Rate lower than expected due to low no of responses "]
["POL","Baltic Sea, North Sea and Eastern Arctic, and North Atlantic","Passive gears","10-<12 m","NA","E","Non-variable costs","questionnaires","A","Every Year",100,null,107,40,0.37383177570093457,0.37383177570093457,0.37383177570093457,"Typing error in WP - name in column C should read: \"Vessels using Polyvalent ‘passive’ gears only\". Includes vessels using hooks, fixed netters, vessels using pots and traps and vessels using Polyvalent passive gears. Achieved Sample Rate lower than expected due to low no of responses "]
["POL","Baltic Sea, North Sea and Eastern Arctic, and North Atlantic","Passive gears","10-<12 m","NA","E","Lease/rental payments for quota or other fishing rights","questionnaires","A","Every Year",100,null,107,40,0.37383177570093457,0.37383177570093457,0.37383177570093457,"Typing error in WP - name in column C should read: \"Vessels using Polyvalent ‘passive’ gears only\". Includes vessels using hooks, fixed netters, vessels using pots and traps and vessels using Polyvalent passive gears. Achieved Sample Rate lower than expected due to low no of responses "]
["POL","Baltic Sea, North Sea and Eastern Arctic, and North Atlantic","Passive gears","10-<12 m","NA","E","Operating Subsidies","administrative records","A","Every Year",100,null,107,40,0.37383177570093457,0.37383177570093457,0.37383177570093457,"Typing error in WP - name in column C should read: \"Vessels using Polyvalent ‘passive’ gears only\". Includes vessels using hooks, fixed netters, vessels using pots and traps and vessels using Polyvalent passive gears. Achieved Sample Rate lower than expected due to low no of responses "]
["POL","Baltic Sea, North Sea and Eastern Arctic, and North Atlantic","Passive gears","10-<12 m","NA","E","Subsidies on investments","administrative records","A","Every Year",100,null,107,40,0.37383177570093457,0.37383177570093457,0.37383177570093457,"Typing error in WP - name in column C should read: \"Vessels using Polyvalent ‘passive’ gears only\". Includes vessels using hooks, fixed netters, vessels using pots and traps and vessels using Polyvalent passive gears. Achieved Sample Rate lower than expected due to low no of responses "]
["POL","Baltic Sea, North Sea and Eastern Arctic, and North Atlantic","Passive gears","10-<12 m","NA","E","Lease/rental payments for quota or other fishing rights","not relevant",null,null,null,null,"N/A","N/A","N/A","N/A","N/A"]
["POL","Baltic Sea, North Sea and Eastern Arctic, and North Atlantic","Passive gears","10-<12 m","NA","E","Consumption of fixed capital","questionnaires","A","Every Year",100,null,107,40,{"$f":"N58/M58","v":0.37383177570093457},{"$f":"N58/M58","v":0.37383177570093457},0.37383177570093457,"Typing error in WP - name in column C should read: \"Vessels using Polyvalent ‘passive’ gears only\". Includes vessels using hooks, fixed netters, vessels using pots and traps and vessels using Polyvalent passive gears. Achieved Sample Rate lower than expected due to low no of responses "]
["POL","Baltic Sea, North Sea and Eastern Arctic, and North Atlantic","Passive gears","10-<12 m","NA","E","Value of physical capital","calculated based on scraping premium","A","Every Year",100,null,107,107,1,1,1,"Typing error in WP - name in column C should read: \"Vessels using Polyvalent ‘passive’ gears only\". Includes vessels using hooks, fixed netters, vessels using pots and traps and vessels using Polyvalent passive gears. Achieved Sample Rate lower than expected due to low no of responses "]
["POL","Baltic Sea, North Sea and Eastern Arctic, and North Atlantic","Passive gears","10-<12 m","NA","E","Value of quota and other fishing rights","not relevant",null,null,null,null,"N/A","N/A","N/A","N/A","N/A"]
["POL","Baltic Sea, North Sea and Eastern Arctic, and North Atlantic","Passive gears","10-<12 m","NA","E","Investments of tangible assets, net","questionnaires","A","Every Year",100,null,107,40,{"$f":"N61/M61","v":0.37383177570093457},{"$f":"N61/M61","v":0.37383177570093457},{"$f":"N61/(M61*K61/100)","v":0.37383177570093457},"Typing error in WP - name in column C should read: \"Vessels using Polyvalent ‘passive’ gears only\". Includes vessels using hooks, fixed netters, vessels using pots and traps and vessels using Polyvalent passive gears. Achieved Sample Rate lower than expected due to low no of responses "]
["POL","Baltic Sea, North Sea and Eastern Arctic, and North Atlantic","Passive gears","10-<12 m","NA","E","Long/short debts","questionnaires","A","Every Year",100,null,107,40,0.37383177570093457,0.37383177570093457,0.37383177570093457,"Typing error in WP - name in column C should read: \"Vessels using Polyvalent ‘passive’ gears only\". Includes vessels using hooks, fixed netters, vessels using pots and traps and vessels using Polyvalent passive gears. Achieved Sample Rate lower than expected due to low no of responses "]
["POL","Baltic Sea, North Sea and Eastern Arctic, and North Atlantic","Passive gears","10-<12 m","NA","E","Total assets","questionnaires","A","Every Year",100,null,107,40,0.37383177570093457,0.37383177570093457,0.37383177570093457,"Typing error in WP - name in column C should read: \"Vessels using Polyvalent ‘passive’ gears only\". Includes vessels using hooks, fixed netters, vessels using pots and traps and vessels using Polyvalent passive gears. Achieved Sample Rate lower than expected due to low no of responses "]
["POL","Baltic Sea, North Sea and Eastern Arctic, and North Atlantic","Passive gears","10-<12 m","NA","E","Engaged crew","questionnaires","A","Every Year",100,null,107,40,0.37383177570093457,0.37383177570093457,0.37383177570093457,"Typing error in WP - name in column C should read: \"Vessels using Polyvalent ‘passive’ gears only\". Includes vessels using hooks, fixed netters, vessels using pots and traps and vessels using Polyvalent passive gears. Achieved Sample Rate lower than expected due to low no of responses "]
["POL","Baltic Sea, North Sea and Eastern Arctic, and North Atlantic","Passive gears","10-<12 m","NA","E","Unpaid labour","questionnaires","A","Every Year",100,null,107,40,0.37383177570093457,0.37383177570093457,0.37383177570093457,"Typing error in WP - name in column C should read: \"Vessels using Polyvalent ‘passive’ gears only\". Includes vessels using hooks, fixed netters, vessels using pots and traps and vessels using Polyvalent passive gears. Achieved Sample Rate lower than expected due to low no of responses "]
["POL","Baltic Sea, North Sea and Eastern Arctic, and North Atlantic","Passive gears","10-<12 m","NA","E","Total hours worked per year","questionnaires","A","Every Year",100,null,107,107,1,1,1,"Typing error in WP - name in column C should read: \"Vessels using Polyvalent ‘passive’ gears only\". Includes vessels using hooks, fixed netters, vessels using pots and traps and vessels using Polyvalent passive gears. Achieved Sample Rate lower than expected due to low no of responses "]
["POL","Baltic Sea, North Sea and Eastern Arctic, and North Atlantic","Passive gears","10-<12 m","NA","E","Number of vessels","questionnaires, Register","A","Every Year",100,null,107,107,1,1,1,"Typing error in WP - name in column C should read: \"Vessels using Polyvalent ‘passive’ gears only\". Includes vessels using hooks, fixed netters, vessels using pots and traps and vessels using Polyvalent passive gears. "]
["POL","Baltic Sea, North Sea and Eastern Arctic, and North Atlantic","Passive gears","10-<12 m","NA","E","Mean LOA of vessels","questionnaires, Register","A","Every Year",100,null,107,107,1,1,1,"Typing error in WP - name in column C should read: \"Vessels using Polyvalent ‘passive’ gears only\". Includes vessels using hooks, fixed netters, vessels using pots and traps and vessels using Polyvalent passive gears. "]
["POL","Baltic Sea, North Sea and Eastern Arctic, and North Atlantic","Passive gears","10-<12 m","NA","E","Total vessels tonnage","questionnaires, Register","A","Every Year",100,null,107,107,1,1,1,"Typing error in WP - name in column C should read: \"Vessels using Polyvalent ‘passive’ gears only\". Includes vessels using hooks, fixed netters, vessels using pots and traps and vessels using Polyvalent passive gears. "]
["POL","Baltic Sea, North Sea and Eastern Arctic, and North Atlantic","Passive gears","10-<12 m","NA","E","Total vessels power","questionnaires, Register","A","Every Year",100,null,107,107,1,1,1,"Typing error in WP - name in column C should read: \"Vessels using Polyvalent ‘passive’ gears only\". Includes vessels using hooks, fixed netters, vessels using pots and traps and vessels using Polyvalent passive gears. "]
["POL","Baltic Sea, North Sea and Eastern Arctic, and North Atlantic","Passive gears","10-<12 m","NA","E","Mean age of vessels","questionnaires, Register","A","Every Year",100,null,107,107,1,1,1,"Typing error in WP - name in column C should read: \"Vessels using Polyvalent ‘passive’ gears only\". Includes vessels using hooks, fixed netters, vessels using pots and traps and vessels using Polyvalent passive gears. "]
["POL","Baltic Sea, North Sea and Eastern Arctic, and North Atlantic","Passive gears","10-<12 m","NA","E","Days at sea","questionnaires, logbooks","A","Every Year",100,null,107,107,1,1,1,"Typing error in WP - name in column C should read: \"Vessels using Polyvalent ‘passive’ gears only\". Includes vessels using hooks, fixed netters, vessels using pots and traps and vessels using Polyvalent passive gears. "]
["POL","Baltic Sea, North Sea and Eastern Arctic, and North Atlantic","Passive gears","10-<12 m","NA","E","Energy consuption","questionnaires","A","Every Year",100,null,107,40,0.37383177570093457,0.37383177570093457,0.37383177570093457,"Typing error in WP - name in column C should read: \"Vessels using Polyvalent ‘passive’ gears only\". Includes vessels using hooks, fixed netters, vessels using pots and traps and vessels using Polyvalent passive gears. Achieved Sample Rate lower than expected due to low no of responses "]
["POL","Baltic Sea, North Sea and Eastern Arctic, and North Atlantic","Passive gears","10-<12 m","NA","E","Number of fishing enterprises/units","Register","A","Every Year",100,null,107,107,{"$f":"N74/M74","v":1},{"$f":"N74/M74","v":1},{"$f":"N74/(M74*K74/100)","v":1},"Typing error in WP - name in column C should read: \"Vessels using Polyvalent ‘passive’ gears only\". Includes vessels using hooks, fixed netters, vessels using pots and traps and vessels using Polyvalent passive gears. "]
["POL","Baltic Sea, North Sea and Eastern Arctic, and North Atlantic","Passive gears","10-<12 m","NA","E","Value of landings per species","First sale document","A","Every Year",100,null,107,107,{"$f":"N75/M75","v":1},{"$f":"N75/M75","v":1},{"$f":"N75/(M75*K75/100)","v":1},"Typing error in WP - name in column C should read: \"Vessels using Polyvalent ‘passive’ gears only\". Includes vessels using hooks, fixed netters, vessels using pots and traps and vessels using Polyvalent passive gears. "]
["POL","Baltic Sea, North Sea and Eastern Arctic, and North Atlantic","Passive gears","10-<12 m","NA","E","Average price per spices","First sale document","A","Every Year",100,null,107,107,{"$f":"N76/M76","v":1},{"$f":"N76/M76","v":1},{"$f":"N76/(M76*K76/100)","v":1},"Typing error in WP - name in column C should read: \"Vessels using Polyvalent ‘passive’ gears only\". Includes vessels using hooks, fixed netters, vessels using pots and traps and vessels using Polyvalent passive gears. "]
["POL","Baltic Sea, North Sea and Eastern Arctic, and North Atlantic","Passive gears","10-<12 m","NA","S","Employment by gender","questionnaires","A","Every Year",100,null,107,40,0.37383177570093457,0.37383177570093457,0.37383177570093457,"Typing error in WP - name in column C should read: \"Vessels using Polyvalent ‘passive’ gears only\". Includes vessels using hooks, fixed netters, vessels using pots and traps and vessels using Polyvalent passive gears. Achieved Sample Rate lower than expected due to low no of responses "]
["POL","Baltic Sea, North Sea and Eastern Arctic, and North Atlantic","Passive gears","10-<12 m","NA","S","FTE by gender","questionnaires","A","Every Year",100,null,107,40,0.37383177570093457,0.37383177570093457,0.37383177570093457,"Typing error in WP - name in column C should read: \"Vessels using Polyvalent ‘passive’ gears only\". Includes vessels using hooks, fixed netters, vessels using pots and traps and vessels using Polyvalent passive gears. Achieved Sample Rate lower than expected due to low no of responses "]
["POL","Baltic Sea, North Sea and Eastern Arctic, and North Atlantic","Passive gears","10-<12 m","NA","S","Unpaid labour by gender","questionnaires","A","Every Year",100,null,107,40,0.37383177570093457,0.37383177570093457,0.37383177570093457,"Typing error in WP - name in column C should read: \"Vessels using Polyvalent ‘passive’ gears only\". Includes vessels using hooks, fixed netters, vessels using pots and traps and vessels using Polyvalent passive gears. Achieved Sample Rate lower than expected due to low no of responses "]
["POL","Baltic Sea, North Sea and Eastern Arctic, and North Atlantic","Passive gears","10-<12 m","NA","S","Employment by age","questionnaires","A","Every Year",100,null,107,40,0.37383177570093457,0.37383177570093457,0.37383177570093457,"Typing error in WP - name in column C should read: \"Vessels using Polyvalent ‘passive’ gears only\". Includes vessels using hooks, fixed netters, vessels using pots and traps and vessels using Polyvalent passive gears. Achieved Sample Rate lower than expected due to low no of responses "]
["POL","Baltic Sea, North Sea and Eastern Arctic, and North Atlantic","Passive gears","10-<12 m","NA","S","Employment by education level","questionnaires","A","Every Year",100,null,107,40,0.37383177570093457,0.37383177570093457,0.37383177570093457,"Typing error in WP - name in column C should read: \"Vessels using Polyvalent ‘passive’ gears only\". Includes vessels using hooks, fixed netters, vessels using pots and traps and vessels using Polyvalent passive gears. Achieved Sample Rate lower than expected due to low no of responses "]
["POL","Baltic Sea, North Sea and Eastern Arctic, and North Atlantic","Passive gears","10-<12 m","NA","S","Employment by nationality","questionnaires","A","Every Year",100,null,107,40,0.37383177570093457,0.37383177570093457,0.37383177570093457,"Typing error in WP - name in column C should read: \"Vessels using Polyvalent ‘passive’ gears only\".  Data were collected in 2019 (for 2018), data are estimated based on questionnaires"]
["POL","Baltic Sea, North Sea and Eastern Arctic, and North Atlantic","Passive gears","10-<12 m","NA","S","Employment by employment status","questionnaires","A","Every Year",100,null,107,40,0.37383177570093457,0.37383177570093457,0.37383177570093457,"Typing error in WP - name in column C should read: \"Vessels using Polyvalent ‘passive’ gears only\". Includes vessels using hooks, fixed netters, vessels using pots and traps and vessels using Polyvalent passive gears. Achieved Sample Rate lower than expected due to low no of responses "]
["POL","Baltic Sea, North Sea and Eastern Arctic, and North Atlantic","Passive gears","10-<12 m","NA","S","FTE National","questionnaires","A","Every Year",100,null,107,40,0.37383177570093457,0.37383177570093457,0.37383177570093457,"Typing error in WP - name in column C should read: \"Vessels using Polyvalent ‘passive’ gears only\". Includes vessels using hooks, fixed netters, vessels using pots and traps and vessels using Polyvalent passive gears. Achieved Sample Rate lower than expected due to low no of responses "]
["POL","Baltic Sea, North Sea and Eastern Arctic, and North Atlantic","Drift and fixed netters","12-<18 m","Drift and fixed netters 12-18 m","E","Gross value of landings","landing declaration, sales notes","A","Every Year",100,null,10,10,1,{"$f":"N85/M85","v":1},1,"Typing error in WP - name in column C should read: \"Drift and/or fixed netters\". Additional Data Source - first sale documents.  Vessels class 12-18 are dominant in the cluster. By mistake, the WP contains wrong length class in column \"D\" (10-12 m)"]
["POL","Baltic Sea, North Sea and Eastern Arctic, and North Atlantic","Drift and fixed netters","12-<18 m","Drift and fixed netters 12-18 m","E","Income from leasing out quota or other fishing rights","not relevant",null,null,null,null,"N/A","N/A","N/A","N/A","N/A"]
["POL","Baltic Sea, North Sea and Eastern Arctic, and North Atlantic","Drift and fixed netters","12-<18 m","Drift and fixed netters 12-18 m","E","Other income","questionnaires","A","Every Year",100,null,10,4,{"$f":"N87/M87","v":0.4},{"$f":"N87/M87","v":0.4},0.4,"Typing error in WP - name in column C should read: \"Drift and/or fixed netters\". Vessels class 12-18 are dominant in the cluster.  By mistake, the WP contains wrong length class in column \"D\" (10-12 m).    Achieved Sample Rate lower than expected due to low no of responses "]
["POL","Baltic Sea, North Sea and Eastern Arctic, and North Atlantic","Drift and fixed netters","12-<18 m","Drift and fixed netters 12-18 m","E","Wages and salaries of crew","questionnaires","A","Every Year",100,null,10,4,{"$f":"N88/M88","v":0.4},{"$f":"N88/M88","v":0.4},0.4,"Typing error in WP - name in column C should read: \"Drift and/or fixed netters\". Wrong variable name in WP - should read: \"Personnel cost\". Vessels class 12-18 are dominant in the cluster.  By mistake, the WP contains wrong length class in column \"D\" (10-12 m).    Achieved Sample Rate lower than expected due to low no of responses "]
["POL","Baltic Sea, North Sea and Eastern Arctic, and North Atlantic","Drift and fixed netters","12-<18 m","Drift and fixed netters 12-18 m","E","Imputed value of unpaid labour","estimation","D","Every Year",100,null,10,4,0.4,0.4,0.4,"Typing error in WP - name in column C should read: \"Drift and/or fixed netters\". Wrong variable name in WP - should read: \"Value of unpaid labour\". Vessels class 12-18 are dominant in the cluster.  By mistake, the WP contains wrong length class in column \"D\" (10-12 m).    Achieved Sample Rate lower than expected due to low no of responses "]
["POL","Baltic Sea, North Sea and Eastern Arctic, and North Atlantic","Drift and fixed netters","12-<18 m","Drift and fixed netters 12-18 m","E","Energy costs","questionnaires","A","Every Year",100,null,10,4,0.4,0.4,0.4,"Typing error in WP - name in column C should read: \"Drift and/or fixed netters\". Vessels class 12-18 are dominant in the cluster.  By mistake, the WP contains wrong length class in column \"D\" (10-12 m).    Achieved Sample Rate lower than expected due to low no of responses "]
["POL","Baltic Sea, North Sea and Eastern Arctic, and North Atlantic","Drift and fixed netters","12-<18 m","Drift and fixed netters 12-18 m","E","Repair and maintenance costs","questionnaires","A","Every Year",100,null,10,4,0.4,0.4,0.4,"Typing error in WP - name in column C should read: \"Drift and/or fixed netters\". Vessels class 12-18 are dominant in the cluster.  By mistake, the WP contains wrong length class in column \"D\" (10-12 m).    Achieved Sample Rate lower than expected due to low no of responses "]
["POL","Baltic Sea, North Sea and Eastern Arctic, and North Atlantic","Drift and fixed netters","12-<18 m","Drift and fixed netters 12-18 m","E","Variable costs","questionnaires","A","Every Year",100,null,10,4,0.4,0.4,0.4,"Typing error in WP - name in column C should read: \"Drift and/or fixed netters\". Vessels class 12-18 are dominant in the cluster.  By mistake, the WP contains wrong length class in column \"D\" (10-12 m).    Achieved Sample Rate lower than expected due to low no of responses "]
["POL","Baltic Sea, North Sea and Eastern Arctic, and North Atlantic","Drift and fixed netters","12-<18 m","Drift and fixed netters 12-18 m","E","Non-variable costs","questionnaires","A","Every Year",100,null,10,4,0.4,0.4,0.4,"Typing error in WP - name in column C should read: \"Drift and/or fixed netters\". Vessels class 12-18 are dominant in the cluster.  By mistake, the WP contains wrong length class in column \"D\" (10-12 m).    Achieved Sample Rate lower than expected due to low no of responses "]
["POL","Baltic Sea, North Sea and Eastern Arctic, and North Atlantic","Drift and fixed netters","12-<18 m","Drift and fixed netters 12-18 m","E","Lease/rental payments for quota or other fishing rights","questionnaires","A","Every Year",100,null,10,4,0.4,0.4,0.4,"Typing error in WP - name in column C should read: \"Drift and/or fixed netters\". Vessels class 12-18 are dominant in the cluster.  By mistake, the WP contains wrong length class in column \"D\" (10-12 m).    Achieved Sample Rate lower than expected due to low no of responses "]
["POL","Baltic Sea, North Sea and Eastern Arctic, and North Atlantic","Drift and fixed netters","12-<18 m","Drift and fixed netters 12-18 m","E","Operating Subsidies","administrative records","A","Every Year",100,null,10,10,1,1,1,"Typing error in WP - name in column C should read: \"Drift and/or fixed netters\". Vessels class 12-18 are dominant in the cluster.  By mistake, the WP contains wrong length class in column \"D\" (10-12 m).    Achieved Sample Rate lower than expected due to low no of responses "]
["POL","Baltic Sea, North Sea and Eastern Arctic, and North Atlantic","Drift and fixed netters","12-<18 m","Drift and fixed netters 12-18 m","E","Subsidies on investments","administrative records","A","Every Year",100,null,10,10,1,1,1,"Typing error in WP - name in column C should read: \"Drift and/or fixed netters\". Vessels class 12-18 are dominant in the cluster.  By mistake, the WP contains wrong length class in column \"D\" (10-12 m).    Achieved Sample Rate lower than expected due to low no of responses "]
["POL","Baltic Sea, North Sea and Eastern Arctic, and North Atlantic","Drift and fixed netters","12-<18 m","Drift and fixed netters 12-18 m","E","Lease/rental payments for quota or other fishing rights","not relevant",null,null,null,null,"N/A","N/A","N/A","N/A","N/A"]
["POL","Baltic Sea, North Sea and Eastern Arctic, and North Atlantic","Drift and fixed netters","12-<18 m","Drift and fixed netters 12-18 m","E","Consumption of fixed capital","questionnaires","A","Every Year",100,null,10,4,{"$f":"N98/M98","v":0.4},{"$f":"N98/M98","v":0.4},0.4,"Typing error in WP - name in column C should read: \"Drift and/or fixed netters\". Vessels class 12-18 are dominant in the cluster.  By mistake, the WP contains wrong length class in column \"D\" (10-12 m).    Achieved Sample Rate lower than expected due to low no of responses "]
["POL","Baltic Sea, North Sea and Eastern Arctic, and North Atlantic","Drift and fixed netters","12-<18 m","Drift and fixed netters 12-18 m","E","Value of physical capital","calculated based on scraping premium","A","Every Year",100,null,10,10,1,1,1,"Typing error in WP - name in column C should read: \"Drift and/or fixed netters\". Vessels class 12-18 are dominant in the cluster.  By mistake, the WP contains wrong length class in column \"D\" (10-12 m).    Achieved Sample Rate lower than expected due to low no of responses "]
["POL","Baltic Sea, North Sea and Eastern Arctic, and North Atlantic","Drift and fixed netters","12-<18 m","Drift and fixed netters 12-18 m","E","Value of quota and other fishing rights","not relevant",null,null,null,null,"N/A","N/A","N/A","N/A","N/A"]
["POL","Baltic Sea, North Sea and Eastern Arctic, and North Atlantic","Drift and fixed netters","12-<18 m","Drift and fixed netters 12-18 m","E","Investments of tangible assets, net","questionnaires","A","Every Year",100,null,10,4,{"$f":"N101/M101","v":0.4},{"$f":"N101/M101","v":0.4},0.4,"Typing error in WP - name in column C should read: \"Drift and/or fixed netters\". Vessels class 12-18 are dominant in the cluster.  By mistake, the WP contains wrong length class in column \"D\" (10-12 m).    Achieved Sample Rate lower than expected due to low no of responses "]
["POL","Baltic Sea, North Sea and Eastern Arctic, and North Atlantic","Drift and fixed netters","12-<18 m","Drift and fixed netters 12-18 m","E","Long/short debts","questionnaires","A","Every Year",100,null,10,4,0.4,0.4,0.4,"Typing error in WP - name in column C should read: \"Drift and/or fixed netters\". Vessels class 12-18 are dominant in the cluster.  By mistake, the WP contains wrong length class in column \"D\" (10-12 m).    Achieved Sample Rate lower than expected due to low no of responses "]
["POL","Baltic Sea, North Sea and Eastern Arctic, and North Atlantic","Drift and fixed netters","12-<18 m","Drift and fixed netters 12-18 m","E","Total assets","questionnaires","A","Every Year",100,null,10,4,0.4,0.4,0.4,"Typing error in WP - name in column C should read: \"Drift and/or fixed netters\". Vessels class 12-18 are dominant in the cluster.  By mistake, the WP contains wrong length class in column \"D\" (10-12 m).    Achieved Sample Rate lower than expected due to low no of responses "]
["POL","Baltic Sea, North Sea and Eastern Arctic, and North Atlantic","Drift and fixed netters","12-<18 m","Drift and fixed netters 12-18 m","E","Engaged crew","questionnaires","A","Every Year",100,null,10,4,0.4,0.4,0.4,"Typing error in WP - name in column C should read: \"Drift and/or fixed netters\". Vessels class 12-18 are dominant in the cluster.  By mistake, the WP contains wrong length class in column \"D\" (10-12 m).    Achieved Sample Rate lower than expected due to low no of responses "]
["POL","Baltic Sea, North Sea and Eastern Arctic, and North Atlantic","Drift and fixed netters","12-<18 m","Drift and fixed netters 12-18 m","E","Unpaid labour","questionnaires","A","Every Year",100,null,10,4,0.4,0.4,0.4,"Typing error in WP - name in column C should read: \"Drift and/or fixed netters\". Vessels class 12-18 are dominant in the cluster.  By mistake, the WP contains wrong length class in column \"D\" (10-12 m).    Achieved Sample Rate lower than expected due to low no of responses "]
["POL","Baltic Sea, North Sea and Eastern Arctic, and North Atlantic","Drift and fixed netters","12-<18 m","Drift and fixed netters 12-18 m","E","Total hours worked per year","questionnaires","A","Every Year",100,null,10,4,0.4,0.4,0.4,"Typing error in WP - name in column C should read: \"Drift and/or fixed netters\". Vessels class 12-18 are dominant in the cluster.  By mistake, the WP contains wrong length class in column \"D\" (10-12 m).    Achieved Sample Rate lower than expected due to low no of responses "]
["POL","Baltic Sea, North Sea and Eastern Arctic, and North Atlantic","Drift and fixed netters","12-<18 m","Drift and fixed netters 12-18 m","E","Number of vessels","questionnaires, Register","A","Every Year",100,null,10,10,1,1,1,"Typing error in WP - name in column C should read: \"Drift and/or fixed netters\". Vessels class 12-18 are dominant in the cluster. By mistake, the WP contains wrong length class in column \"D\" (10-12 m)"]
["POL","Baltic Sea, North Sea and Eastern Arctic, and North Atlantic","Drift and fixed netters","12-<18 m","Drift and fixed netters 12-18 m","E","Mean LOA of vessels","questionnaires, Register","A","Every Year",100,null,10,10,1,1,1,"Typing error in WP - name in column C should read: \"Drift and/or fixed netters\". Vessels class 12-18 are dominant in the cluster. By mistake, the WP contains wrong length class in column \"D\" (10-12 m)"]
["POL","Baltic Sea, North Sea and Eastern Arctic, and North Atlantic","Drift and fixed netters","12-<18 m","Drift and fixed netters 12-18 m","E","Total vessels tonnage","questionnaires, Register","A","Every Year",100,null,10,10,1,1,1,"Typing error in WP - name in column C should read: \"Drift and/or fixed netters\". Vessels class 12-18 are dominant in the cluster. By mistake, the WP contains wrong length class in column \"D\" (10-12 m)"]
["POL","Baltic Sea, North Sea and Eastern Arctic, and North Atlantic","Drift and fixed netters","12-<18 m","Drift and fixed netters 12-18 m","E","Total vessels power","questionnaires, Register","A","Every Year",100,null,10,10,1,1,1,"Typing error in WP - name in column C should read: \"Drift and/or fixed netters\". Vessels class 12-18 are dominant in the cluster. By mistake, the WP contains wrong length class in column \"D\" (10-12 m)"]
["POL","Baltic Sea, North Sea and Eastern Arctic, and North Atlantic","Drift and fixed netters","12-<18 m","Drift and fixed netters 12-18 m","E","Mean age of vessels","questionnaires, Register","A","Every Year",100,null,10,10,1,1,1,"Typing error in WP - name in column C should read: \"Drift and/or fixed netters\". Vessels class 12-18 are dominant in the cluster. By mistake, the WP contains wrong length class in column \"D\" (10-12 m)"]
["POL","Baltic Sea, North Sea and Eastern Arctic, and North Atlantic","Drift and fixed netters","12-<18 m","Drift and fixed netters 12-18 m","E","Days at sea","questionnaires, logbooks","A","Every Year",100,null,10,10,1,1,1,"Typing error in WP - name in column C should read: \"Drift and/or fixed netters\". Vessels class 12-18 are dominant in the cluster. By mistake, the WP contains wrong length class in column \"D\" (10-12 m)"]
["POL","Baltic Sea, North Sea and Eastern Arctic, and North Atlantic","Drift and fixed netters","12-<18 m","Drift and fixed netters 12-18 m","E","Energy consuption","questionnaires","A","Every Year",100,null,10,4,0.4,0.4,0.4,"Typing error in WP - name in column C should read: \"Drift and/or fixed netters\". Vessels class 12-18 are dominant in the cluster.  By mistake, the WP contains wrong length class in column \"D\" (10-12 m).    Achieved Sample Rate lower than expected due to low no of responses "]
["POL","Baltic Sea, North Sea and Eastern Arctic, and North Atlantic","Drift and fixed netters","12-<18 m","Drift and fixed netters 12-18 m","E","Number of fishing enterprises/units","Register","A","Every Year",100,null,10,10,1,1,1,"Typing error in WP - name in column C should read: \"Drift and/or fixed netters\". Vessels class 12-18 are dominant in the cluster. By mistake, the WP contains wrong length class in column \"D\" (10-12 m)"]
["POL","Baltic Sea, North Sea and Eastern Arctic, and North Atlantic","Drift and fixed netters","12-<18 m","Drift and fixed netters 12-18 m","E","Value of landings per species","First sale document","A","Every Year",100,null,10,10,1,1,1,"Typing error in WP - name in column C should read: \"Drift and/or fixed netters\". Vessels class 12-18 are dominant in the cluster. By mistake, the WP contains wrong length class in column \"D\" (10-12 m)"]
["POL","Baltic Sea, North Sea and Eastern Arctic, and North Atlantic","Drift and fixed netters","12-<18 m","Drift and fixed netters 12-18 m","E","Average price per spices","First sale document","A","Every Year",100,null,10,10,1,1,1,"Typing error in WP - name in column C should read: \"Drift and/or fixed netters\". Vessels class 12-18 are dominant in the cluster. By mistake, the WP contains wrong length class in column \"D\" (10-12 m)"]
["POL","Baltic Sea, North Sea and Eastern Arctic, and North Atlantic","Drift and fixed netters","12-<18 m","Drift and fixed netters 12-18 m","S","Employment by gender","questionnaires","A","Every Year",100,null,10,4,0.4,0.4,0.4,"Typing error in WP - name in column C should read: \"Drift and/or fixed netters\". Vessels class 12-18 are dominant in the cluster.  By mistake, the WP contains wrong length class in column \"D\" (10-12 m).    Achieved Sample Rate lower than expected due to low no of responses "]
["POL","Baltic Sea, North Sea and Eastern Arctic, and North Atlantic","Drift and fixed netters","12-<18 m","Drift and fixed netters 12-18 m","S","FTE by gender","questionnaires","A","Every Year",100,null,10,4,0.4,0.4,0.4,"Typing error in WP - name in column C should read: \"Drift and/or fixed netters\". Vessels class 12-18 are dominant in the cluster.  By mistake, the WP contains wrong length class in column \"D\" (10-12 m).    Achieved Sample Rate lower than expected due to low no of responses "]
["POL","Baltic Sea, North Sea and Eastern Arctic, and North Atlantic","Drift and fixed netters","12-<18 m","Drift and fixed netters 12-18 m","S","Unpaid labour by gender","questionnaires","A","Every Year",100,null,10,4,0.4,0.4,0.4,"Typing error in WP - name in column C should read: \"Drift and/or fixed netters\". Vessels class 12-18 are dominant in the cluster.  By mistake, the WP contains wrong length class in column \"D\" (10-12 m).    Achieved Sample Rate lower than expected due to low no of responses "]
["POL","Baltic Sea, North Sea and Eastern Arctic, and North Atlantic","Drift and fixed netters","12-<18 m","Drift and fixed netters 12-18 m","S","Employment by age","questionnaires","A","Every Year",100,null,10,4,0.4,0.4,0.4,"Typing error in WP - name in column C should read: \"Drift and/or fixed netters\". Vessels class 12-18 are dominant in the cluster.  By mistake, the WP contains wrong length class in column \"D\" (10-12 m).    Achieved Sample Rate lower than expected due to low no of responses "]
["POL","Baltic Sea, North Sea and Eastern Arctic, and North Atlantic","Drift and fixed netters","12-<18 m","Drift and fixed netters 12-18 m","S","Employment by education level","questionnaires","A","Every Year",100,null,10,4,0.4,0.4,0.4,"Typing error in WP - name in column C should read: \"Drift and/or fixed netters\". Vessels class 12-18 are dominant in the cluster.  By mistake, the WP contains wrong length class in column \"D\" (10-12 m).    Achieved Sample Rate lower than expected due to low no of responses "]
["POL","Baltic Sea, North Sea and Eastern Arctic, and North Atlantic","Drift and fixed netters","12-<18 m","Drift and fixed netters 12-18 m","S","Employment by nationality","questionnaires","A","Every Year",100,null,10,4,0.4,0.4,0.4,"Typing error in WP - name in column C should read: \"Drift and/or fixed netters\".  Data were collected in 2019 (for 2018), data are estimated based on questionnaires"]
["POL","Baltic Sea, North Sea and Eastern Arctic, and North Atlantic","Drift and fixed netters","12-<18 m","Drift and fixed netters 12-18 m","S","Employment by employment status","questionnaires","A","Every Year",100,null,10,4,0.4,0.4,0.4,"Typing error in WP - name in column C should read: \"Drift and/or fixed netters\". Vessels class 12-18 are dominant in the cluster.  By mistake, the WP contains wrong length class in column \"D\" (10-12 m).    Achieved Sample Rate lower than expected due to low no of responses "]
["POL","Baltic Sea, North Sea and Eastern Arctic, and North Atlantic","Drift and fixed netters","12-<18 m","Drift and fixed netters 12-18 m","S","FTE National","questionnaires","A","Every Year",100,null,10,4,0.4,0.4,0.4,"Typing error in WP - name in column C should read: \"Drift and/or fixed netters\". Vessels class 12-18 are dominant in the cluster.  By mistake, the WP contains wrong length class in column \"D\" (10-12 m).    Achieved Sample Rate lower than expected due to low no of responses "]
["POL","Baltic Sea, North Sea and Eastern Arctic, and North Atlantic","Demersal trawlers and seiners","12-<18 m","Demersal trawlers 12-18 m","E","Gross value of landings","landing declaration, sales notes","A","Every Year",100,null,49,49,1,{"$f":"N125/M125","v":1},{"$f":"N125/(M125*K125/100)","v":1},"Additional Data Source - first sale documents. "]
["POL","Baltic Sea, North Sea and Eastern Arctic, and North Atlantic","Demersal trawlers and seiners","12-<18 m","Demersal trawlers 12-18 m","E","Income from leasing out quota or other fishing rights","not relevant",null,null,null,null,"N/A","N/A","N/A","N/A","N/A"]
["POL","Baltic Sea, North Sea and Eastern Arctic, and North Atlantic","Demersal trawlers and seiners","12-<18 m","Demersal trawlers 12-18 m","E","Other income","questionnaires","A","Every Year",100,null,49,17,{"$f":"N127/M127","v":0.34693877551020408},{"$f":"N127/M127","v":0.34693877551020408},0.34693877551020408,"Achieved Sample Rate lower than expected due to low no of responses "]
["POL","Baltic Sea, North Sea and Eastern Arctic, and North Atlantic","Demersal trawlers and seiners","12-<18 m","Demersal trawlers 12-18 m","E","Wages and salaries of crew","questionnaires","A","Every Year",100,null,49,17,{"$f":"N128/M128","v":0.34693877551020408},{"$f":"N128/M128","v":0.34693877551020408},0.34693877551020408,"Wrong variable name in WP - should read: \"Personnel cost\". Achieved Sample Rate lower than expected due to low no of responses "]
["POL","Baltic Sea, North Sea and Eastern Arctic, and North Atlantic","Demersal trawlers and seiners","12-<18 m","Demersal trawlers 12-18 m","E","Imputed value of unpaid labour","estimation","D","Every Year",100,null,49,17,0.34693877551020408,0.34693877551020408,0.34693877551020408,"Wrong variable name in WP - should read: \"Value of unpaid labour\". Achieved Sample Rate lower than expected due to low no of responses "]
["POL","Baltic Sea, North Sea and Eastern Arctic, and North Atlantic","Demersal trawlers and seiners","12-<18 m","Demersal trawlers 12-18 m","E","Energy costs","questionnaires","A","Every Year",100,null,49,17,0.34693877551020408,0.34693877551020408,0.34693877551020408,"Achieved Sample Rate lower than expected due to low no of responses "]
["POL","Baltic Sea, North Sea and Eastern Arctic, and North Atlantic","Demersal trawlers and seiners","12-<18 m","Demersal trawlers 12-18 m","E","Repair and maintenance costs","questionnaires","A","Every Year",100,null,49,17,0.34693877551020408,0.34693877551020408,0.34693877551020408,"Achieved Sample Rate lower than expected due to low no of responses "]
["POL","Baltic Sea, North Sea and Eastern Arctic, and North Atlantic","Demersal trawlers and seiners","12-<18 m","Demersal trawlers 12-18 m","E","Variable costs","questionnaires","A","Every Year",100,null,49,17,0.34693877551020408,0.34693877551020408,0.34693877551020408,"Achieved Sample Rate lower than expected due to low no of responses "]
["POL","Baltic Sea, North Sea and Eastern Arctic, and North Atlantic","Demersal trawlers and seiners","12-<18 m","Demersal trawlers 12-18 m","E","Non-variable costs","questionnaires","A","Every Year",100,null,49,17,0.34693877551020408,0.34693877551020408,0.34693877551020408,"Achieved Sample Rate lower than expected due to low no of responses "]
["POL","Baltic Sea, North Sea and Eastern Arctic, and North Atlantic","Demersal trawlers and seiners","12-<18 m","Demersal trawlers 12-18 m","E","Lease/rental payments for quota or other fishing rights","questionnaires","A","Every Year",100,null,49,17,0.34693877551020408,0.34693877551020408,0.34693877551020408,"Achieved Sample Rate lower than expected due to low no of responses "]
["POL","Baltic Sea, North Sea and Eastern Arctic, and North Atlantic","Demersal trawlers and seiners","12-<18 m","Demersal trawlers 12-18 m","E","Operating Subsidies","administrative records","A","Every Year",100,null,49,49,1,1,1,"Achieved Sample Rate lower than expected due to low no of responses "]
["POL","Baltic Sea, North Sea and Eastern Arctic, and North Atlantic","Demersal trawlers and seiners","12-<18 m","Demersal trawlers 12-18 m","E","Subsidies on investments","administrative records","A","Every Year",100,null,49,49,1,1,1,"Achieved Sample Rate lower than expected due to low no of responses "]
["POL","Baltic Sea, North Sea and Eastern Arctic, and North Atlantic","Demersal trawlers and seiners","12-<18 m","Demersal trawlers 12-18 m","E","Lease/rental payments for quota or other fishing rights","not relevant",null,null,null,null,"N/A","N/A","N/A","N/A","N/A"]
["POL","Baltic Sea, North Sea and Eastern Arctic, and North Atlantic","Demersal trawlers and seiners","12-<18 m","Demersal trawlers 12-18 m","E","Consumption of fixed capital","questionnaires","A","Every Year",100,null,49,17,{"$f":"N138/M138","v":0.34693877551020408},{"$f":"N138/M138","v":0.34693877551020408},0.34693877551020408,"Achieved Sample Rate lower than expected due to low no of responses "]
["POL","Baltic Sea, North Sea and Eastern Arctic, and North Atlantic","Demersal trawlers and seiners","12-<18 m","Demersal trawlers 12-18 m","E","Value of physical capital","calculated based on scraping premium","A","Every Year",100,null,49,49,1,1,1,"Achieved Sample Rate lower than expected due to low no of responses "]
["POL","Baltic Sea, North Sea and Eastern Arctic, and North Atlantic","Demersal trawlers and seiners","12-<18 m","Demersal trawlers 12-18 m","E","Value of quota and other fishing rights","not relevant",null,null,null,null,"N/A","N/A","N/A","N/A","N/A"]
["POL","Baltic Sea, North Sea and Eastern Arctic, and North Atlantic","Demersal trawlers and seiners","12-<18 m","Demersal trawlers 12-18 m","E","Investments of tangible assets, net","questionnaires","A","Every Year",100,null,49,17,{"$f":"N141/M141","v":0.34693877551020408},{"$f":"N141/M141","v":0.34693877551020408},0.34693877551020408,"Achieved Sample Rate lower than expected due to low no of responses "]
["POL","Baltic Sea, North Sea and Eastern Arctic, and North Atlantic","Demersal trawlers and seiners","12-<18 m","Demersal trawlers 12-18 m","E","Long/short debts","questionnaires","A","Every Year",100,null,49,17,0.34693877551020408,0.34693877551020408,0.34693877551020408,"Achieved Sample Rate lower than expected due to low no of responses "]
["POL","Baltic Sea, North Sea and Eastern Arctic, and North Atlantic","Demersal trawlers and seiners","12-<18 m","Demersal trawlers 12-18 m","E","Total assets","questionnaires","A","Every Year",100,null,49,17,0.34693877551020408,0.34693877551020408,0.34693877551020408,"Achieved Sample Rate lower than expected due to low no of responses "]
["POL","Baltic Sea, North Sea and Eastern Arctic, and North Atlantic","Demersal trawlers and seiners","12-<18 m","Demersal trawlers 12-18 m","E","Engaged crew","questionnaires","A","Every Year",100,null,49,17,0.34693877551020408,0.34693877551020408,0.34693877551020408,"Achieved Sample Rate lower than expected due to low no of responses "]
["POL","Baltic Sea, North Sea and Eastern Arctic, and North Atlantic","Demersal trawlers and seiners","12-<18 m","Demersal trawlers 12-18 m","E","Unpaid labour","questionnaires","A","Every Year",100,null,49,17,0.34693877551020408,0.34693877551020408,0.34693877551020408,"Achieved Sample Rate lower than expected due to low no of responses "]
["POL","Baltic Sea, North Sea and Eastern Arctic, and North Atlantic","Demersal trawlers and seiners","12-<18 m","Demersal trawlers 12-18 m","E","Total hours worked per year","questionnaires","A","Every Year",100,null,49,17,0.34693877551020408,0.34693877551020408,0.34693877551020408,"Achieved Sample Rate lower than expected due to low no of responses "]
["POL","Baltic Sea, North Sea and Eastern Arctic, and North Atlantic","Demersal trawlers and seiners","12-<18 m","Demersal trawlers 12-18 m","E","Number of vessels","questionnaires, Register","A","Every Year",100,null,49,49,1,1,1]
["POL","Baltic Sea, North Sea and Eastern Arctic, and North Atlantic","Demersal trawlers and seiners","12-<18 m","Demersal trawlers 12-18 m","E","Mean LOA of vessels","questionnaires, Register","A","Every Year",100,null,49,49,1,1,1]
["POL","Baltic Sea, North Sea and Eastern Arctic, and North Atlantic","Demersal trawlers and seiners","12-<18 m","Demersal trawlers 12-18 m","E","Total vessels tonnage","questionnaires, Register","A","Every Year",100,null,49,49,1,1,1]
["POL","Baltic Sea, North Sea and Eastern Arctic, and North Atlantic","Demersal trawlers and seiners","12-<18 m","Demersal trawlers 12-18 m","E","Total vessels power","questionnaires, Register","A","Every Year",100,null,49,49,1,1,1]
["POL","Baltic Sea, North Sea and Eastern Arctic, and North Atlantic","Demersal trawlers and seiners","12-<18 m","Demersal trawlers 12-18 m","E","Mean age of vessels","questionnaires, Register","A","Every Year",100,null,49,49,1,1,1]
["POL","Baltic Sea, North Sea and Eastern Arctic, and North Atlantic","Demersal trawlers and seiners","12-<18 m","Demersal trawlers 12-18 m","E","Days at sea","questionnaires, logbooks","A","Every Year",100,null,49,49,1,1,1]
["POL","Baltic Sea, North Sea and Eastern Arctic, and North Atlantic","Demersal trawlers and seiners","12-<18 m","Demersal trawlers 12-18 m","E","Energy consuption","questionnaires","A","Every Year",100,null,49,17,0.34693877551020408,0.34693877551020408,0.34693877551020408,"Achieved Sample Rate lower than expected due to low no of responses "]
["POL","Baltic Sea, North Sea and Eastern Arctic, and North Atlantic","Demersal trawlers and seiners","12-<18 m","Demersal trawlers 12-18 m","E","Number of fishing enterprises/units","Register","A","Every Year",100,null,49,49,1,1,1]
["POL","Baltic Sea, North Sea and Eastern Arctic, and North Atlantic","Demersal trawlers and seiners","12-<18 m","Demersal trawlers 12-18 m","E","Value of landings per species","First sale document","A","Every Year",100,null,49,49,1,1,1]
["POL","Baltic Sea, North Sea and Eastern Arctic, and North Atlantic","Demersal trawlers and seiners","12-<18 m","Demersal trawlers 12-18 m","E","Average price per spices","First sale document","A","Every Year",100,null,49,49,1,1,1]
["POL","Baltic Sea, North Sea and Eastern Arctic, and North Atlantic","Demersal trawlers and seiners","12-<18 m","Demersal trawlers 12-18 m","S","Employment by gender","questionnaires","A","Every Year",100,null,49,17,0.34693877551020408,0.34693877551020408,0.34693877551020408,"Achieved Sample Rate lower than expected due to low no of responses "]
["POL","Baltic Sea, North Sea and Eastern Arctic, and North Atlantic","Demersal trawlers and seiners","12-<18 m","Demersal trawlers 12-18 m","S","FTE by gender","questionnaires","A","Every Year",100,null,49,17,0.34693877551020408,0.34693877551020408,0.34693877551020408,"Achieved Sample Rate lower than expected due to low no of responses "]
["POL","Baltic Sea, North Sea and Eastern Arctic, and North Atlantic","Demersal trawlers and seiners","12-<18 m","Demersal trawlers 12-18 m","S","Unpaid labour by gender","questionnaires","A","Every Year",100,null,49,17,0.34693877551020408,0.34693877551020408,0.34693877551020408,"Achieved Sample Rate lower than expected due to low no of responses "]
["POL","Baltic Sea, North Sea and Eastern Arctic, and North Atlantic","Demersal trawlers and seiners","12-<18 m","Demersal trawlers 12-18 m","S","Employment by age","questionnaires","A","Every Year",100,null,49,17,0.34693877551020408,0.34693877551020408,0.34693877551020408,"Achieved Sample Rate lower than expected due to low no of responses "]
["POL","Baltic Sea, North Sea and Eastern Arctic, and North Atlantic","Demersal trawlers and seiners","12-<18 m","Demersal trawlers 12-18 m","S","Employment by education level","questionnaires","A","Every Year",100,null,49,17,0.34693877551020408,0.34693877551020408,0.34693877551020408,"Achieved Sample Rate lower than expected due to low no of responses "]
["POL","Baltic Sea, North Sea and Eastern Arctic, and North Atlantic","Demersal trawlers and seiners","12-<18 m","Demersal trawlers 12-18 m","S","Employment by nationality","questionnaires","A","Every Year",100,null,49,17,0.34693877551020408,0.34693877551020408,0.34693877551020408,"Data were collected in 2019 (for 2018), data are estimated based on questionnaires"]
["POL","Baltic Sea, North Sea and Eastern Arctic, and North Atlantic","Demersal trawlers and seiners","12-<18 m","Demersal trawlers 12-18 m","S","Employment by employment status","questionnaires","A","Every Year",100,null,49,17,0.34693877551020408,0.34693877551020408,0.34693877551020408,"Achieved Sample Rate lower than expected due to low no of responses "]
["POL","Baltic Sea, North Sea and Eastern Arctic, and North Atlantic","Demersal trawlers and seiners","12-<18 m","Demersal trawlers 12-18 m","S","FTE National","questionnaires","A","Every Year",100,null,49,17,0.34693877551020408,0.34693877551020408,0.34693877551020408,"Achieved Sample Rate lower than expected due to low no of responses "]
["POL","Baltic Sea, North Sea and Eastern Arctic, and North Atlantic","Demersal trawlers and seiners","18-<24 m","Demersal trawlers 18-24 m","E","Gross value of landings","landing declaration, sales notes","A","Every Year",100,null,26,15,0.57692307692307687,{"$f":"N165/M165","v":0.57692307692307687},0.57692307692307687,"Additional Data Source - first sale documents. "]
["POL","Baltic Sea, North Sea and Eastern Arctic, and North Atlantic","Demersal trawlers and seiners","18-<24 m","Demersal trawlers 18-24 m","E","Income from leasing out quota or other fishing rights","not relevant",null,null,null,null,"N/A","N/A","N/A","N/A","N/A"]
["POL","Baltic Sea, North Sea and Eastern Arctic, and North Atlantic","Demersal trawlers and seiners","18-<24 m","Demersal trawlers 18-24 m","E","Other income","questionnaires","A","Every Year",100,null,26,15,{"$f":"N167/M167","v":0.57692307692307687},{"$f":"N167/M167","v":0.57692307692307687},0.57692307692307687,"Achieved Sample Rate lower than expected due to low no of responses "]
["POL","Baltic Sea, North Sea and Eastern Arctic, and North Atlantic","Demersal trawlers and seiners","18-<24 m","Demersal trawlers 18-24 m","E","Wages and salaries of crew","questionnaires","A","Every Year",100,null,26,15,{"$f":"N168/M168","v":0.57692307692307687},{"$f":"N168/M168","v":0.57692307692307687},0.57692307692307687,"Wrong variable name in WP - should read: \"Personnel cost\". Achieved Sample Rate lower than expected due to low no of responses "]
["POL","Baltic Sea, North Sea and Eastern Arctic, and North Atlantic","Demersal trawlers and seiners","18-<24 m","Demersal trawlers 18-24 m","E","Imputed value of unpaid labour","estimation","D","Every Year",100,null,26,15,0.57692307692307687,0.57692307692307687,0.57692307692307687,"Wrong variable name in WP - should read: \"Value of unpaid labour\". Achieved Sample Rate lower than expected due to low no of responses "]
["POL","Baltic Sea, North Sea and Eastern Arctic, and North Atlantic","Demersal trawlers and seiners","18-<24 m","Demersal trawlers 18-24 m","E","Energy costs","questionnaires","A","Every Year",100,null,26,15,0.57692307692307687,0.57692307692307687,0.57692307692307687,"Achieved Sample Rate lower than expected due to low no of responses "]
["POL","Baltic Sea, North Sea and Eastern Arctic, and North Atlantic","Demersal trawlers and seiners","18-<24 m","Demersal trawlers 18-24 m","E","Repair and maintenance costs","questionnaires","A","Every Year",100,null,26,15,0.57692307692307687,0.57692307692307687,0.57692307692307687,"Achieved Sample Rate lower than expected due to low no of responses "]
["POL","Baltic Sea, North Sea and Eastern Arctic, and North Atlantic","Demersal trawlers and seiners","18-<24 m","Demersal trawlers 18-24 m","E","Variable costs","questionnaires","A","Every Year",100,null,26,15,0.57692307692307687,0.57692307692307687,0.57692307692307687,"Achieved Sample Rate lower than expected due to low no of responses "]
["POL","Baltic Sea, North Sea and Eastern Arctic, and North Atlantic","Demersal trawlers and seiners","18-<24 m","Demersal trawlers 18-24 m","E","Non-variable costs","questionnaires","A","Every Year",100,null,26,15,0.57692307692307687,0.57692307692307687,0.57692307692307687,"Achieved Sample Rate lower than expected due to low no of responses "]
["POL","Baltic Sea, North Sea and Eastern Arctic, and North Atlantic","Demersal trawlers and seiners","18-<24 m","Demersal trawlers 18-24 m","E","Lease/rental payments for quota or other fishing rights","questionnaires","A","Every Year",100,null,26,15,0.57692307692307687,0.57692307692307687,0.57692307692307687,"Achieved Sample Rate lower than expected due to low no of responses "]
["POL","Baltic Sea, North Sea and Eastern Arctic, and North Atlantic","Demersal trawlers and seiners","18-<24 m","Demersal trawlers 18-24 m","E","Operating Subsidies","administrative records","A","Every Year",100,null,26,26,1,1,1,"Achieved Sample Rate lower than expected due to low no of responses "]
["POL","Baltic Sea, North Sea and Eastern Arctic, and North Atlantic","Demersal trawlers and seiners","18-<24 m","Demersal trawlers 18-24 m","E","Subsidies on investments","administrative records","A","Every Year",100,null,26,26,1,1,1,"Achieved Sample Rate lower than expected due to low no of responses "]
["POL","Baltic Sea, North Sea and Eastern Arctic, and North Atlantic","Demersal trawlers and seiners","18-<24 m","Demersal trawlers 18-24 m","E","Lease/rental payments for quota or other fishing rights","not relevant",null,null,null,null,"N/A","N/A","N/A","N/A","N/A"]
["POL","Baltic Sea, North Sea and Eastern Arctic, and North Atlantic","Demersal trawlers and seiners","18-<24 m","Demersal trawlers 18-24 m","E","Consumption of fixed capital","questionnaires","A","Every Year",100,null,26,15,{"$f":"N178/M178","v":0.57692307692307687},{"$f":"N178/M178","v":0.57692307692307687},0.57692307692307687,"Achieved Sample Rate lower than expected due to low no of responses "]
["POL","Baltic Sea, North Sea and Eastern Arctic, and North Atlantic","Demersal trawlers and seiners","18-<24 m","Demersal trawlers 18-24 m","E","Value of physical capital","calculated based on scraping premium","A","Every Year",100,null,26,26,1,1,1,"Achieved Sample Rate lower than expected due to low no of responses "]
["POL","Baltic Sea, North Sea and Eastern Arctic, and North Atlantic","Demersal trawlers and seiners","18-<24 m","Demersal trawlers 18-24 m","E","Value of quota and other fishing rights","not relevant",null,null,null,null,"N/A","N/A","N/A","N/A","N/A"]
["POL","Baltic Sea, North Sea and Eastern Arctic, and North Atlantic","Demersal trawlers and seiners","18-<24 m","Demersal trawlers 18-24 m","E","Investments of tangible assets, net","questionnaires","A","Every Year",100,null,26,15,{"$f":"N181/M181","v":0.57692307692307687},{"$f":"N181/M181","v":0.57692307692307687},0.57692307692307687,"Achieved Sample Rate lower than expected due to low no of responses "]
["POL","Baltic Sea, North Sea and Eastern Arctic, and North Atlantic","Demersal trawlers and seiners","18-<24 m","Demersal trawlers 18-24 m","E","Long/short debts","questionnaires","A","Every Year",100,null,26,15,0.57692307692307687,0.57692307692307687,0.57692307692307687,"Achieved Sample Rate lower than expected due to low no of responses "]
["POL","Baltic Sea, North Sea and Eastern Arctic, and North Atlantic","Demersal trawlers and seiners","18-<24 m","Demersal trawlers 18-24 m","E","Total assets","questionnaires","A","Every Year",100,null,26,15,0.57692307692307687,0.57692307692307687,0.57692307692307687,"Achieved Sample Rate lower than expected due to low no of responses "]
["POL","Baltic Sea, North Sea and Eastern Arctic, and North Atlantic","Demersal trawlers and seiners","18-<24 m","Demersal trawlers 18-24 m","E","Engaged crew","questionnaires","A","Every Year",100,null,26,15,0.57692307692307687,0.57692307692307687,0.57692307692307687,"Achieved Sample Rate lower than expected due to low no of responses "]
["POL","Baltic Sea, North Sea and Eastern Arctic, and North Atlantic","Demersal trawlers and seiners","18-<24 m","Demersal trawlers 18-24 m","E","Unpaid labour","questionnaires","A","Every Year",100,null,26,15,0.57692307692307687,0.57692307692307687,0.57692307692307687,"Achieved Sample Rate lower than expected due to low no of responses "]
["POL","Baltic Sea, North Sea and Eastern Arctic, and North Atlantic","Demersal trawlers and seiners","18-<24 m","Demersal trawlers 18-24 m","E","Total hours worked per year","questionnaires","A","Every Year",100,null,26,15,0.57692307692307687,0.57692307692307687,0.57692307692307687,"Achieved Sample Rate lower than expected due to low no of responses "]
["POL","Baltic Sea, North Sea and Eastern Arctic, and North Atlantic","Demersal trawlers and seiners","18-<24 m","Demersal trawlers 18-24 m","E","Number of vessels","questionnaires, Register","A","Every Year",100,null,26,26,1,1,1]
["POL","Baltic Sea, North Sea and Eastern Arctic, and North Atlantic","Demersal trawlers and seiners","18-<24 m","Demersal trawlers 18-24 m","E","Mean LOA of vessels","questionnaires, Register","A","Every Year",100,null,26,26,1,1,1]
["POL","Baltic Sea, North Sea and Eastern Arctic, and North Atlantic","Demersal trawlers and seiners","18-<24 m","Demersal trawlers 18-24 m","E","Total vessels tonnage","questionnaires, Register","A","Every Year",100,null,26,26,1,1,{"$f":"N189/(M189*K189/100)","v":1}]
["POL","Baltic Sea, North Sea and Eastern Arctic, and North Atlantic","Demersal trawlers and seiners","18-<24 m","Demersal trawlers 18-24 m","E","Total vessels power","questionnaires, Register","A","Every Year",100,null,26,26,1,1,1]
["POL","Baltic Sea, North Sea and Eastern Arctic, and North Atlantic","Demersal trawlers and seiners","18-<24 m","Demersal trawlers 18-24 m","E","Mean age of vessels","questionnaires, Register","A","Every Year",100,null,26,26,1,1,1]
["POL","Baltic Sea, North Sea and Eastern Arctic, and North Atlantic","Demersal trawlers and seiners","18-<24 m","Demersal trawlers 18-24 m","E","Days at sea","questionnaires, logbooks","A","Every Year",100,null,26,26,1,1,1]
["POL","Baltic Sea, North Sea and Eastern Arctic, and North Atlantic","Demersal trawlers and seiners","18-<24 m","Demersal trawlers 18-24 m","E","Energy consuption","questionnaires","A","Every Year",100,null,26,15,0.57692307692307687,0.57692307692307687,0.57692307692307687,"Achieved Sample Rate lower than expected due to low no of responses "]
["POL","Baltic Sea, North Sea and Eastern Arctic, and North Atlantic","Demersal trawlers and seiners","18-<24 m","Demersal trawlers 18-24 m","E","Number of fishing enterprises/units","Register","A","Every Year",100,null,26,26,1,1,1]
["POL","Baltic Sea, North Sea and Eastern Arctic, and North Atlantic","Demersal trawlers and seiners","18-<24 m","Demersal trawlers 18-24 m","E","Value of landings per species","First sale document","A","Every Year",100,null,26,26,1,1,1]
["POL","Baltic Sea, North Sea and Eastern Arctic, and North Atlantic","Demersal trawlers and seiners","18-<24 m","Demersal trawlers 18-24 m","E","Average price per spices","First sale document","A","Every Year",100,null,26,26,1,1,1]
["POL","Baltic Sea, North Sea and Eastern Arctic, and North Atlantic","Demersal trawlers and seiners","18-<24 m","Demersal trawlers 18-24 m","S","Employment by gender","questionnaires","A","Every Year",100,null,26,15,0.57692307692307687,0.57692307692307687,0.57692307692307687,"Achieved Sample Rate lower than expected due to low no of responses "]
["POL","Baltic Sea, North Sea and Eastern Arctic, and North Atlantic","Demersal trawlers and seiners","18-<24 m","Demersal trawlers 18-24 m","S","FTE by gender","questionnaires","A","Every Year",100,null,26,15,0.57692307692307687,0.57692307692307687,0.57692307692307687,"Achieved Sample Rate lower than expected due to low no of responses "]
["POL","Baltic Sea, North Sea and Eastern Arctic, and North Atlantic","Demersal trawlers and seiners","18-<24 m","Demersal trawlers 18-24 m","S","Unpaid labour by gender","questionnaires","A","Every Year",100,null,26,15,0.57692307692307687,0.57692307692307687,0.57692307692307687,"Achieved Sample Rate lower than expected due to low no of responses "]
["POL","Baltic Sea, North Sea and Eastern Arctic, and North Atlantic","Demersal trawlers and seiners","18-<24 m","Demersal trawlers 18-24 m","S","Employment by age","questionnaires","A","Every Year",100,null,26,15,0.57692307692307687,0.57692307692307687,0.57692307692307687,"Achieved Sample Rate lower than expected due to low no of responses "]
["POL","Baltic Sea, North Sea and Eastern Arctic, and North Atlantic","Demersal trawlers and seiners","18-<24 m","Demersal trawlers 18-24 m","S","Employment by education level","questionnaires","A","Every Year",100,null,26,15,0.57692307692307687,0.57692307692307687,0.57692307692307687,"Achieved Sample Rate lower than expected due to low no of responses "]
["POL","Baltic Sea, North Sea and Eastern Arctic, and North Atlantic","Demersal trawlers and seiners","18-<24 m","Demersal trawlers 18-24 m","S","Employment by nationality","questionnaires","A","Every Year",100,null,26,15,0.57692307692307687,0.57692307692307687,0.57692307692307687,"Data were collected in 2019 (for 2018), data are estimated based on questionnaires"]
["POL","Baltic Sea, North Sea and Eastern Arctic, and North Atlantic","Demersal trawlers and seiners","18-<24 m","Demersal trawlers 18-24 m","S","Employment by employment status","questionnaires","A","Every Year",100,null,26,15,0.57692307692307687,0.57692307692307687,0.57692307692307687,"Achieved Sample Rate lower than expected due to low no of responses "]
["POL","Baltic Sea, North Sea and Eastern Arctic, and North Atlantic","Demersal trawlers and seiners","18-<24 m","Demersal trawlers 18-24 m","S","FTE National","questionnaires","A","Every Year",100,null,26,15,0.57692307692307687,0.57692307692307687,0.57692307692307687,"Achieved Sample Rate lower than expected due to low no of responses "]
["POL","Baltic Sea, North Sea and Eastern Arctic, and North Atlantic","Pelagic trawlers","18-<24 m","NA","E","Gross value of landings","landing declaration, sales notes","A","Every Year",100,null,32,32,1,{"$f":"N205/M205","v":1},1,"Additional Data Source - first sale documents. "]
["POL","Baltic Sea, North Sea and Eastern Arctic, and North Atlantic","Pelagic trawlers","18-<24 m","NA","E","Income from leasing out quota or other fishing rights","not relevant",null,null,null,null,"N/A","N/A","N/A","N/A","N/A"]
["POL","Baltic Sea, North Sea and Eastern Arctic, and North Atlantic","Pelagic trawlers","18-<24 m","NA","E","Other income","questionnaires","A","Every Year",100,null,32,14,{"$f":"N207/M207","v":0.4375},{"$f":"N207/M207","v":0.4375},0.4375,"Achieved Sample Rate lower than expected due to low no of responses "]
["POL","Baltic Sea, North Sea and Eastern Arctic, and North Atlantic","Pelagic trawlers","18-<24 m","NA","E","Wages and salaries of crew","questionnaires","A","Every Year",100,null,32,14,{"$f":"N208/M208","v":0.4375},{"$f":"N208/M208","v":0.4375},0.4375,"Wrong variable name in WP - should read: \"Personnel cost\". Achieved Sample Rate lower than expected due to low no of responses "]
["POL","Baltic Sea, North Sea and Eastern Arctic, and North Atlantic","Pelagic trawlers","18-<24 m","NA","E","Imputed value of unpaid labour","estimation","D","Every Year",100,null,32,14,0.4375,0.4375,0.4375,"Wrong variable name in WP - should read: \"Value of unpaid labour\". Achieved Sample Rate lower than expected due to low no of responses "]
["POL","Baltic Sea, North Sea and Eastern Arctic, and North Atlantic","Pelagic trawlers","18-<24 m","NA","E","Energy costs","questionnaires","A","Every Year",100,null,32,14,0.4375,0.4375,0.4375,"Achieved Sample Rate lower than expected due to low no of responses "]
["POL","Baltic Sea, North Sea and Eastern Arctic, and North Atlantic","Pelagic trawlers","18-<24 m","NA","E","Repair and maintenance costs","questionnaires","A","Every Year",100,null,32,14,0.4375,0.4375,0.4375,"Achieved Sample Rate lower than expected due to low no of responses "]
["POL","Baltic Sea, North Sea and Eastern Arctic, and North Atlantic","Pelagic trawlers","18-<24 m","NA","E","Variable costs","questionnaires","A","Every Year",100,null,32,14,0.4375,0.4375,0.4375,"Achieved Sample Rate lower than expected due to low no of responses "]
["POL","Baltic Sea, North Sea and Eastern Arctic, and North Atlantic","Pelagic trawlers","18-<24 m","NA","E","Non-variable costs","questionnaires","A","Every Year",100,null,32,14,0.4375,0.4375,0.4375,"Achieved Sample Rate lower than expected due to low no of responses "]
["POL","Baltic Sea, North Sea and Eastern Arctic, and North Atlantic","Pelagic trawlers","18-<24 m","NA","E","Lease/rental payments for quota or other fishing rights","questionnaires","A","Every Year",100,null,32,14,0.4375,0.4375,0.4375,"Achieved Sample Rate lower than expected due to low no of responses "]
["POL","Baltic Sea, North Sea and Eastern Arctic, and North Atlantic","Pelagic trawlers","18-<24 m","NA","E","Operating Subsidies","administrative records","A","Every Year",100,null,32,32,1,1,1,"Achieved Sample Rate lower than expected due to low no of responses "]
["POL","Baltic Sea, North Sea and Eastern Arctic, and North Atlantic","Pelagic trawlers","18-<24 m","NA","E","Subsidies on investments","administrative records","A","Every Year",100,null,32,32,1,1,1,"Achieved Sample Rate lower than expected due to low no of responses "]
["POL","Baltic Sea, North Sea and Eastern Arctic, and North Atlantic","Pelagic trawlers","18-<24 m","NA","E","Lease/rental payments for quota or other fishing rights","not relevant",null,null,null,null,"N/A","N/A","N/A","N/A","N/A"]
["POL","Baltic Sea, North Sea and Eastern Arctic, and North Atlantic","Pelagic trawlers","18-<24 m","NA","E","Consumption of fixed capital","questionnaires","A","Every Year",100,null,32,14,{"$f":"N218/M218","v":0.4375},{"$f":"N218/M218","v":0.4375},0.4375,"Achieved Sample Rate lower than expected due to low no of responses "]
["POL","Baltic Sea, North Sea and Eastern Arctic, and North Atlantic","Pelagic trawlers","18-<24 m","NA","E","Value of physical capital","calculated based on scraping premium","A","Every Year",100,null,32,32,1,1,1,"Achieved Sample Rate lower than expected due to low no of responses "]
["POL","Baltic Sea, North Sea and Eastern Arctic, and North Atlantic","Pelagic trawlers","18-<24 m","NA","E","Value of quota and other fishing rights","not relevant",null,null,null,null,"N/A","N/A","N/A","N/A","N/A"]
["POL","Baltic Sea, North Sea and Eastern Arctic, and North Atlantic","Pelagic trawlers","18-<24 m","NA","E","Investments of tangible assets, net","questionnaires","A","Every Year",100,null,32,14,{"$f":"N221/M221","v":0.4375},{"$f":"N221/M221","v":0.4375},0.4375,"Achieved Sample Rate lower than expected due to low no of responses "]
["POL","Baltic Sea, North Sea and Eastern Arctic, and North Atlantic","Pelagic trawlers","18-<24 m","NA","E","Long/short debts","questionnaires","A","Every Year",100,null,32,14,0.4375,0.4375,0.4375,"Achieved Sample Rate lower than expected due to low no of responses "]
["POL","Baltic Sea, North Sea and Eastern Arctic, and North Atlantic","Pelagic trawlers","18-<24 m","NA","E","Total assets","questionnaires","A","Every Year",100,null,32,14,0.4375,0.4375,0.4375,"Achieved Sample Rate lower than expected due to low no of responses "]
["POL","Baltic Sea, North Sea and Eastern Arctic, and North Atlantic","Pelagic trawlers","18-<24 m","NA","E","Engaged crew","questionnaires","A","Every Year",100,null,32,14,0.4375,0.4375,0.4375,"Achieved Sample Rate lower than expected due to low no of responses "]
["POL","Baltic Sea, North Sea and Eastern Arctic, and North Atlantic","Pelagic trawlers","18-<24 m","NA","E","Unpaid labour","questionnaires","A","Every Year",100,null,32,14,0.4375,0.4375,0.4375,"Achieved Sample Rate lower than expected due to low no of responses "]
["POL","Baltic Sea, North Sea and Eastern Arctic, and North Atlantic","Pelagic trawlers","18-<24 m","NA","E","Total hours worked per year","questionnaires","A","Every Year",100,null,32,14,0.4375,0.4375,0.4375,"Achieved Sample Rate lower than expected due to low no of responses "]
["POL","Baltic Sea, North Sea and Eastern Arctic, and North Atlantic","Pelagic trawlers","18-<24 m","NA","E","Number of vessels","questionnaires, Register","A","Every Year",100,null,32,32,1,1,1]
["POL","Baltic Sea, North Sea and Eastern Arctic, and North Atlantic","Pelagic trawlers","18-<24 m","NA","E","Mean LOA of vessels","questionnaires, Register","A","Every Year",100,null,32,32,1,1,1]
["POL","Baltic Sea, North Sea and Eastern Arctic, and North Atlantic","Pelagic trawlers","18-<24 m","NA","E","Total vessels tonnage","questionnaires, Register","A","Every Year",100,null,32,32,1,1,1]
["POL","Baltic Sea, North Sea and Eastern Arctic, and North Atlantic","Pelagic trawlers","18-<24 m","NA","E","Total vessels power","questionnaires, Register","A","Every Year",100,null,32,32,1,1,1]
["POL","Baltic Sea, North Sea and Eastern Arctic, and North Atlantic","Pelagic trawlers","18-<24 m","NA","E","Mean age of vessels","questionnaires, Register","A","Every Year",100,null,32,32,1,1,1]
["POL","Baltic Sea, North Sea and Eastern Arctic, and North Atlantic","Pelagic trawlers","18-<24 m","NA","E","Days at sea","questionnaires, logbooks","A","Every Year",100,null,32,32,1,1,1]
["POL","Baltic Sea, North Sea and Eastern Arctic, and North Atlantic","Pelagic trawlers","18-<24 m","NA","E","Energy consuption","questionnaires","A","Every Year",100,null,32,14,0.4375,0.4375,0.4375,"Achieved Sample Rate lower than expected due to low no of responses "]
["POL","Baltic Sea, North Sea and Eastern Arctic, and North Atlantic","Pelagic trawlers","18-<24 m","NA","E","Number of fishing enterprises/units","Register","A","Every Year",100,null,32,32,1,1,1]
["POL","Baltic Sea, North Sea and Eastern Arctic, and North Atlantic","Pelagic trawlers","18-<24 m","NA","E","Value of landings per species","First sale document","A","Every Year",100,null,32,32,1,1,1]
["POL","Baltic Sea, North Sea and Eastern Arctic, and North Atlantic","Pelagic trawlers","18-<24 m","NA","E","Average price per spices","First sale document","A","Every Year",100,null,32,32,1,1,1]
["POL","Baltic Sea, North Sea and Eastern Arctic, and North Atlantic","Pelagic trawlers","18-<24 m","NA","S","Employment by gender","questionnaires","A","Every Year",100,null,32,14,0.4375,0.4375,0.4375,"Achieved Sample Rate lower than expected due to low no of responses "]
["POL","Baltic Sea, North Sea and Eastern Arctic, and North Atlantic","Pelagic trawlers","18-<24 m","NA","S","FTE by gender","questionnaires","A","Every Year",100,null,32,14,0.4375,0.4375,0.4375,"Achieved Sample Rate lower than expected due to low no of responses "]
["POL","Baltic Sea, North Sea and Eastern Arctic, and North Atlantic","Pelagic trawlers","18-<24 m","NA","S","Unpaid labour by gender","questionnaires","A","Every Year",100,null,32,14,0.4375,0.4375,0.4375,"Achieved Sample Rate lower than expected due to low no of responses "]
["POL","Baltic Sea, North Sea and Eastern Arctic, and North Atlantic","Pelagic trawlers","18-<24 m","NA","S","Employment by age","questionnaires","A","Every Year",100,null,32,14,0.4375,0.4375,0.4375,"Achieved Sample Rate lower than expected due to low no of responses "]
["POL","Baltic Sea, North Sea and Eastern Arctic, and North Atlantic","Pelagic trawlers","18-<24 m","NA","S","Employment by education level","questionnaires","A","Every Year",100,null,32,14,0.4375,0.4375,0.4375,"Achieved Sample Rate lower than expected due to low no of responses "]
["POL","Baltic Sea, North Sea and Eastern Arctic, and North Atlantic","Pelagic trawlers","18-<24 m","NA","S","Employment by nationality","questionnaires","A","Every Year",100,null,32,14,0.4375,0.4375,0.4375,"Data were collected in 2019 (for 2018), data are estimated based on questionnaires"]
["POL","Baltic Sea, North Sea and Eastern Arctic, and North Atlantic","Pelagic trawlers","18-<24 m","NA","S","Employment by employment status","questionnaires","A","Every Year",100,null,32,14,0.4375,0.4375,0.4375,"Achieved Sample Rate lower than expected due to low no of responses "]
["POL","Baltic Sea, North Sea and Eastern Arctic, and North Atlantic","Pelagic trawlers","18-<24 m","NA","S","FTE National","questionnaires","A","Every Year",100,null,32,14,0.4375,0.4375,0.4375,"Achieved Sample Rate lower than expected due to low no of responses "]
["POL","Baltic Sea, North Sea and Eastern Arctic, and North Atlantic","Pelagic trawlers","24-<40 m","Pelagic trawlers 24-40 m","E","Gross value of landings","landing declaration, sales notes","A","Every Year",100,null,43,43,1,{"$f":"N245/M245","v":1},1,"Additional Data Source - first sale documents. "]
["POL","Baltic Sea, North Sea and Eastern Arctic, and North Atlantic","Pelagic trawlers","24-<40 m","Pelagic trawlers 24-40 m","E","Income from leasing out quota or other fishing rights","not relevant",null,null,null,null,"N/A","N/A","N/A","N/A","N/A"]
["POL","Baltic Sea, North Sea and Eastern Arctic, and North Atlantic","Pelagic trawlers","24-<40 m","Pelagic trawlers 24-40 m","E","Other income","questionnaires","A","Every Year",100,null,43,29,{"$f":"N247/M247","v":0.67441860465116277},{"$f":"N247/M247","v":0.67441860465116277},0.67441860465116277,"Achieved Sample Rate lower than expected due to low no of responses "]
["POL","Baltic Sea, North Sea and Eastern Arctic, and North Atlantic","Pelagic trawlers","24-<40 m","Pelagic trawlers 24-40 m","E","Wages and salaries of crew","questionnaires","A","Every Year",100,null,43,29,{"$f":"N248/M248","v":0.67441860465116277},{"$f":"N248/M248","v":0.67441860465116277},0.67441860465116277,"Wrong variable name in WP - should read: \"Personnel cost\". Achieved Sample Rate lower than expected due to low no of responses "]
["POL","Baltic Sea, North Sea and Eastern Arctic, and North Atlantic","Pelagic trawlers","24-<40 m","Pelagic trawlers 24-40 m","E","Imputed value of unpaid labour","estimation","D","Every Year",100,null,43,29,0.67441860465116277,0.67441860465116277,0.67441860465116277,"Wrong variable name in WP - should read: \"Value of unpaid labour\". Achieved Sample Rate lower than expected due to low no of responses "]
["POL","Baltic Sea, North Sea and Eastern Arctic, and North Atlantic","Pelagic trawlers","24-<40 m","Pelagic trawlers 24-40 m","E","Energy costs","questionnaires","A","Every Year",100,null,43,29,0.67441860465116277,0.67441860465116277,0.67441860465116277,"Achieved Sample Rate lower than expected due to low no of responses "]
["POL","Baltic Sea, North Sea and Eastern Arctic, and North Atlantic","Pelagic trawlers","24-<40 m","Pelagic trawlers 24-40 m","E","Repair and maintenance costs","questionnaires","A","Every Year",100,null,43,29,0.67441860465116277,0.67441860465116277,0.67441860465116277,"Achieved Sample Rate lower than expected due to low no of responses "]
["POL","Baltic Sea, North Sea and Eastern Arctic, and North Atlantic","Pelagic trawlers","24-<40 m","Pelagic trawlers 24-40 m","E","Variable costs","questionnaires","A","Every Year",100,null,43,29,0.67441860465116277,0.67441860465116277,0.67441860465116277,"Achieved Sample Rate lower than expected due to low no of responses "]
["POL","Baltic Sea, North Sea and Eastern Arctic, and North Atlantic","Pelagic trawlers","24-<40 m","Pelagic trawlers 24-40 m","E","Non-variable costs","questionnaires","A","Every Year",100,null,43,29,0.67441860465116277,0.67441860465116277,{"$f":"N253/(M253*K253/100)","v":0.67441860465116277},"Achieved Sample Rate lower than expected due to low no of responses "]
["POL","Baltic Sea, North Sea and Eastern Arctic, and North Atlantic","Pelagic trawlers","24-<40 m","Pelagic trawlers 24-40 m","E","Lease/rental payments for quota or other fishing rights","questionnaires","A","Every Year",100,null,43,29,0.67441860465116277,0.67441860465116277,0.67441860465116277,"Achieved Sample Rate lower than expected due to low no of responses "]
["POL","Baltic Sea, North Sea and Eastern Arctic, and North Atlantic","Pelagic trawlers","24-<40 m","Pelagic trawlers 24-40 m","E","Operating Subsidies","administrative records","A","Every Year",100,null,43,43,1,1,1]
["POL","Baltic Sea, North Sea and Eastern Arctic, and North Atlantic","Pelagic trawlers","24-<40 m","Pelagic trawlers 24-40 m","E","Subsidies on investments","administrative records","A","Every Year",100,null,43,43,1,1,1]
["POL","Baltic Sea, North Sea and Eastern Arctic, and North Atlantic","Pelagic trawlers","24-<40 m","Pelagic trawlers 24-40 m","E","Lease/rental payments for quota or other fishing rights","not relevant",null,null,null,null,"N/A","N/A","N/A","N/A","N/A"]
["POL","Baltic Sea, North Sea and Eastern Arctic, and North Atlantic","Pelagic trawlers","24-<40 m","Pelagic trawlers 24-40 m","E","Consumption of fixed capital","questionnaires","A","Every Year",100,null,43,29,{"$f":"N258/M258","v":0.67441860465116277},{"$f":"N258/M258","v":0.67441860465116277},0.67441860465116277,"Achieved Sample Rate lower than expected due to low no of responses "]
["POL","Baltic Sea, North Sea and Eastern Arctic, and North Atlantic","Pelagic trawlers","24-<40 m","Pelagic trawlers 24-40 m","E","Value of physical capital","calculated based on scraping premium","A","Every Year",100,null,43,43,1,1,1,"Achieved Sample Rate lower than expected due to low no of responses "]
["POL","Baltic Sea, North Sea and Eastern Arctic, and North Atlantic","Pelagic trawlers","24-<40 m","Pelagic trawlers 24-40 m","E","Value of quota and other fishing rights","not relevant",null,null,null,null,"N/A","N/A","N/A","N/A","N/A"]
["POL","Baltic Sea, North Sea and Eastern Arctic, and North Atlantic","Pelagic trawlers","24-<40 m","Pelagic trawlers 24-40 m","E","Investments of tangible assets, net","questionnaires","A","Every Year",100,null,43,29,{"$f":"N261/M261","v":0.67441860465116277},{"$f":"N261/M261","v":0.67441860465116277},0.67441860465116277,"Achieved Sample Rate lower than expected due to low no of responses "]
["POL","Baltic Sea, North Sea and Eastern Arctic, and North Atlantic","Pelagic trawlers","24-<40 m","Pelagic trawlers 24-40 m","E","Long/short debts","questionnaires","A","Every Year",100,null,43,29,0.67441860465116277,0.67441860465116277,0.67441860465116277,"Achieved Sample Rate lower than expected due to low no of responses "]
["POL","Baltic Sea, North Sea and Eastern Arctic, and North Atlantic","Pelagic trawlers","24-<40 m","Pelagic trawlers 24-40 m","E","Total assets","questionnaires","A","Every Year",100,null,43,29,0.67441860465116277,0.67441860465116277,0.67441860465116277,"Achieved Sample Rate lower than expected due to low no of responses "]
["POL","Baltic Sea, North Sea and Eastern Arctic, and North Atlantic","Pelagic trawlers","24-<40 m","Pelagic trawlers 24-40 m","E","Engaged crew","questionnaires","A","Every Year",100,null,43,29,0.67441860465116277,0.67441860465116277,0.67441860465116277,"Achieved Sample Rate lower than expected due to low no of responses "]
["POL","Baltic Sea, North Sea and Eastern Arctic, and North Atlantic","Pelagic trawlers","24-<40 m","Pelagic trawlers 24-40 m","E","Unpaid labour","questionnaires","A","Every Year",100,null,43,29,0.67441860465116277,0.67441860465116277,0.67441860465116277,"Achieved Sample Rate lower than expected due to low no of responses "]
["POL","Baltic Sea, North Sea and Eastern Arctic, and North Atlantic","Pelagic trawlers","24-<40 m","Pelagic trawlers 24-40 m","E","Total hours worked per year","questionnaires","A","Every Year",100,null,43,29,0.67441860465116277,0.67441860465116277,0.67441860465116277,"Achieved Sample Rate lower than expected due to low no of responses "]
["POL","Baltic Sea, North Sea and Eastern Arctic, and North Atlantic","Pelagic trawlers","24-<40 m","Pelagic trawlers 24-40 m","E","Number of vessels","questionnaires, Register","A","Every Year",100,null,43,43,1,1,1]
["POL","Baltic Sea, North Sea and Eastern Arctic, and North Atlantic","Pelagic trawlers","24-<40 m","Pelagic trawlers 24-40 m","E","Mean LOA of vessels","questionnaires, Register","A","Every Year",100,null,43,43,1,1,1]
["POL","Baltic Sea, North Sea and Eastern Arctic, and North Atlantic","Pelagic trawlers","24-<40 m","Pelagic trawlers 24-40 m","E","Total vessels tonnage","questionnaires, Register","A","Every Year",100,null,43,43,1,1,1]
["POL","Baltic Sea, North Sea and Eastern Arctic, and North Atlantic","Pelagic trawlers","24-<40 m","Pelagic trawlers 24-40 m","E","Total vessels power","questionnaires, Register","A","Every Year",100,null,43,43,1,1,1]
["POL","Baltic Sea, North Sea and Eastern Arctic, and North Atlantic","Pelagic trawlers","24-<40 m","Pelagic trawlers 24-40 m","E","Mean age of vessels","questionnaires, Register","A","Every Year",100,null,43,43,1,1,1]
["POL","Baltic Sea, North Sea and Eastern Arctic, and North Atlantic","Pelagic trawlers","24-<40 m","Pelagic trawlers 24-40 m","E","Days at sea","questionnaires, logbooks","A","Every Year",100,null,43,43,1,1,1]
["POL","Baltic Sea, North Sea and Eastern Arctic, and North Atlantic","Pelagic trawlers","24-<40 m","Pelagic trawlers 24-40 m","E","Energy consuption","questionnaires","A","Every Year",100,null,43,29,0.67441860465116277,0.67441860465116277,0.67441860465116277,"Achieved Sample Rate lower than expected due to low no of responses "]
["POL","Baltic Sea, North Sea and Eastern Arctic, and North Atlantic","Pelagic trawlers","24-<40 m","Pelagic trawlers 24-40 m","E","Number of fishing enterprises/units","Register","A","Every Year",100,null,43,43,1,1,1]
["POL","Baltic Sea, North Sea and Eastern Arctic, and North Atlantic","Pelagic trawlers","24-<40 m","Pelagic trawlers 24-40 m","E","Value of landings per species","First sale document","A","Every Year",100,null,43,43,1,1,1]
["POL","Baltic Sea, North Sea and Eastern Arctic, and North Atlantic","Pelagic trawlers","24-<40 m","Pelagic trawlers 24-40 m","E","Average price per spices","First sale document","A","Every Year",100,null,43,43,1,1,1]
["POL","Baltic Sea, North Sea and Eastern Arctic, and North Atlantic","Pelagic trawlers","24-<40 m","Pelagic trawlers 24-40 m","S","Employment by gender","questionnaires","A","Every Year",100,null,43,29,0.67441860465116277,0.67441860465116277,0.67441860465116277,"Achieved Sample Rate lower than expected due to low no of responses "]
["POL","Baltic Sea, North Sea and Eastern Arctic, and North Atlantic","Pelagic trawlers","24-<40 m","Pelagic trawlers 24-40 m","S","FTE by gender","questionnaires","A","Every Year",100,null,43,29,0.67441860465116277,0.67441860465116277,0.67441860465116277,"Achieved Sample Rate lower than expected due to low no of responses "]
["POL","Baltic Sea, North Sea and Eastern Arctic, and North Atlantic","Pelagic trawlers","24-<40 m","Pelagic trawlers 24-40 m","S","Unpaid labour by gender","questionnaires","A","Every Year",100,null,43,29,0.67441860465116277,0.67441860465116277,0.67441860465116277,"Achieved Sample Rate lower than expected due to low no of responses "]
["POL","Baltic Sea, North Sea and Eastern Arctic, and North Atlantic","Pelagic trawlers","24-<40 m","Pelagic trawlers 24-40 m","S","Employment by age","questionnaires","A","Every Year",100,null,43,29,0.67441860465116277,0.67441860465116277,0.67441860465116277,"Achieved Sample Rate lower than expected due to low no of responses "]
["POL","Baltic Sea, North Sea and Eastern Arctic, and North Atlantic","Pelagic trawlers","24-<40 m","Pelagic trawlers 24-40 m","S","Employment by education level","questionnaires","A","Every Year",100,null,43,29,0.67441860465116277,0.67441860465116277,0.67441860465116277,"Achieved Sample Rate lower than expected due to low no of responses "]
["POL","Baltic Sea, North Sea and Eastern Arctic, and North Atlantic","Pelagic trawlers","24-<40 m","Pelagic trawlers 24-40 m","S","Employment by nationality","questionnaires","A","Every Year",100,null,43,29,0.67441860465116277,0.67441860465116277,0.67441860465116277,"Data were collected in 2019 (for 2018), data are estimated based on questionnaires"]
["POL","Baltic Sea, North Sea and Eastern Arctic, and North Atlantic","Pelagic trawlers","24-<40 m","Pelagic trawlers 24-40 m","S","Employment by employment status","questionnaires","A","Every Year",100,null,43,29,0.67441860465116277,0.67441860465116277,0.67441860465116277,"Achieved Sample Rate lower than expected due to low no of responses "]
["POL","Baltic Sea, North Sea and Eastern Arctic, and North Atlantic","Pelagic trawlers","24-<40 m","Pelagic trawlers 24-40 m","S","FTE National","questionnaires","A","Every Year",100,null,43,29,0.67441860465116277,0.67441860465116277,0.67441860465116277,"Achieved Sample Rate lower than expected due to low no of responses "]
["POL","Baltic Sea, North Sea and Eastern Arctic, and North Atlantic","Pelagic trawlers","40 m or larger","NA","E","Gross value of landings","landing declaration, sales notes","A","Every Year",100,null,3,3,1,{"$f":"N285/M285","v":1},1,"Supra region - includes also \"Other regions\". Additional Data Source - first sale documents. "]
["POL","Baltic Sea, North Sea and Eastern Arctic, and North Atlantic","Pelagic trawlers","40 m or larger","NA","E","Income from leasing out quota or other fishing rights","not relevant",null,null,null,null,"N/A","N/A","N/A","N/A","N/A","Supra region - includes also \"Other regions\". "]
["POL","Baltic Sea, North Sea and Eastern Arctic, and North Atlantic","Pelagic trawlers","40 m or larger","NA","E","Other income","questionnaires","A","Every Year",100,null,3,3,{"$f":"N287/M287","v":1},{"$f":"N287/M287","v":1},{"$f":"N287/(M287*K287/100)","v":1},"Supra region - includes also \"Other regions\". "]
["POL","Baltic Sea, North Sea and Eastern Arctic, and North Atlantic","Pelagic trawlers","40 m or larger","NA","E","Wages and salaries of crew","questionnaires","A","Every Year",100,null,3,3,{"$f":"N288/M288","v":1},{"$f":"N288/M288","v":1},1,"Wrong variable name in WP - should read: \"Personnel cost\". Supra region - includes also \"Other regions\". "]
["POL","Baltic Sea, North Sea and Eastern Arctic, and North Atlantic","Pelagic trawlers","40 m or larger","NA","E","Imputed value of unpaid labour","estimation","D","Every Year",100,null,3,3,1,1,1,"Wrong variable name in WP - should read: \"Value of unpaid labour\". Supra region - includes also \"Other regions\". "]
["POL","Baltic Sea, North Sea and Eastern Arctic, and North Atlantic","Pelagic trawlers","40 m or larger","NA","E","Energy costs","questionnaires","A","Every Year",100,null,3,3,1,1,1,"Supra region - includes also \"Other regions\". "]
["POL","Baltic Sea, North Sea and Eastern Arctic, and North Atlantic","Pelagic trawlers","40 m or larger","NA","E","Repair and maintenance costs","questionnaires","A","Every Year",100,null,3,3,1,1,1,"Supra region - includes also \"Other regions\". "]
["POL","Baltic Sea, North Sea and Eastern Arctic, and North Atlantic","Pelagic trawlers","40 m or larger","NA","E","Variable costs","questionnaires","A","Every Year",100,null,3,3,1,1,1,"Supra region - includes also \"Other regions\". "]
["POL","Baltic Sea, North Sea and Eastern Arctic, and North Atlantic","Pelagic trawlers","40 m or larger","NA","E","Non-variable costs","questionnaires","A","Every Year",100,null,3,3,1,1,1,"Supra region - includes also \"Other regions\". "]
["POL","Baltic Sea, North Sea and Eastern Arctic, and North Atlantic","Pelagic trawlers","40 m or larger","NA","E","Lease/rental payments for quota or other fishing rights","questionnaires","A","Every Year",100,null,3,3,1,1,1,"Supra region - includes also \"Other regions\". "]
["POL","Baltic Sea, North Sea and Eastern Arctic, and North Atlantic","Pelagic trawlers","40 m or larger","NA","E","Operating Subsidies","administrative records","A","Every Year",100,null,3,3,1,1,1,"Supra region - includes also \"Other regions\". "]
["POL","Baltic Sea, North Sea and Eastern Arctic, and North Atlantic","Pelagic trawlers","40 m or larger","NA","E","Subsidies on investments","administrative records","A","Every Year",100,null,3,3,1,1,1,"Supra region - includes also \"Other regions\". "]
["POL","Baltic Sea, North Sea and Eastern Arctic, and North Atlantic","Pelagic trawlers","40 m or larger","NA","E","Lease/rental payments for quota or other fishing rights","not relevant",null,null,null,null,"N/A","N/A","N/A","N/A","N/A","Supra region - includes also \"Other regions\". "]
["POL","Baltic Sea, North Sea and Eastern Arctic, and North Atlantic","Pelagic trawlers","40 m or larger","NA","E","Consumption of fixed capital","questionnaires","A","Every Year",100,null,3,3,{"$f":"N298/M298","v":1},{"$f":"N298/M298","v":1},{"$f":"N298/(M298*K298/100)","v":1},"Supra region - includes also \"Other regions\". "]
["POL","Baltic Sea, North Sea and Eastern Arctic, and North Atlantic","Pelagic trawlers","40 m or larger","NA","E","Value of physical capital","calculated based on scraping premium","A","Every Year",100,null,3,3,1,1,1,"Supra region - includes also \"Other regions\". "]
["POL","Baltic Sea, North Sea and Eastern Arctic, and North Atlantic","Pelagic trawlers","40 m or larger","NA","E","Value of quota and other fishing rights","not relevant",null,null,null,null,"N/A","N/A","N/A","N/A","N/A","Supra region - includes also \"Other regions\". "]
["POL","Baltic Sea, North Sea and Eastern Arctic, and North Atlantic","Pelagic trawlers","40 m or larger","NA","E","Investments of tangible assets, net","questionnaires","A","Every Year",100,null,3,3,{"$f":"N301/M301","v":1},{"$f":"N301/M301","v":1},{"$f":"N301/(M301*K301/100)","v":1},"Supra region - includes also \"Other regions\". "]
["POL","Baltic Sea, North Sea and Eastern Arctic, and North Atlantic","Pelagic trawlers","40 m or larger","NA","E","Long/short debts","questionnaires","A","Every Year",100,null,3,3,1,1,1,"Supra region - includes also \"Other regions\". "]
["POL","Baltic Sea, North Sea and Eastern Arctic, and North Atlantic","Pelagic trawlers","40 m or larger","NA","E","Total assets","questionnaires","A","Every Year",100,null,3,3,1,1,1,"Supra region - includes also \"Other regions\". "]
["POL","Baltic Sea, North Sea and Eastern Arctic, and North Atlantic","Pelagic trawlers","40 m or larger","NA","E","Engaged crew","questionnaires","A","Every Year",100,null,3,3,1,1,1,"Supra region - includes also \"Other regions\". "]
["POL","Baltic Sea, North Sea and Eastern Arctic, and North Atlantic","Pelagic trawlers","40 m or larger","NA","E","Unpaid labour","questionnaires","A","Every Year",100,null,3,3,1,1,1,"Supra region - includes also \"Other regions\". "]
["POL","Baltic Sea, North Sea and Eastern Arctic, and North Atlantic","Pelagic trawlers","40 m or larger","NA","E","Total hours worked per year","questionnaires","A","Every Year",100,null,3,3,1,1,1,"Supra region - includes also \"Other regions\". "]
["POL","Baltic Sea, North Sea and Eastern Arctic, and North Atlantic","Pelagic trawlers","40 m or larger","NA","E","Number of vessels","questionnaires, Register","A","Every Year",100,null,3,3,1,1,1,"Supra region - includes also \"Other regions\". "]
["POL","Baltic Sea, North Sea and Eastern Arctic, and North Atlantic","Pelagic trawlers","40 m or larger","NA","E","Mean LOA of vessels","questionnaires, Register","A","Every Year",100,null,3,3,1,1,1,"Supra region - includes also \"Other regions\". "]
["POL","Baltic Sea, North Sea and Eastern Arctic, and North Atlantic","Pelagic trawlers","40 m or larger","NA","E","Total vessels tonnage","questionnaires, Register","A","Every Year",100,null,3,3,1,1,1,"Supra region - includes also \"Other regions\". "]
["POL","Baltic Sea, North Sea and Eastern Arctic, and North Atlantic","Pelagic trawlers","40 m or larger","NA","E","Total vessels power","questionnaires, Register","A","Every Year",100,null,3,3,1,1,1,"Supra region - includes also \"Other regions\". "]
["POL","Baltic Sea, North Sea and Eastern Arctic, and North Atlantic","Pelagic trawlers","40 m or larger","NA","E","Mean age of vessels","questionnaires, Register","A","Every Year",100,null,3,3,1,1,1,"Supra region - includes also \"Other regions\". "]
["POL","Baltic Sea, North Sea and Eastern Arctic, and North Atlantic","Pelagic trawlers","40 m or larger","NA","E","Days at sea","questionnaires, logbooks","A","Every Year",100,null,3,3,1,1,1,"Supra region - includes also \"Other regions\". "]
["POL","Baltic Sea, North Sea and Eastern Arctic, and North Atlantic","Pelagic trawlers","40 m or larger","NA","E","Energy consuption","questionnaires","A","Every Year",100,null,3,3,1,1,1,"Supra region - includes also \"Other regions\". "]
["POL","Baltic Sea, North Sea and Eastern Arctic, and North Atlantic","Pelagic trawlers","40 m or larger","NA","E","Number of fishing enterprises/units","Register","A","Every Year",100,null,3,3,1,1,1,"Supra region - includes also \"Other regions\". "]
["POL","Baltic Sea, North Sea and Eastern Arctic, and North Atlantic","Pelagic trawlers","40 m or larger","NA","E","Value of landings per species","First sale document","A","Every Year",100,null,3,3,1,1,1,"Supra region - includes also \"Other regions\". "]
["POL","Baltic Sea, North Sea and Eastern Arctic, and North Atlantic","Pelagic trawlers","40 m or larger","NA","E","Average price per spices","First sale document","A","Every Year",100,null,3,3,1,1,1,"Supra region - includes also \"Other regions\". "]
["POL","Baltic Sea, North Sea and Eastern Arctic, and North Atlantic","Pelagic trawlers","40 m or larger","NA","S","Employment by gender","questionnaires","A","Every Year",100,null,3,3,1,1,1,"Supra region - includes also \"Other regions\". "]
["POL","Baltic Sea, North Sea and Eastern Arctic, and North Atlantic","Pelagic trawlers","40 m or larger","NA","S","FTE by gender","questionnaires","A","Every Year",100,null,3,3,1,1,1,"Supra region - includes also \"Other regions\". "]
["POL","Baltic Sea, North Sea and Eastern Arctic, and North Atlantic","Pelagic trawlers","40 m or larger","NA","S","Unpaid labour by gender","questionnaires","A","Every Year",100,null,3,3,1,1,1,"Supra region - includes also \"Other regions\". "]
["POL","Baltic Sea, North Sea and Eastern Arctic, and North Atlantic","Pelagic trawlers","40 m or larger","NA","S","Employment by age","questionnaires","A","Every Year",100,null,3,3,1,1,1,"Supra region - includes also \"Other regions\". "]
["POL","Baltic Sea, North Sea and Eastern Arctic, and North Atlantic","Pelagic trawlers","40 m or larger","NA","S","Employment by education level","questionnaires","A","Every Year",100,null,3,3,1,1,1,"Supra region - includes also \"Other regions\". "]
["POL","Baltic Sea, North Sea and Eastern Arctic, and North Atlantic","Pelagic trawlers","40 m or larger","NA","S","Employment by nationality","questionnaires","A","Every Year",100,null,3,3,1,1,1,"Supra region - includes also \"Other regions\"."]
["POL","Baltic Sea, North Sea and Eastern Arctic, and North Atlantic","Pelagic trawlers","40 m or larger","NA","S","Employment by employment status","questionnaires","A","Every Year",100,null,3,3,1,1,1,"Supra region - includes also \"Other regions\". "]
["POL","Baltic Sea, North Sea and Eastern Arctic, and North Atlantic","Pelagic trawlers","40 m or larger","NA","S","FTE National","questionnaires","A","Every Year",100,null,3,3,1,1,1,"Supra region - includes also \"Other regions\". "]
["POL","Baltic Sea, North Sea and Eastern Arctic, and North Atlantic","Demersal trawlers and seiners","40 m or larger","NA","E","Gross value of landings","landing declaration, sales notes","A","Every Year",100,null,1,1,1,1,1]
["POL","Baltic Sea, North Sea and Eastern Arctic, and North Atlantic","Demersal trawlers and seiners","40 m or larger","NA","E","Income from leasing out quota or other fishing rights","not relevant",null,null,null,null,"N/A","N/A","N/A","N/A","N/A"]
["POL","Baltic Sea, North Sea and Eastern Arctic, and North Atlantic","Demersal trawlers and seiners","40 m or larger","NA","E","Other income","questionnaires","A","Every Year",100,null,1,1,{"$f":"N327/M327","v":1},{"$f":"N327/M327","v":1},{"$f":"N327/(M327*K327/100)","v":1}]
["POL","Baltic Sea, North Sea and Eastern Arctic, and North Atlantic","Demersal trawlers and seiners","40 m or larger","NA","E","Wages and salaries of crew","questionnaires","A","Every Year",100,null,1,1,1,1,1,"Wrong variable name in WP - should read: \"Personnel cost\"."]
["POL","Baltic Sea, North Sea and Eastern Arctic, and North Atlantic","Demersal trawlers and seiners","40 m or larger","NA","E","Imputed value of unpaid labour","estimation","D","Every Year",100,null,1,1,1,1,1,"Wrong variable name in WP - should read: \"Value of unpaid labour\"."]
["POL","Baltic Sea, North Sea and Eastern Arctic, and North Atlantic","Demersal trawlers and seiners","40 m or larger","NA","E","Energy costs","questionnaires","A","Every Year",100,null,1,1,1,1,1]
["POL","Baltic Sea, North Sea and Eastern Arctic, and North Atlantic","Demersal trawlers and seiners","40 m or larger","NA","E","Repair and maintenance costs","questionnaires","A","Every Year",100,null,1,1,1,1,1]
["POL","Baltic Sea, North Sea and Eastern Arctic, and North Atlantic","Demersal trawlers and seiners","40 m or larger","NA","E","Variable costs","questionnaires","A","Every Year",100,null,1,1,1,1,1]
["POL","Baltic Sea, North Sea and Eastern Arctic, and North Atlantic","Demersal trawlers and seiners","40 m or larger","NA","E","Non-variable costs","questionnaires","A","Every Year",100,null,1,1,1,1,1]
["POL","Baltic Sea, North Sea and Eastern Arctic, and North Atlantic","Demersal trawlers and seiners","40 m or larger","NA","E","Lease/rental payments for quota or other fishing rights","questionnaires","A","Every Year",100,null,1,1,1,1,1]
["POL","Baltic Sea, North Sea and Eastern Arctic, and North Atlantic","Demersal trawlers and seiners","40 m or larger","NA","E","Operating Subsidies","administrative records","A","Every Year",100,null,1,1,1,1,1]
["POL","Baltic Sea, North Sea and Eastern Arctic, and North Atlantic","Demersal trawlers and seiners","40 m or larger","NA","E","Subsidies on investments","administrative records","A","Every Year",100,null,1,1,1,1,1]
["POL","Baltic Sea, North Sea and Eastern Arctic, and North Atlantic","Demersal trawlers and seiners","40 m or larger","NA","E","Lease/rental payments for quota or other fishing rights","not relevant",null,null,null,null,"N/A","N/A","N/A","N/A","N/A"]
["POL","Baltic Sea, North Sea and Eastern Arctic, and North Atlantic","Demersal trawlers and seiners","40 m or larger","NA","E","Consumption of fixed capital","questionnaires","A","Every Year",100,null,1,1,{"$f":"N338/M338","v":1},{"$f":"N338/M338","v":1},{"$f":"N338/(M338*K338/100)","v":1}]
["POL","Baltic Sea, North Sea and Eastern Arctic, and North Atlantic","Demersal trawlers and seiners","40 m or larger","NA","E","Value of physical capital","calculated based on scraping premium","A","Every Year",100,null,1,1,1,1,1]
["POL","Baltic Sea, North Sea and Eastern Arctic, and North Atlantic","Demersal trawlers and seiners","40 m or larger","NA","E","Value of quota and other fishing rights","not relevant",null,null,null,null,"N/A","N/A","N/A","N/A","N/A"]
["POL","Baltic Sea, North Sea and Eastern Arctic, and North Atlantic","Demersal trawlers and seiners","40 m or larger","NA","E","Investments of tangible assets, net","questionnaires","A","Every Year",100,null,1,1,{"$f":"N341/M341","v":1},{"$f":"N341/M341","v":1},{"$f":"N341/(M341*K341/100)","v":1}]
["POL","Baltic Sea, North Sea and Eastern Arctic, and North Atlantic","Demersal trawlers and seiners","40 m or larger","NA","E","Long/short debts","questionnaires","A","Every Year",100,null,1,1,1,1,1]
["POL","Baltic Sea, North Sea and Eastern Arctic, and North Atlantic","Demersal trawlers and seiners","40 m or larger","NA","E","Total assets","questionnaires","A","Every Year",100,null,1,1,1,1,1]
["POL","Baltic Sea, North Sea and Eastern Arctic, and North Atlantic","Demersal trawlers and seiners","40 m or larger","NA","E","Engaged crew","questionnaires","A","Every Year",100,null,1,1,1,1,1]
["POL","Baltic Sea, North Sea and Eastern Arctic, and North Atlantic","Demersal trawlers and seiners","40 m or larger","NA","E","Unpaid labour","questionnaires","A","Every Year",100,null,1,1,1,1,1]
["POL","Baltic Sea, North Sea and Eastern Arctic, and North Atlantic","Demersal trawlers and seiners","40 m or larger","NA","E","Total hours worked per year","questionnaires","A","Every Year",100,null,1,1,1,1,1]
["POL","Baltic Sea, North Sea and Eastern Arctic, and North Atlantic","Demersal trawlers and seiners","40 m or larger","NA","E","Number of vessels","questionnaires, Register","A","Every Year",100,null,1,1,1,1,1]
["POL","Baltic Sea, North Sea and Eastern Arctic, and North Atlantic","Demersal trawlers and seiners","40 m or larger","NA","E","Mean LOA of vessels","questionnaires, Register","A","Every Year",100,null,1,1,1,1,1]
["POL","Baltic Sea, North Sea and Eastern Arctic, and North Atlantic","Demersal trawlers and seiners","40 m or larger","NA","E","Total vessels tonnage","questionnaires, Register","A","Every Year",100,null,1,1,1,1,1]
["POL","Baltic Sea, North Sea and Eastern Arctic, and North Atlantic","Demersal trawlers and seiners","40 m or larger","NA","E","Total vessels power","questionnaires, Register","A","Every Year",100,null,1,1,1,1,1]
["POL","Baltic Sea, North Sea and Eastern Arctic, and North Atlantic","Demersal trawlers and seiners","40 m or larger","NA","E","Mean age of vessels","questionnaires, Register","A","Every Year",100,null,1,1,1,1,1]
["POL","Baltic Sea, North Sea and Eastern Arctic, and North Atlantic","Demersal trawlers and seiners","40 m or larger","NA","E","Days at sea","questionnaires, logbooks","A","Every Year",100,null,1,1,1,1,1]
["POL","Baltic Sea, North Sea and Eastern Arctic, and North Atlantic","Demersal trawlers and seiners","40 m or larger","NA","E","Energy consuption","questionnaires","A","Every Year",100,null,1,1,1,1,1]
["POL","Baltic Sea, North Sea and Eastern Arctic, and North Atlantic","Demersal trawlers and seiners","40 m or larger","NA","E","Number of fishing enterprises/units","Register","A","Every Year",100,null,1,1,1,1,1]
["POL","Baltic Sea, North Sea and Eastern Arctic, and North Atlantic","Demersal trawlers and seiners","40 m or larger","NA","E","Value of landings per species","First sale document","A","Every Year",100,null,1,1,1,1,1]
["POL","Baltic Sea, North Sea and Eastern Arctic, and North Atlantic","Demersal trawlers and seiners","40 m or larger","NA","E","Average price per spices","First sale document","A","Every Year",100,null,1,1,1,1,1]
["POL","Baltic Sea, North Sea and Eastern Arctic, and North Atlantic","Demersal trawlers and seiners","40 m or larger","NA","S","Employment by gender","questionnaires","A","Every Year",100,null,1,1,1,1,1]
["POL","Baltic Sea, North Sea and Eastern Arctic, and North Atlantic","Demersal trawlers and seiners","40 m or larger","NA","S","FTE by gender","questionnaires","A","Every Year",100,null,1,1,1,1,1]
["POL","Baltic Sea, North Sea and Eastern Arctic, and North Atlantic","Demersal trawlers and seiners","40 m or larger","NA","S","Unpaid labour by gender","questionnaires","A","Every Year",100,null,1,1,1,1,1]
["POL","Baltic Sea, North Sea and Eastern Arctic, and North Atlantic","Demersal trawlers and seiners","40 m or larger","NA","S","Employment by age","questionnaires","A","Every Year",100,null,1,1,1,1,1]
["POL","Baltic Sea, North Sea and Eastern Arctic, and North Atlantic","Demersal trawlers and seiners","40 m or larger","NA","S","Employment by education level","questionnaires","A","Every Year",100,null,1,1,1,1,1]
["POL","Baltic Sea, North Sea and Eastern Arctic, and North Atlantic","Demersal trawlers and seiners","40 m or larger","NA","S","Employment by nationality","questionnaires","A","Every Year",100,null,1,1,1,1,1]
["POL","Baltic Sea, North Sea and Eastern Arctic, and North Atlantic","Demersal trawlers and seiners","40 m or larger","NA","S","Employment by employment status","questionnaires","A","Every Year",100,null,1,1,1,1,1]
["POL","Baltic Sea, North Sea and Eastern Arctic, and North Atlantic","Demersal trawlers and seiners","40 m or larger","NA","S","FTE National","questionnaires","A","Every Year",100,null,1,1,1,1,1]
["POL","Baltic Sea, North Sea and Eastern Arctic, and North Atlantic","Inactive","all length classes","Inactive","E","Number of vessels","questionnaires, Register","A","Every Year",100,null,49,49,1,1,1]
["POL","Baltic Sea, North Sea and Eastern Arctic, and North Atlantic","Inactive","all length classes","Inactive","E","Mean LOA of vessels","questionnaires, Register","A","Every Year",100,null,49,49,1,1,1]
["POL","Baltic Sea, North Sea and Eastern Arctic, and North Atlantic","Inactive","all length classes","Inactive","E","Total vessels tonnage","questionnaires, Register","A","Every Year",100,null,49,49,1,1,1]
["POL","Baltic Sea, North Sea and Eastern Arctic, and North Atlantic","Inactive","all length classes","Inactive","E","Total vessels power","questionnaires, Register","A","Every Year",100,null,49,49,1,1,1]
["POL","Baltic Sea, North Sea and Eastern Arctic, and North Atlantic","Inactive","all length classes","Inactive","E","Mean age of vessels","questionnaires, Register","A","Every Year",100,null,49,49,1,1,1]
["POL","Baltic Sea, North Sea and Eastern Arctic, and North Atlantic","Inactive","all length classes","Inactive","E","Number of fishing enterprises/units","Register","A","Every Year",100,null,49,49,1,1,1]
["POL","Baltic Sea, North Sea and Eastern Arctic, and North Atlantic","Vessels using Pots and/or traps","24-<40 m","NA","E","Gross value of landings","landing declaration, sales notes","A","Every Year",100,null,1,1,1,{"$f":"N371/M371","v":1},1,"vessel started fishing in 2018 thus not included in WP"]
["POL","Baltic Sea, North Sea and Eastern Arctic, and North Atlantic","Vessels using Pots and/or traps","24-<40 m","NA","E","Income from leasing out quota or other fishing rights","not relevant",null,null,null,null,"N/A","N/A","N/A","N/A","N/A","vessel started fishing in 2018 thus not included in WP"]
["POL","Baltic Sea, North Sea and Eastern Arctic, and North Atlantic","Vessels using Pots and/or traps","24-<40 m","NA","E","Other income","questionnaires","A","Every Year",100,null,1,1,{"$f":"N373/M373","v":1},{"$f":"N373/M373","v":1},{"$f":"N373/(M373*K373/100)","v":1},"vessel started fishing in 2018 thus not included in WP"]
["POL","Baltic Sea, North Sea and Eastern Arctic, and North Atlantic","Vessels using Pots and/or traps","24-<40 m","NA","E","Wages and salaries of crew","questionnaires","A","Every Year",100,null,1,1,{"$f":"N374/M374","v":1},{"$f":"N374/M374","v":1},1,"vessel started fishing in 2018 thus not included in WP"]
["POL","Baltic Sea, North Sea and Eastern Arctic, and North Atlantic","Vessels using Pots and/or traps","24-<40 m","NA","E","Imputed value of unpaid labour","questionnaires","A","Every Year",100,null,1,1,1,1,1,"vessel started fishing in 2018 thus not included in WP"]
["POL","Baltic Sea, North Sea and Eastern Arctic, and North Atlantic","Vessels using Pots and/or traps","24-<40 m","NA","E","Energy costs","questionnaires","A","Every Year",100,null,1,1,1,1,1,"vessel started fishing in 2018 thus not included in WP"]
["POL","Baltic Sea, North Sea and Eastern Arctic, and North Atlantic","Vessels using Pots and/or traps","24-<40 m","NA","E","Repair and maintenance costs","questionnaires","A","Every Year",100,null,1,1,1,1,1,"vessel started fishing in 2018 thus not included in WP"]
["POL","Baltic Sea, North Sea and Eastern Arctic, and North Atlantic","Vessels using Pots and/or traps","24-<40 m","NA","E","Variable costs","questionnaires","A","Every Year",100,null,1,1,1,1,1,"vessel started fishing in 2018 thus not included in WP"]
["POL","Baltic Sea, North Sea and Eastern Arctic, and North Atlantic","Vessels using Pots and/or traps","24-<40 m","NA","E","Non-variable costs","questionnaires","A","Every Year",100,null,1,1,1,1,1,"vessel started fishing in 2018 thus not included in WP"]
["POL","Baltic Sea, North Sea and Eastern Arctic, and North Atlantic","Vessels using Pots and/or traps","24-<40 m","NA","E","Lease/rental payments for quota or other fishing rights","questionnaires","A","Every Year",100,null,1,1,1,1,1,"vessel started fishing in 2018 thus not included in WP"]
["POL","Baltic Sea, North Sea and Eastern Arctic, and North Atlantic","Vessels using Pots and/or traps","24-<40 m","NA","E","Operating Subsidies","administrative records","A","Every Year",100,null,1,1,1,1,1,"vessel started fishing in 2018 thus not included in WP"]
["POL","Baltic Sea, North Sea and Eastern Arctic, and North Atlantic","Vessels using Pots and/or traps","24-<40 m","NA","E","Subsidies on investments","administrative records","A","Every Year",100,null,1,1,1,1,1,"vessel started fishing in 2018 thus not included in WP"]
["POL","Baltic Sea, North Sea and Eastern Arctic, and North Atlantic","Vessels using Pots and/or traps","24-<40 m","NA","E","Lease/rental payments for quota or other fishing rights","questionnaires","A","Every Year",101,null,1,1,"N/A","N/A","N/A","vessel started fishing in 2018 thus not included in WP"]
["POL","Baltic Sea, North Sea and Eastern Arctic, and North Atlantic","Vessels using Pots and/or traps","24-<40 m","NA","E","Consumption of fixed capital","questionnaires","A","Every Year",100,null,1,1,{"$f":"N384/M384","v":1},{"$f":"N384/M384","v":1},{"$f":"N384/(M384*K384/100)","v":1},"vessel started fishing in 2018 thus not included in WP"]
["POL","Baltic Sea, North Sea and Eastern Arctic, and North Atlantic","Vessels using Pots and/or traps","24-<40 m","NA","E","Value of physical capital","calculated based on scraping premium","A","Every Year",100,null,1,1,1,1,1,"vessel started fishing in 2018 thus not included in WP"]
["POL","Baltic Sea, North Sea and Eastern Arctic, and North Atlantic","Vessels using Pots and/or traps","24-<40 m","NA","E","Value of quota and other fishing rights","not relevant",null,null,null,null,"N/A","N/A","N/A","N/A","N/A","New row - vessel started fishing in 2018 thus not included in WP"]
["POL","Baltic Sea, North Sea and Eastern Arctic, and North Atlantic","Vessels using Pots and/or traps","24-<40 m","NA","E","Investments of tangible assets, net","questionnaires","A","Every Year",100,null,1,1,{"$f":"N387/M387","v":1},{"$f":"N387/M387","v":1},{"$f":"N387/(M387*K387/100)","v":1},"New row - vessel started fishing in 2018 thus not included in WP"]
["POL","Baltic Sea, North Sea and Eastern Arctic, and North Atlantic","Vessels using Pots and/or traps","24-<40 m","NA","E","Long/short debts","questionnaires","A","Every Year",100,null,1,1,1,1,1,"New row - vessel started fishing in 2018 thus not included in WP"]
["POL","Baltic Sea, North Sea and Eastern Arctic, and North Atlantic","Vessels using Pots and/or traps","24-<40 m","NA","E","Total assets","questionnaires","A","Every Year",100,null,1,1,1,1,1,"New row - vessel started fishing in 2018 thus not included in WP"]
["POL","Baltic Sea, North Sea and Eastern Arctic, and North Atlantic","Vessels using Pots and/or traps","24-<40 m","NA","E","Engaged crew","questionnaires","A","Every Year",100,null,1,1,1,1,1,"New row - vessel started fishing in 2018 thus not included in WP"]
["POL","Baltic Sea, North Sea and Eastern Arctic, and North Atlantic","Vessels using Pots and/or traps","24-<40 m","NA","E","Unpaid labour","questionnaires","A","Every Year",100,null,1,1,1,1,1,"New row - vessel started fishing in 2018 thus not included in WP"]
["POL","Baltic Sea, North Sea and Eastern Arctic, and North Atlantic","Vessels using Pots and/or traps","24-<40 m","NA","E","Total hours worked per year","questionnaires","A","Every Year",100,null,1,1,1,1,1,"New row - vessel started fishing in 2018 thus not included in WP"]
["POL","Baltic Sea, North Sea and Eastern Arctic, and North Atlantic","Vessels using Pots and/or traps","24-<40 m","NA","E","Number of vessels","questionnaires, Register","A","Every Year",100,null,1,1,1,1,1,"New row - vessel started fishing in 2018 thus not included in WP"]
["POL","Baltic Sea, North Sea and Eastern Arctic, and North Atlantic","Vessels using Pots and/or traps","24-<40 m","NA","E","Mean LOA of vessels","questionnaires, Register","A","Every Year",100,null,1,1,1,1,1,"New row - vessel started fishing in 2018 thus not included in WP"]
["POL","Baltic Sea, North Sea and Eastern Arctic, and North Atlantic","Vessels using Pots and/or traps","24-<40 m","NA","E","Total vessels tonnage","questionnaires, Register","A","Every Year",100,null,1,1,1,1,1,"New row - vessel started fishing in 2018 thus not included in WP"]
["POL","Baltic Sea, North Sea and Eastern Arctic, and North Atlantic","Vessels using Pots and/or traps","24-<40 m","NA","E","Total vessels power","questionnaires, Register","A","Every Year",100,null,1,1,1,1,1,"New row - vessel started fishing in 2018 thus not included in WP"]
["POL","Baltic Sea, North Sea and Eastern Arctic, and North Atlantic","Vessels using Pots and/or traps","24-<40 m","NA","E","Mean age of vessels","questionnaires, Register","A","Every Year",100,null,1,1,1,1,1,"New row - vessel started fishing in 2018 thus not included in WP"]
["POL","Baltic Sea, North Sea and Eastern Arctic, and North Atlantic","Vessels using Pots and/or traps","24-<40 m","NA","E","Days at sea","questionnaires, logbooks","A","Every Year",100,null,1,1,1,1,1,"New row - vessel started fishing in 2018 thus not included in WP"]
["POL","Baltic Sea, North Sea and Eastern Arctic, and North Atlantic","Vessels using Pots and/or traps","24-<40 m","NA","E","Energy consuption","questionnaires","A","Every Year",100,null,1,1,1,1,1,"New row - vessel started fishing in 2018 thus not included in WP"]
["POL","Baltic Sea, North Sea and Eastern Arctic, and North Atlantic","Vessels using Pots and/or traps","24-<40 m","NA","E","Number of fishing enterprises/units","Register","A","Every Year",100,null,1,1,1,1,1,"New row - vessel started fishing in 2018 thus not included in WP"]
["POL","Baltic Sea, North Sea and Eastern Arctic, and North Atlantic","Vessels using Pots and/or traps","24-<40 m","NA","E","Value of landings per species","First sale document","A","Every Year",100,null,1,1,1,1,1,"New row - vessel started fishing in 2018 thus not included in WP"]
["POL","Baltic Sea, North Sea and Eastern Arctic, and North Atlantic","Vessels using Pots and/or traps","24-<40 m","NA","E","Average price per spices","First sale document","A","Every Year",100,null,1,1,1,1,1,"New row - vessel started fishing in 2018 thus not included in WP"]
["POL","Baltic Sea, North Sea and Eastern Arctic, and North Atlantic","Vessels using Pots and/or traps","24-<40 m","NA","S","Employment by gender","questionnaires","A","Every Year",100,null,1,1,1,1,1,"New row - vessel started fishing in 2018 thus not included in WP"]
["POL","Baltic Sea, North Sea and Eastern Arctic, and North Atlantic","Vessels using Pots and/or traps","24-<40 m","NA","S","FTE by gender","questionnaires","A","Every Year",100,null,1,1,1,1,1,"New row - vessel started fishing in 2018 thus not included in WP"]
["POL","Baltic Sea, North Sea and Eastern Arctic, and North Atlantic","Vessels using Pots and/or traps","24-<40 m","NA","S","Unpaid labour by gender","questionnaires","A","Every Year",100,null,1,1,1,1,1,"New row - vessel started fishing in 2018 thus not included in WP"]
["POL","Baltic Sea, North Sea and Eastern Arctic, and North Atlantic","Vessels using Pots and/or traps","24-<40 m","NA","S","Employment by age","questionnaires","A","Every Year",100,null,1,1,1,1,1,"New row - vessel started fishing in 2018 thus not included in WP"]
["POL","Baltic Sea, North Sea and Eastern Arctic, and North Atlantic","Vessels using Pots and/or traps","24-<40 m","NA","S","Employment by education level","questionnaires","A","Every Year",100,null,1,1,1,1,1,"New row - vessel started fishing in 2018 thus not included in WP"]
["POL","Baltic Sea, North Sea and Eastern Arctic, and North Atlantic","Vessels using Pots and/or traps","24-<40 m","NA","S","Employment by nationality","questionnaires","A","Every Year",100,null,1,1,1,1,1,"New row - vessel started fishing in 2018 thus not included in WP"]
["POL","Baltic Sea, North Sea and Eastern Arctic, and North Atlantic","Vessels using Pots and/or traps","24-<40 m","NA","S","Employment by employment status","questionnaires","A","Every Year",100,null,1,1,1,1,1,"New row - vessel started fishing in 2018 thus not included in WP"]

{"sheet":"Table3B Pop segments aquacultur","index":10,"n_rows":5,"n_cols":18,"rows_kept":5,"cut":false,"hidden":false,"merged":[]}
["Table 3B: Population segments for collection of economic and social data for aquaculture"]
[null,null,null,null,null,null,null,null,null,null,null,null,null,null,null,null,"WP  years","2017-2019"]
[null,null,null,null,null,null,null,null,null,null,null,null,null,null,null,null,"AR year",2019]
["MS","Techniques","Species group","Type of variables (E/S)","Variable","Data source","Type of data collection scheme ","Threshold (Y/N)","Threshold Type","Frequency","Planned sample rate % ","Comments","Frame population","Achieved sample number","Achieved Sample Rate %","Response Rate %","Achieved Sample no/Planned sample no.","AR Comment"]
["POL","NA","NA","NA","NA","NA","NA","NA",null,"NA","NA","Based on the data until 2015, according to  classification of aquaculture activities by Eurostat statistics, Poland has no marine aquaculture sector. Hence, no sampling is planned","NA","NA","NA","NA","NA"]

{"sheet":"Table3C Pop segments processin","index":11,"n_rows":108,"n_cols":15,"rows_kept":108,"cut":false,"hidden":false,"merged":[]}
["Table 3C: Population segments for collection of economic and social data for the processing industry"]
[null,null,null,null,null,null,null,null,null,null,null,null,null,"WP  years","2017-2019"]
[null,null,null,null,null,null,null,null,null,null,null,null,null,"AR year",2019]
["MS","Segment","Type of variables (E/S)","Variables ","Data sources","Type of data collection scheme ","Frequency","Planned sample rate % ","Comments","Frame population","Achieved sample number","Achieved Sample Rate %","Response Rate %","Achieved Sample no/Planned sample no.","AR Comments"]
["POL","Companies <= 10","E","Turnover","questionnaires","A - Census","every year",1,null,53,32,{"$f":"K5/J5","v":0.60377358490566035},{"$f":"K5/J5","v":0.60377358490566035},{"$f":"K5/(J5*H5/100)","v":60.377358490566031}]
["POL","Companies <= 10","E","Other income","questionnaires","A - Census","every year",1,null,53,32,{"$f":"K6/J6","v":0.60377358490566035},{"$f":"K6/J6","v":0.60377358490566035},{"$f":"K6/(J6*H6/100)","v":60.377358490566031}]
["POL","Companies <= 10","E","Personnel costs","questionnaires","A - Census","every year",1,null,53,32,0.60377358490566035,0.60377358490566035,60.377358490566031]
["POL","Companies <= 10","E","Value of unpaid labour","questionnaires","A - Census","every year",1,null,53,"NA"]
["POL","Companies <= 10","E","Energy costs","questionnaires","A - Census","every year",1,null,53,32,0.60377358490566035,0.60377358490566035,60.377358490566031]
["POL","Companies <= 10","E","Purchase of fish and other raw material for production","questionnaires","A - Census","every year",1,null,53,32,0.60377358490566035,0.60377358490566035,60.377358490566031]
["POL","Companies <= 10","E","Other operational costs","questionnaires","A - Census","every year",1,null,53,32,0.60377358490566035,0.60377358490566035,60.377358490566031]
["POL","Companies <= 10","E","Operating subsidies","questionnaires","A - Census","every year",1,null,53,32,0.60377358490566035,0.60377358490566035,60.377358490566031]
["POL","Companies <= 10","E","Subsidies on investments","questionnaires","A - Census","every year",1,null,53,32,0.60377358490566035,0.60377358490566035,60.377358490566031]
["POL","Companies <= 10","E","Consumption of fixed capital","questionnaires","A - Census","every year",1,null,53,32,0.60377358490566035,0.60377358490566035,60.377358490566031]
["POL","Companies <= 10","E","Total value of assets","questionnaires","A - Census","every year",1,null,53,32,0.60377358490566035,0.60377358490566035,60.377358490566031]
["POL","Companies <= 10","E","Financial income","questionnaires","A - Census","every year",1,null,53,32,0.60377358490566035,0.60377358490566035,60.377358490566031]
["POL","Companies <= 10","E","Financial expenditures","questionnaires","A - Census","every year",1,null,53,32,0.60377358490566035,0.60377358490566035,60.377358490566031]
["POL","Companies <= 10","E","Net investments","questionnaires","A - Census","every year",1,null,53,32,0.60377358490566035,0.60377358490566035,60.377358490566031]
["POL","Companies <= 10","E","Debt","questionnaires","A - Census","every year",1,null,53,"NA"]
["POL","Companies <= 10","E","Number of persons employed","questionnaires","A - Census","every year",1,null,53,32,0.60377358490566035,0.60377358490566035,60.377358490566031]
["POL","Companies <= 10","E","FTE National","questionnaires","A - Census","every year",1,null,53,32,0.60377358490566035,0.60377358490566035,60.377358490566031]
["POL","Companies <= 10","E","Unpaid labour","questionnaires","A - Census","every year",1,null,53,"NA"]
["POL","Companies <= 10","E","Number of hours worked by employees and unpaid workers","questionnaires","A - Census","every year",1,null,53,32,0.60377358490566035,0.60377358490566035,60.377358490566031]
["POL","Companies <= 10","E","Number of enterprises","General Veterinary Inspectorate","A - Census","every year",1,null,53,32,0.60377358490566035,0.60377358490566035,60.377358490566031,"Inactive units are excluded from frame population, despite the calls/emails lack of responses"]
["POL","Companies <= 10","E","Weight of raw material per species and origin (optional)","questionnaires","A - Census","every year",1,null,53,32,0.60377358490566035,0.60377358490566035,60.377358490566031]
["POL","Companies <= 10","S","Employment by gender","questionnaires","A - Census","every year",1,null,53,32,0.60377358490566035,0.60377358490566035,60.377358490566031]
["POL","Companies <= 10","S","Employment by age","questionnaires","A - Census","every year",1,null,53,32,0.60377358490566035,0.60377358490566035,60.377358490566031]
["POL","Companies <= 10","S","Employment by education level","questionnaires","B - Probability Sample Survey","every 3 years",1,null,53,0,0,0,0,"not collected for 2018"]
["POL","Companies <= 10","S","Employment by nationality","questionnaires","B - Probability Sample Survey","every 3 years",1,null,53,0,0,0,{"$f":"K29/(J29*H29/100)","v":0},"not collected for 2018"]
["POL","Companies <= 10","S","FTE National","questionnaires","A - Census","every year",1,null,53,32,0.60377358490566035,0.60377358490566035,{"$f":"K30/(J30*H30/100)","v":60.377358490566031}]
["POL","Companies 11-49","E","Turnover","questionnaires","A - Census","every year",1,null,87,77,0.88505747126436785,0.88505747126436785,88.505747126436788]
["POL","Companies 11-49","E","Other income","questionnaires","A - Census","every year",1,null,87,77,0.88505747126436785,0.88505747126436785,88.505747126436788]
["POL","Companies 11-49","E","Personnel costs","questionnaires","A - Census","every year",1,null,87,77,0.88505747126436785,0.88505747126436785,88.505747126436788]
["POL","Companies 11-49","E","Value of unpaid labour","questionnaires","A - Census","every year",1,null,87,"NA"]
["POL","Companies 11-49","E","Energy costs","questionnaires","A - Census","every year",1,null,87,77,0.88505747126436785,0.88505747126436785,88.505747126436788]
["POL","Companies 11-49","E","Purchase of fish and other raw material for production","questionnaires","A - Census","every year",1,null,87,77,0.88505747126436785,0.88505747126436785,88.505747126436788]
["POL","Companies 11-49","E","Other operational costs","questionnaires","A - Census","every year",1,null,87,77,0.88505747126436785,0.88505747126436785,88.505747126436788]
["POL","Companies 11-49","E","Operating subsidies","questionnaires","A - Census","every year",1,null,87,77,0.88505747126436785,0.88505747126436785,88.505747126436788]
["POL","Companies 11-49","E","Subsidies on investments","questionnaires","A - Census","every year",1,null,87,77,0.88505747126436785,0.88505747126436785,88.505747126436788]
["POL","Companies 11-49","E","Consumption of fixed capital","questionnaires","A - Census","every year",1,null,87,77,0.88505747126436785,0.88505747126436785,88.505747126436788]
["POL","Companies 11-49","E","Total value of assets","questionnaires","A - Census","every year",1,null,87,77,0.88505747126436785,0.88505747126436785,88.505747126436788]
["POL","Companies 11-49","E","Financial income","questionnaires","A - Census","every year",1,null,87,77,0.88505747126436785,0.88505747126436785,88.505747126436788]
["POL","Companies 11-49","E","Financial expenditures","questionnaires","A - Census","every year",1,null,87,77,0.88505747126436785,0.88505747126436785,88.505747126436788]
["POL","Companies 11-49","E","Net investments","questionnaires","A - Census","every year",1,null,87,77,0.88505747126436785,0.88505747126436785,88.505747126436788]
["POL","Companies 11-49","E","Debt","questionnaires","A - Census","every year",1,null,87,"NA"]
["POL","Companies 11-49","E","Number of persons employed","questionnaires","A - Census","every year",1,null,87,77,0.88505747126436785,0.88505747126436785,88.505747126436788]
["POL","Companies 11-49","E","FTE National","questionnaires","A - Census","every year",1,null,87,77,0.88505747126436785,0.88505747126436785,88.505747126436788]
["POL","Companies 11-49","E","Unpaid labour","questionnaires","A - Census","every year",1,null,87,"NA"]
["POL","Companies 11-49","E","Number of hours worked by employees and unpaid workers","questionnaires","A - Census","every year",1,null,87,77,0.88505747126436785,0.88505747126436785,88.505747126436788]
["POL","Companies 11-49","E","Number of enterprises","General Veterinary Inspectorate","A - Census","every year",1,null,87,77,0.88505747126436785,0.88505747126436785,88.505747126436788,"Inactive units are excluded from frame population, despite the calls/emails lack of responses"]
["POL","Companies 11-49","E","Weight of raw material per species and origin (optional)","questionnaires","A - Census","every year",1,null,87,77,0.88505747126436785,0.88505747126436785,88.505747126436788]
["POL","Companies 11-49","S","Employment by gender","questionnaires","A - Census","every year",1,null,87,77,0.88505747126436785,0.88505747126436785,88.505747126436788]
["POL","Companies 11-49","S","Employment by age","questionnaires","A - Census","every year",1,null,87,77,0.88505747126436785,0.88505747126436785,88.505747126436788]
["POL","Companies 11-49","S","Employment by education level","questionnaires","B - Probability Sample Survey","every 3 years",1,null,87,0,0,0,0,"not collected for 2018"]
["POL","Companies 11-49","S","Employment by nationality","questionnaires","B - Probability Sample Survey","every 3 years ",1,null,87,0,0,0,0,"not collected for 2018"]
["POL","Companies 11-49","S","FTE National","questionnaires","A - Census","every year",1,null,87,77,0.88505747126436785,0.88505747126436785,88.505747126436788]
["POL","Companies 50-250","E","Turnover","questionnaires","A - Census","every year",1,null,58,57,0.98275862068965514,0.98275862068965514,98.275862068965523]
["POL","Companies 50-250","E","Other income","questionnaires","A - Census","every year",1,null,58,57,0.98275862068965514,0.98275862068965514,98.275862068965523]
["POL","Companies 50-250","E","Personnel costs","questionnaires","A - Census","every year",1,null,58,57,0.98275862068965514,0.98275862068965514,98.275862068965523]
["POL","Companies 50-250","E","Value of unpaid labour","questionnaires","A - Census","every year",1,null,58,"NA"]
["POL","Companies 50-250","E","Energy costs","questionnaires","A - Census","every year",1,null,58,57,0.98275862068965514,0.98275862068965514,98.275862068965523]
["POL","Companies 50-250","E","Purchase of fish and other raw material for production","questionnaires","A - Census","every year",1,null,58,57,0.98275862068965514,0.98275862068965514,98.275862068965523]
["POL","Companies 50-250","E","Other operational costs","questionnaires","A - Census","every year",1,null,58,57,0.98275862068965514,0.98275862068965514,98.275862068965523]
["POL","Companies 50-250","E","Operating subsidies","questionnaires","A - Census","every year",1,null,58,57,0.98275862068965514,0.98275862068965514,98.275862068965523]
["POL","Companies 50-250","E","Subsidies on investments","questionnaires","A - Census","every year",1,null,58,57,0.98275862068965514,0.98275862068965514,98.275862068965523]
["POL","Companies 50-250","E","Consumption of fixed capital","questionnaires","A - Census","every year",1,null,58,57,0.98275862068965514,0.98275862068965514,98.275862068965523]
["POL","Companies 50-250","E","Total value of assets","questionnaires","A - Census","every year",1,null,58,57,0.98275862068965514,0.98275862068965514,98.275862068965523]
["POL","Companies 50-250","E","Financial income","questionnaires","A - Census","every year",1,null,58,57,0.98275862068965514,0.98275862068965514,98.275862068965523]
["POL","Companies 50-250","E","Financial expenditures","questionnaires","A - Census","every year",1,null,58,57,0.98275862068965514,0.98275862068965514,98.275862068965523]
["POL","Companies 50-250","E","Net investments","questionnaires","A - Census","every year",1,null,58,57,0.98275862068965514,0.98275862068965514,98.275862068965523]
["POL","Companies 50-250","E","Debt","questionnaires","A - Census","every year",1,null,58,"NA"]
["POL","Companies 50-250","E","Number of persons employed","questionnaires","A - Census","every year",1,null,58,57,{"$f":"K72/J72","v":0.98275862068965514},{"$f":"K72/J72","v":0.98275862068965514},98.275862068965523]
["POL","Companies 50-250","E","FTE National","questionnaires","A - Census","every year",1,null,58,57,0.98275862068965514,0.98275862068965514,98.275862068965523]
["POL","Companies 50-250","E","Unpaid labour","questionnaires","A - Census","every year",1,null,58,"NA"]
["POL","Companies 50-250","E","Number of hours worked by employees and unpaid workers","questionnaires","A - Census","every year",1,null,58,57,0.98275862068965514,0.98275862068965514,98.275862068965523]
["POL","Companies 50-250","E","Number of enterprises","General Veterinary Inspectorate","A - Census","every year",1,null,58,57,0.98275862068965514,0.98275862068965514,{"$f":"K76/(J76*H76/100)","v":98.275862068965523},"Inactive units are excluded from frame population, despite the calls/emails lack of responses"]
["POL","Companies 50-250","E","Weight of raw material per species and origin (optional)","questionnaires","A - Census","every year",1,null,58,57,0.98275862068965514,0.98275862068965514,98.275862068965523]
["POL","Companies 50-250","S","Employment by gender","questionnaires","A - Census","every year",1,null,58,57,0.98275862068965514,0.98275862068965514,98.275862068965523]
["POL","Companies 50-250","S","Employment by age","questionnaires","A - Census","every year",1,null,58,57,0.98275862068965514,0.98275862068965514,98.275862068965523]
["POL","Companies 50-250","S","Employment by education level","questionnaires","B - Probability Sample Survey","every 3 years",1,null,58,0,0,0,0,"not collected for 2018"]
["POL","Companies 50-250","S","Employment by nationality","questionnaires","B - Probability Sample Survey","every 3 years",1,null,58,0,0,0,0,"not collected for 2018"]
["POL","Companies 50-250","S","FTE National","questionnaires","A - Census","every year",1,null,58,57,0.98275862068965514,0.98275862068965514,98.275862068965523]
["POL","Companies > 250 ","E","Turnover","questionnaires","A - Census","every year",1,null,18,18,1,{"$f":"K83/J83","v":1},100]
["POL","Companies > 250 ","E","Other income","questionnaires","A - Census","every year",1,null,18,18,1,{"$f":"K84/J84","v":1},100]
["POL","Companies > 250 ","E","Personnel costs","questionnaires","A - Census","every year",1,null,18,18,1,1,100]
["POL","Companies > 250 ","E","Value of unpaid labour","questionnaires","A - Census","every year",1,null,18,"NA"]
["POL","Companies > 250 ","E","Energy costs","questionnaires","A - Census","every year",1,null,18,18,1,1,100]
["POL","Companies > 250 ","E","Purchase of fish and other raw material for production","questionnaires","A - Census","every year",1,null,18,18,1,1,100]
["POL","Companies > 250 ","E","Other operational costs","questionnaires","A - Census","every year",1,null,18,18,1,1,100]
["POL","Companies > 250 ","E","Operating subsidies","questionnaires","A - Census","every year",1,null,18,18,1,1,100]
["POL","Companies > 250 ","E","Subsidies on investments","questionnaires","A - Census","every year",1,null,18,18,1,1,100]
["POL","Companies > 250 ","E","Consumption of fixed capital","questionnaires","A - Census","every year",1,null,18,18,1,1,100]
["POL","Companies > 250 ","E","Total value of assets","questionnaires","A - Census","every year",1,null,18,18,1,1,100]
["POL","Companies > 250 ","E","Financial income","questionnaires","A - Census","every year",1,null,18,18,1,1,100]
["POL","Companies > 250 ","E","Financial expenditures","questionnaires","A - Census","every year",1,null,18,18,1,1,100]
["POL","Companies > 250 ","E","Net investments","questionnaires","A - Census","every year",1,null,18,18,1,1,100]
["POL","Companies > 250 ","E","Debt","questionnaires","A - Census","every year",1,null,18,"NA"]
["POL","Companies > 250 ","E","Number of persons employed","questionnaires","A - Census","every year",1,null,18,18,1,1,100]
["POL","Companies > 250 ","E","FTE National","questionnaires","A - Census","every year",1,null,18,18,1,1,100]
["POL","Companies > 250 ","E","Unpaid labour","questionnaires","A - Census","every year",1,null,18,"NA"]
["POL","Companies > 250 ","E","Number of hours worked by employees and unpaid workers","questionnaires","A - Census","every year",1,null,18,18,1,1,100]
["POL","Companies > 250 ","E","Number of enterprises","General Veterinary Inspectorate","A - Census","every year",1,null,18,18,1,1,100,"Inactive units are excluded from frame population, despite the calls/emails lack of responses"]
["POL","Companies > 250 ","E","Weight of raw material per species and origin (optional)","questionnaires","A - Census","every year",1,null,18,18,1,1,100]
["POL","Companies > 250 ","S","Employment by gender","questionnaires","A - Census","every year",1,null,18,18,1,1,100]
["POL","Companies > 250 ","S","Employment by age","questionnaires","A - Census","every year",1,null,18,18,1,1,100]
["POL","Companies > 250 ","S","Employment by education level","questionnaires","B - Probability Sample Survey","every 3 years",1,null,18,0,{"$f":"K106/J106","v":0},{"$f":"K106/J106","v":0},0,"not collected for 2018"]
["POL","Companies > 250 ","S","Employment by nationality","questionnaires","B - Probability Sample Survey","every 3 years",1,null,18,0,{"$f":"K107/J107","v":0},0,0,"not collected for 2018"]
["POL","Companies > 250 ","S","FTE National","questionnaires","A - Census","every year",1,null,18,18,{"$f":"K108/J108","v":1},1,100]

{"sheet":"Table4A Sampling plan descripti","index":12,"n_rows":26,"n_cols":25,"rows_kept":26,"cut":false,"hidden":false,"merged":[[14,14,15,14],[18,14,19,14],[3,15,3,17],[3,18,3,24],[5,14,6,14],[7,14,8,14],[9,14,10,14],[12,14,13,14]]}
["Table 4A: Sampling plan description for biological data"]
[null,null,null,null,null,null,null,null,null,null,null,null,null,null,null,null,null,null,null,null,null,null,null,"WP  years","2017-2019"]
[null,null,null,null,null,null,null,null,null,null,null,null,null,null,null,null,null,null,null,null,null,null,null,"AR year",2019]
[null,null,null,null,null,null,null,null,null,null,null,null,null,null,null,"Conformity",null,null,"Informative Data"]
["MS","MS participating in sampling","Region","RFMO/RFO/IO","Sub-area / Fishing ground","Scheme","Stratum ID code","PSU type","Catch fractions covered","Species/ Stocks covered for estimation of volume and length of catch fractions","Seasonality (Temporal strata)","Reference years","Average Number of PSU during the reference years         ","Planned number of PSUs","Comments","Total number of PSU in the sampling year","Achieved number of PSU in the sampling year","% of achievement (100*Q/N)","Number of unique vessels with activity in the stratum","Number of unique vessels sampled ","Number of fishing trips in the stratum","Number of fishing trips sampled ","Number of species with length measurements","Total number of length measurements","AR Comments "]
["POL","POL","Baltic Sea","ICES","22-24","Demersal at sea and on shore","POL DCT1","vessel trip","landings + discards","all species and stocks","quarterly","2013-2015",93,4,"coverage  85%",336,1,25,25,1,256,1,3,168,"High refusal rate. See Text Box 4A for comments"]
["POL","POL","Baltic Sea","ICES","22-24","Demersal at sea and on shore","POL GNSC1","vessel trip","landings + discards","all species and stocks","quarterly","2013-2015",480,6,null,377,0,0,23,0,208,0,0,0,"High refusal rate. See Text Box 4A for comments"]
["POL","POL","Baltic Sea","ICES","25-32","Demersal at sea and on shore","POL DCT2","vessel trip","landings + discards","all species and stocks","quarterly","2013-2015",3100,21,"coverage  71%",1021,8,38.095238095238095,72,6,957,8,3,3792,"High refusal rate. See Text Box 4A for comments"]
["POL","POL","Baltic Sea","ICES","25-32","Demersal at sea and on shore","POL GNSC2","vessel trip","landings + discards","all species and stocks","quarterly","2013-2015",8891,14,null,3267,1,7.1428571428571432,142,1,2236,1,5,406,"High refusal rate. See Text Box 4A for comments"]
["POL","POL","Baltic Sea","ICES","22-32","Demersal at sea and on shore","POL DTF","vessel trip","landings + discards","all species and stocks","quarterly","2013-2015",1374,26,"coverage  82%",1323,10,38.46153846153846,57,8,1067,10,9,3444,"High refusal rate. See Text Box 4A for comments"]
["POL","POL","Baltic Sea","ICES","22-32","Demersal at sea and on shore","POL GNSF","vessel trip","landings + discards","all species and stocks","quarterly","2013-2015",7997,9,null,14561,8,88.888888888888886,240,6,10066,8,8,1584]
["POL","POL","Baltic Sea","ICES","22-32","Pelagic at sea and on shore","POL PST","vessel trip","landings + discards","all species and stocks","quarterly","2013-2015",2546,34,"coverage  97%",3048,24,70.588235294117652,82,12,2795,24,11,10001,"High refusal rate. See Text Box 4A for comments"]
["POL","POL","Baltic Sea","ICES","22-24","Pelagic at sea and on shore","POL PHT1","vessel trip","landings + discards","all species and stocks","quarterly","2013-2015",60,9,"coverage  81%",47,3,33.333333333333336,11,3,34,3,3,532,"High refusal rate. See Text Box 4A for comments"]
["POL","POL","Baltic Sea","ICES","22-24","Pelagic at sea and on shore","POL BH1","vessel trip","landings + discards","all species and stocks","quarterly","2013-2015",189,3,null,140,8,266.66666666666669,15,2,128,8,1,1596]
["POL","POL","Baltic Sea","ICES","25-32","Pelagic at sea and on shore","POL PHT2","vessel trip","landings + discards","all species and stocks","quarterly","2013-2015",1166,25,"coverage  61%",1589,10,40,80,7,1443,10,9,3616,"High refusal rate. See Text Box 4A for comments"]
["POL","POL","Baltic Sea","ICES","25-32","Pelagic at sea and on shore","POL BH2","vessel trip","landings + discards","all species and stocks","quarterly","2013-2015",630,5,null,1776,7,140,36,6,357,7,1,1260]
["POL","POL","Baltic Sea","ICES","22-24","Freshwater and eel at sea and on shore","POL BFWS1","vessel trip","landings + discards","all species and stocks","annual ","2013-2015",3800,14,"coverage  70%",4033,13,92.857142857142861,86,5,3464,13,12,2036,"High refusal rate. See Text Box 4A for comments"]
["POL","POL","Baltic Sea","ICES","25-32","Freshwater and eel at sea and on shore","POL BFWS2","vessel trip","landings + discards","all species and stocks","annual ","2013-2015",2836,14,"coverage  77%",7203,16,114.28571428571428,175,13,6087,16,24,2848]
["POL","POL","Baltic Sea","ICES","22-32","Salmonids at sea and on shore","POL GNSSAL","vessel trip","landings + discards","all species and stocks","annual ","2013-2015",1777,14,"coverage  67%",1905,14,100,79,7,1141,14,9,79]
["POL","POL","Baltic Sea","ICES","22-32","Salmonids at sea and on shore","POL LLDSAL","vessel trip","landings + discards","all species and stocks","annual ","2013-2015",314,10,null,325,0,0,23,0,116,0,0,0,"High refusal rate. See Text Box 4A for comments"]
["POL","POL","North Sea and Eastern Arctic","ICES","I, II","at sea","LDF1","vessel trip","landings + discards","all species and stocks","annual ","2013-2015",5,1,"coverage 100%",7,1,100,1,1,7,1,19,8804]
["POL","DEU - LTU -LVA - NLD - POL","other regions","CECAF","34.1.3; 34.3.1","at sea","LDF2","vessel trip","landings + discards","all species and stocks","annual ","2013-2015",9,"NA","Multilateral agreement on joint sampling programme -",0,2,"NA",0,1,0,2,23,8082,"Joint sampling program based on Multilateral Agreement (see Table 7C).    (http://dcf.mir.gdynia.pl/?page_id=365)   POL is coordinating joint sampling programme from 2018. Sampling plan set in line with \"Biological Data Collection of pelagic fisheries in CECAF waters - Manual for scientific observers on board EU pelagic trawlers in CECAF area\", ver. 8-03-2018. There were no fishing activity by Polish vessels in CECAF area in 2019, hence PSU in the sampling year related to Polish vessels = 0. Biological sampling of the fishery conducted by the EU vessels  is executed by Poland on behalf of UE MS concerned (parties to the agreements). As an executor of biological sampling, Poland reports this activity in its AR on behalf of MS concerned, hence achieved number of PSU in the sampling year >0. MS concerned, parties to the multilateral agreements, in their ARs make only the reference to Polish AR regarding sampling activity in the CECAF area."]
["POL","DEU - LTU - NLD - POL","other regions","SPRFMO","SPRFMO Convention Area","at sea","LDF3","vessel trip","landings + discards","all species and stocks","annual ","2013-2015",0,"NA","Multilateral agreement on joint sampling programme",4,2,"NA",1,1,4,2,12,5435,"Joint sampling program based on Multilateral Agreement (see Table 7C).  (http://dcf.mir.gdynia.pl/?page_id=365). POL is coordinating joint sampling programme from 2017. Sampling programme set in line with the SPRFMO Data Standards (CMM 02-2018) and the requirements of the SPRFMO Conservation and Managemnt Measure for Trachurus murphyi (CMM 01-2018).  Biological sampling of the fishery conducted by the EU vessels  is executed and reported by Poland on behalf of UE MS concerned (parties to the agreements)"]
["POL","POL","Baltic Sea","ICES","22-32","on shore","POLGAR","vessel trip","landings","selected species/stocks","NA","2013-2015",422,"NA","NA",943,2,"NA",91,1,943,2,1,121,"New row - GAR fishery was not selected as a sampling frame in the WP. Fishery season is very short. Two samples were collected for biological variables due to importance of this fishery to local community in Puck Bay (part of Gulf of Gdańsk)"]
["POL","POL-DNK","Baltic Sea","ICES","22-32","on shore","POLDNK SPR","vessel trip","landings","sprat","annual ","2013-2015",332,"NA","NA",473,25,"NA",42,17,473,25,1,3552,"New row. There is no corresponding sampling frame in the WP. Samples were collected by DNK from POL vessels on landings in DNK ports. Samples were collected in 2019 and delivered to POL in January 2020."]
["POL","POL","North Sea and Eastern Arctic","ICES","IV","NA","POLNSCRA","vessel trip","NA","marine crabs nei (CRA)","NA","2013-2015",0,"NA","NA",51,0,"NA",1,0,51,0,0,0,"New row - vessel started fishing in 2018 thus not included in WP and not sampled"]

{"sheet":"Table4B Sampling frame descrip","index":13,"n_rows":26,"n_cols":6,"rows_kept":26,"cut":false,"hidden":false,"merged":[]}
["Table 4B: Sampling frame description for biological data"]
[null,null,null,null,"WP  years","2017-2019"]
[null,null,null,null,"AR year",2019]
["MS","Stratum ID number","Stratum","Sampling frame description ","Method of PSU selection ","Comments"]
["POL","POL DCT1","Baltic demersal trawlers targeting western cod","Vessel list of 48  DTS landing cod in 3 ranked ports","random draw  "]
["POL","POL GNSC1","Balctic  gillnetters targeting western cod","Vessel list of 57  GNTS landing cod in 5 ranked ports","random draw "]
["POL","POL DCT1","Baltic demersal trawlers targeting eastern cod","Vessel list of 154  DTS landing cod in 6 ranked ports","random draw ","Correct Stratum ID:  POL DCT2"]
["POL","POL GNSC1","Balctic  gillnetters targeting eastern cod","Vessel list of 251  GNTS landing cod in 12 ranked ports","random draw ","Correct Stratum ID:  POL GNSC2"]
["POL","POL DTF","Baltic demersal trawlers targeting flatfish","Vessel list of 101 DTS landing flatfish in 5 ranked ports","random draw "]
["POL","POL GNSF","Balctic  gillnetters targeting flatfish","Vessel list of 361  GNTS landing cod in 23 ranked ports","random draw "]
["POL","POL PST","Baltic sprat trawlers","Vessel list of 121  PTS landing sprat in 6 ranked ports","random draw "]
["POL","POL PHT1","Batlic  herring trawlers of SD 22-24","Vessel list of 15  PTS landing herring in 1 ranked port","random draw "]
["POL","POL BH1","Batlic onshore boats targeting herring of SD 22-24","Vessel list of 18  boats landing herring in 3 ranked port","random draw "]
["POL","POL PHT2","Batlic  herring trawlers of SD 25-32","Vessel list of 100  PTS landing herring in 4 ranked port","random draw "]
["POL","POL BH2","Batlic onshore boats targeting herring of SD 25-32","Vessel list of 90  boats landing herring in 14 ranked port","random draw "]
["POL","POL BFWS1","Baltic boats targeting freshwater species of SD 22-24","Vessel list of 94  boats landing freshwater species and eel in 8 ranked port","random draw "]
["POL","POL BFWS2","Baltic boats targeting freshwater species of SD 25-32","Vessel list of 239  boats landing freshwater species and eel in 20 ranked port","random draw "]
["POL","POL GNSSAL","Baltic onshore boats targeting salmonids","Vessel list of 165  boats landing salmonids species  in 10 ranked port","random draw "]
["POL","POL LLDSAL","Baltic offshore longliners targeting salmon","Vessel list of 51  longliners landing salmon  in 4 ranked port","random draw "]
["POL","LDF1","Freezer trawler targetting cod in NS&EA","1 trawler targeting cod","NA","NS&EA - one vessel only - no selection needed"]
["POL","LDF2","Pelagic trawlers fishing in CECAF","Pelagic trawlers fishing in CECAF","NA","Multilateral agreement on joint sampling programme (see Table 7C)"]
["POL","LDF3","Pelagic trawlers fishing in SPRFMO","Pelagic trawlers fishing in SPRFMO","NA","Multilateral agreement on joint sampling programme (see Table 7C)"]
[]
[null,null,"DTS - demersal trawlers"]
[null,null,"PTS - pelagic trawlers"]
[null,null,"GNTS - gillnetters"]

{"sheet":"Table4C Data on the fisheries","index":14,"n_rows":24,"n_cols":22,"rows_kept":24,"cut":false,"hidden":false,"merged":[[4,13,18,13]]}
["Table 4C: Data on the fisheries by member state"]
[null,null,null,null,null,null,null,null,null,null,null,null,null,null,null,null,null,null,null,null,"WP  years","2017-2019"]
[null,null,null,null,null,null,null,null,null,null,null,null,null,null,null,null,null,null,null,null,"AR year",2019]
["MS","Region","RFMO/RFO/IO","Sub-area / Fishing ground","Reference years","Fleet segment / Metier","Targeted species / species assemblage","Average number of vessels","Average number of fishing trips ","Average number of fishing days ","Average landings (tons) ","Average landings (tons) in national ports","Average landings (tons) in foreign ports","Comments","Number of vessels","Number of fishing trips","Number of fishing days","Is the fleet segment/ metier covered by any stratum (Y/N)","Landings (tons)","Landings (tons) in national ports","Landings (tons) in foreign ports","AR  Comments"]
["POL","Baltic Sea","ICES","SD 22-24","2013-2015","demersal trawlers","cod",34,101,235,{"$f":"L5+M5","v":323.07010000000002},320.27143333333333,2.7986666666666666,"Table 4C was filled in by metier and the sum of vessels of all metiers is higher than the total number of registered Polish fishing vessels. This is because many vessels use more than one gear type / metier. Moreover, the sampling scheme is stock based and as the fishing vessels can target more than one stock within one metier same vessels are included in many groups.\n",44,336,620,"Y",{"$f":"T5+U5","v":888.077},885.22,2.8570000000000002]
["POL","Baltic Sea","ICES","SD 25-32","2013-2015","demersal trawlers","cod",148,3310,5646,{"$f":"L6+M6","v":8033.24334},8030.65434,2.589,null,76,1021,1691,"Y",{"$f":"T6+U6","v":2267.9189999999999},2267.9189999999999,0]
["POL","Baltic Sea","ICES","SD 22-24","2013-2015","gillnetters","cod",51,574,756,361.65683333333328,360.8868333333333,0.77,null,47,377,448,"Y",212.15020000000001,212.15020000000001,0]
["POL","Baltic Sea","ICES","SD 25-32","2013-2015","gillnetters","cod",349,12972,14050,3074.1567333333328,3074.1567333333328,0,null,216,3267,3548,"Y",648.85090000000002,648.85090000000002,0]
["POL","Baltic Sea","ICES","SD 22-32","2013-2015","demersal trawlers","flounder, plaice, turbot",125,1586,3253,8934.1191466666678,8929.136480000001,4.9826666666666668,null,86,1323,2453,"Y",7825.0039999999999,7792.2470000000003,32.756999999999998]
["POL","Baltic Sea","ICES","SD 22-32","2013-2015","gillnetters","flounder, plaice, turbot",370,10115,10318,2841.3853899999999,2841.3480566666667,3.7333333333333336E-2,null,366,14561,14714,"Y",3952.442,3951.8420000000001,0.6]
["POL","Baltic Sea","ICES","SD 22-32","2013-2015","pelagic trawlers","sprat",99,2617,3555,63152.515416666669,42908.730083333336,20243.785333333333,null,92,3048,3784,"Y",93873.44,62252.21,31621.23]
["POL","Baltic Sea","ICES","SD 22-24","2013-2015","pelagic trawlers","herring",15,66,133,1922.009,1808.9173333333333,113.09166666666667,null,17,47,76,"Y",709.09199999999998,709.09199999999998,0]
["POL","Baltic Sea","ICES","SD 25-32","2013-2015","pelagic trawlers","herring",82,1222,1950,21161.969416666667,19309.84275,1852.1266666666668,null,98,1589,2203,"Y",25876.107,23500.042000000001,2376.0650000000001]
["POL","Baltic Sea","ICES","SD 22-24","2013-2015","gillnetters","herring",19,193,139,355.15300000000002,355.15300000000002,0,null,21,140,140,"Y",146.79,146.79,0]
["POL","Baltic Sea","ICES","SD 25-32","2013-2015","gillnetters","herring",168,2015,2016,1128.79105,1128.7410500000001,0.05,null,194,1776,1776,"Y",925.69420000000002,925.69420000000002,0]
["POL","Baltic Sea","ICES","SD 22-24","2013-2015","passive gears","perch, pike-perch",130,4323,4323,840.94827999999995,840.94827999999995,0,null,122,4033,4033,"Y",851.73360000000002,851.73360000000002,0]
["POL","Baltic Sea","ICES","SD 25-32","2013-2015","passive gears","perch, pike-perch",225,3210,3210,216.5909833333333,216.5909833333333,0,null,240,7203,7203,"Y",503.2242,503.2242,0]
["POL","Baltic Sea","ICES","SD 22-32","2013-2015","gillnetters","salmon, sea trout",176,2148,2160,78.306766666666661,78.306766666666661,0,null,174,1905,1915,"Y",89.639499999999998,89.639499999999998,0]
["POL","Baltic Sea","ICES","SD 22-32","2013-2015","longliners","salmon, sea trout",45,335,541,44.050650000000005,44.050650000000005,0,null,66,325,407,"Y",26.286049999999999,26.286049999999999,0]
["POL","North Sea and Eastern Arctic","ICES","I, II","2013-2015","demersal trawlers","cod",1,5,176,5700.0640000000003,0,5700.0640000000003,null,1,3,92,"Y",3036.45,0,3036.45]
["POL","other regions","CECAF","34.1.3; 34.3.1","2013-2015","pelagic trawlers","pelagic species",2,9,324,26189,0,26189,null,0,0,0,"Y",0,0,0]
["POL","other regions","SPRFMO","SPRFMO Convention Area","2013-2015","pelagic trawlers","pelagic species",0,0,0,0,0,0,null,1,4,87,"Y",12298.9,0,12298.9]
["POL","Baltic Sea","ICES","SD 25-26","2013-2015","Drift and/or fixed netters","garfish",49,422,422,29.674333000000001,29.674333000000001,0,null,91,943,943,"N",66.400000000000006,66.400000000000006,0,"New row - GAR fishery was not selected as a sampling frame in the WP. Fishery season is very short. Two samples were collected for biological variables due to importance of this fishery to local community in Puck Bay (part of Gulf of Gdańsk)"]
["POL","North Sea and Eastern Arctic","ICES","IV","2013-2015","Vessels using Pots and/or traps","marine crabs nei",0,0,0,0,0,0,null,1,51,73,"N",423.82900000000001,0,423.82900000000001,"New row - vessel started fishing in 2018 thus not included in WP"]

{"sheet":"Table4D Landing locations","index":15,"n_rows":10,"n_cols":11,"rows_kept":10,"cut":false,"hidden":false,"merged":[]}
["Table 4D: Landing locations"]
[null,null,null,null,null,null,null,null,null,"WP  years","2017-2019"]
[null,null,null,null,null,null,null,null,null,"AR year",2019]
["MS","Region","Sub-area / Fishing ground","Reference years","Landing locations(s)","Average number of locations","Average number of registered landings ","Average landed tonnage ","Average landed tonnage of national fleet","Average landed tonnage of foreign fleet","Comments"]
["POL","Baltic Sea (ICES areas III b-d)","27.3.d","2013-2015","Major ports",9,25371.666666666668,{"$f":"I5+J5","v":99943.104333333322},96262.391086666656,3680.7132466666662]
["POL","Baltic Sea (ICES areas III b-d)","27.3.d","2013-2015","Other ports SD 24",6,2886.6666666666665,{"$f":"I6+J6","v":913.17326666666656},913.17326666666656,0]
["POL","Baltic Sea (ICES areas III b-d)","27.3.d","2013-2015","Other ports SD 25",11,5208.666666666667,1962.7799533333334,1962.7799533333334,0]
["POL","Baltic Sea (ICES areas III b-d)","27.3.d","2013-2015","Other ports SD 26",27,13542.666666666666,1624.1161100000004,1624.1161100000004,0]
["POL","Baltic Sea (ICES areas III b-d)","27.3.d","2013-2015","Szczecin Lagoon ports",6,6112.333333333333,1561.2856333333332,1561.2856333333332,0]
["POL","Baltic Sea (ICES areas III b-d)","27.3.d","2013-2015","Vistula Lagoon ports",8,6508.333333333333,2746.3168999999998,2746.3168999999998,0]

{"sheet":"Table5A Quality assurance frame","index":16,"n_rows":32,"n_cols":20,"rows_kept":32,"cut":false,"hidden":false,"merged":[[3,0,3,6],[3,7,3,8],[3,10,3,11],[3,12,3,13],[3,14,3,17]]}
["Table 5A: Quality assurance framework for biological data"]
[null,null,null,null,null,null,null,null,null,null,null,null,null,null,null,null,null,null,"WP  years","2017-2019"]
[null,null,null,null,null,null,null,null,null,null,null,null,null,null,null,null,null,null,"AR year",2019]
[null,null,null,null,null,null,null,"Sampling design",null,"Sampling implementation","Data capture",null,"Data Storage",null,"Data processing"]
["MS","MS participating in sampling","Sampling year/ period ","Region","RFMO/RFO/IO","Name of sampling scheme","Sampling frame ","Is the sampling design documented?","Where can documentation on sampling design be found? ","Are non-responses and refusals recorded?","Are quality checks to validate detailed data documented?","Where can documentation on quality checks for data capture be found?","In which national database are data stored?","In which international database(s) are data stored?","Are processes to evaluate data accuracy (bias and precision) documented?","Where can documentation on processes to evaluate accuracy be found? ","Are the editing and imputation methods documented?","Where can documentation on editing and imputation be found? ","Comments ","AR Comments"]
["POL","POL",2019,"Baltic Sea","ICES","Demersal at sea and on shore","Vessel list of 48  DTS landing cod in 3 ranked ports","Y","DCF - Sampling Design 2017-2019 -   http://dcf.mir.gdynia.pl/?page_id=367","Y","Y","DataQualityCheck_Description.doc (http://dcf.mir.gdynia.pl/?page_id=367)","NPZDRpl","RDB-FishFrame, Intercatch, JRC","Y","DataQualityCheck_Description.doc (http://dcf.mir.gdynia.pl/?page_id=367)","N","NA","Software for data accuracy checks has been launched, and is still under development with the new features.","The model and assumptions of the data accuracy checks software have been specified in 2019. The environment has been set up and the first type of a check has been implemented. The new features are still being  developed and the information about possible accuracy checks is currently being collected from the available literature.  Imputation is not performed at national level but at Stock Data Coordination level. Data are provided to end user \"as-is\" (as collected, validated and recorded in national database)."]
["POL","POL",2019,"Baltic Sea","ICES","Demersal at sea and on shore","Vessel list of 57  GNTS landing cod in 5 ranked ports","Y","DCF - Sampling Design 2017-2019 -   http://dcf.mir.gdynia.pl/?page_id=367","Y","Y","DataQualityCheck_Description.doc (http://dcf.mir.gdynia.pl/?page_id=367)","NPZDRpl","RDB-FishFrame, Intercatch, JRC","Y","DataQualityCheck_Description.doc (http://dcf.mir.gdynia.pl/?page_id=367)","N","NA","Software for data accuracy checks has been launched, and is still under development with the new features.","The model and assumptions of the data accuracy checks software have been specified in 2019. The environment has been set up and the first type of a check has been implemented. The new features are still being  developed and the information about possible accuracy checks is currently being collected from the available literature.  Imputation is not performed at national level but at Stock Data Coordination level. Data are provided to end user \"as-is\" (as collected, validated and recorded in national database)."]
["POL","POL",2019,"Baltic Sea","ICES","Demersal at sea and on shore","Vessel list of 154  DTS landing cod in 6 ranked ports","Y","DCF - Sampling Design 2017-2019 -   http://dcf.mir.gdynia.pl/?page_id=367","Y","Y","DataQualityCheck_Description.doc (http://dcf.mir.gdynia.pl/?page_id=367)","NPZDRpl","RDB-FishFrame, Intercatch, JRC","Y","DataQualityCheck_Description.doc (http://dcf.mir.gdynia.pl/?page_id=367)","N","NA","Software for data accuracy checks has been launched, and is still under development with the new features.","The model and assumptions of the data accuracy checks software have been specified in 2019. The environment has been set up and the first type of a check has been implemented. The new features are still being  developed and the information about possible accuracy checks is currently being collected from the available literature.  Imputation is not performed at national level but at Stock Data Coordination level. Data are provided to end user \"as-is\" (as collected, validated and recorded in national database)."]
["POL","POL",2019,"Baltic Sea","ICES","Demersal at sea and on shore","Vessel list of 251  GNTS landing cod in 12 ranked ports","Y","DCF - Sampling Design 2017-2019 -   http://dcf.mir.gdynia.pl/?page_id=367","Y","Y","DataQualityCheck_Description.doc (http://dcf.mir.gdynia.pl/?page_id=367)","NPZDRpl","RDB-FishFrame, Intercatch, JRC","Y","DataQualityCheck_Description.doc (http://dcf.mir.gdynia.pl/?page_id=367)","N","NA","Software for data accuracy checks has been launched, and is still under development with the new features.","The model and assumptions of the data accuracy checks software have been specified in 2019. The environment has been set up and the first type of a check has been implemented. The new features are still being  developed and the information about possible accuracy checks is currently being collected from the available literature.  Imputation is not performed at national level but at Stock Data Coordination level. Data are provided to end user \"as-is\" (as collected, validated and recorded in national database)"]
["POL","POL",2019,"Baltic Sea","ICES","Demersal at sea and on shore","Vessel list of 101 DTS landing flatfish in 5 ranked ports","Y","DCF - Sampling Design 2017-2019 -   http://dcf.mir.gdynia.pl/?page_id=367","Y","Y","DataQualityCheck_Description.doc (http://dcf.mir.gdynia.pl/?page_id=367)","NPZDRpl","RDB-FishFrame, Intercatch, JRC","Y","DataQualityCheck_Description.doc (http://dcf.mir.gdynia.pl/?page_id=367)","N","NA","Software for data accuracy checks has been launched, and is still under development with the new features.","The model and assumptions of the data accuracy checks software have been specified in 2019. The environment has been set up and the first type of a check has been implemented. The new features are still being  developed and the information about possible accuracy checks is currently being collected from the available literature.  Imputation is not performed at national level but at Stock Data Coordination level. Data are provided to end user \"as-is\" (as collected, validated and recorded in national database)."]
["POL","POL",2019,"Baltic Sea","ICES","Demersal at sea and on shore","Vessel list of 361  GNTS landing cod in 23 ranked ports","Y","DCF - Sampling Design 2017-2019 -   http://dcf.mir.gdynia.pl/?page_id=367","Y","Y","DataQualityCheck_Description.doc (http://dcf.mir.gdynia.pl/?page_id=367)","NPZDRpl","RDB-FishFrame, Intercatch, JRC","Y","DataQualityCheck_Description.doc (http://dcf.mir.gdynia.pl/?page_id=367)","N","NA","Software for data accuracy checks has been launched, and is still under development with the new features.","The model and assumptions of the data accuracy checks software have been specified in 2019. The environment has been set up and the first type of a check has been implemented. The new features are still being  developed and the information about possible accuracy checks is currently being collected from the available literature.  Imputation is not performed at national level but at Stock Data Coordination level. Data are provided to end user \"as-is\" (as collected, validated and recorded in national database)."]
["POL","POL",2019,"Baltic Sea","ICES","Pelagic at sea and on shore","Vessel list of 121  PTS landing sprat in 6 ranked ports","Y","DCF - Sampling Design 2017-2019 -   http://dcf.mir.gdynia.pl/?page_id=367","Y","Y","DataQualityCheck_Description.doc (http://dcf.mir.gdynia.pl/?page_id=367)","NPZDRpl","RDB-FishFrame, Intercatch, JRC","Y","DataQualityCheck_Description.doc (http://dcf.mir.gdynia.pl/?page_id=367)","N","NA","Software for data accuracy checks has been launched, and is still under development with the new features.","The model and assumptions of the data accuracy checks software have been specified in 2019. The environment has been set up and the first type of a check has been implemented. The new features are still being  developed and the information about possible accuracy checks is currently being collected from the available literature.  Imputation is not performed at national level but at Stock Data Coordination level. Data are provided to end user \"as-is\" (as collected, validated and recorded in national database)."]
["POL","POL",2019,"Baltic Sea","ICES","Pelagic at sea and on shore","Vessel list of 15  PTS landing herring in 1 ranked port","Y","DCF - Sampling Design 2017-2019 -   http://dcf.mir.gdynia.pl/?page_id=367","Y","Y","DataQualityCheck_Description.doc (http://dcf.mir.gdynia.pl/?page_id=367)","NPZDRpl","RDB-FishFrame, Intercatch, JRC","Y","DataQualityCheck_Description.doc (http://dcf.mir.gdynia.pl/?page_id=367)","N","NA","Software for data accuracy checks has been launched, and is still under development with the new features.","The model and assumptions of the data accuracy checks software have been specified in 2019. The environment has been set up and the first type of a check has been implemented. The new features are still being  developed and the information about possible accuracy checks is currently being collected from the available literature.  Imputation is not performed at national level but at Stock Data Coordination level. Data are provided to end user \"as-is\" (as collected, validated and recorded in national database)."]
["POL","POL",2019,"Baltic Sea","ICES","Pelagic at sea and on shore","Vessel list of 18  boats landing herring in 3 ranked port","Y","DCF - Sampling Design 2017-2019 -   http://dcf.mir.gdynia.pl/?page_id=367","Y","Y","DataQualityCheck_Description.doc (http://dcf.mir.gdynia.pl/?page_id=367)","NPZDRpl","RDB-FishFrame, Intercatch, JRC","Y","DataQualityCheck_Description.doc (http://dcf.mir.gdynia.pl/?page_id=367)","N","NA","Software for data accuracy checks has been launched, and is still under development with the new features.","The model and assumptions of the data accuracy checks software have been specified in 2019. The environment has been set up and the first type of a check has been implemented. The new features are still being  developed and the information about possible accuracy checks is currently being collected from the available literature.  Imputation is not performed at national level but at Stock Data Coordination level. Data are provided to end user \"as-is\" (as collected, validated and recorded in national database)."]
["POL","POL",2019,"Baltic Sea","ICES","Pelagic at sea and on shore","Vessel list of 100  PTS landing herring in 4 ranked port","Y","DCF - Sampling Design 2017-2019 -   http://dcf.mir.gdynia.pl/?page_id=367","Y","Y","DataQualityCheck_Description.doc (http://dcf.mir.gdynia.pl/?page_id=367)","NPZDRpl","RDB-FishFrame, Intercatch, JRC","Y","DataQualityCheck_Description.doc (http://dcf.mir.gdynia.pl/?page_id=367)","N","NA","Software for data accuracy checks has been launched, and is still under development with the new features.","The model and assumptions of the data accuracy checks software have been specified in 2019. The environment has been set up and the first type of a check has been implemented. The new features are still being  developed and the information about possible accuracy checks is currently being collected from the available literature.  Imputation is not performed at national level but at Stock Data Coordination level. Data are provided to end user \"as-is\" (as collected, validated and recorded in national database)."]
["POL","POL",2019,"Baltic Sea","ICES","Pelagic at sea and on shore","Vessel list of 90  boats landing herring in 14 ranked port","Y","DCF - Sampling Design 2017-2019 -   http://dcf.mir.gdynia.pl/?page_id=367","Y","Y","DataQualityCheck_Description.doc (http://dcf.mir.gdynia.pl/?page_id=367)","NPZDRpl","RDB-FishFrame, Intercatch, JRC","Y","DataQualityCheck_Description.doc (http://dcf.mir.gdynia.pl/?page_id=367)","N","NA","Software for data accuracy checks has been launched, and is still under development with the new features.","The model and assumptions of the data accuracy checks software have been specified in 2019. The environment has been set up and the first type of a check has been implemented. The new features are still being  developed and the information about possible accuracy checks is currently being collected from the available literature.  Imputation is not performed at national level but at Stock Data Coordination level. Data are provided to end user \"as-is\" (as collected, validated and recorded in national database)."]
["POL","POL",2019,"Baltic Sea","ICES","Freshwater and eel at sea and on shore","Vessel list of 94  boats landing freshwater species and eel in 8 ranked port","Y","DCF - Sampling Design 2017-2019 -   http://dcf.mir.gdynia.pl/?page_id=367","Y","Y","DataQualityCheck_Description.doc (http://dcf.mir.gdynia.pl/?page_id=367)","NPZDRpl","RDB-FishFrame, Intercatch, JRC","Y","DataQualityCheck_Description.doc (http://dcf.mir.gdynia.pl/?page_id=367)","N","NA","Software for data accuracy checks has been launched, and is still under development with the new features.","The model and assumptions of the data accuracy checks software have been specified in 2019. The environment has been set up and the first type of a check has been implemented. The new features are still being  developed and the information about possible accuracy checks is currently being collected from the available literature.  Imputation is not performed at national level but at Stock Data Coordination level. Data are provided to end user \"as-is\" (as collected, validated and recorded in national database)."]
["POL","POL",2019,"Baltic Sea","ICES","Freshwater and eel at sea and on shore","Vessel list of 239  boats landing freshwater species and eel in 20 ranked port","Y","DCF - Sampling Design 2017-2019 -   http://dcf.mir.gdynia.pl/?page_id=367","Y","Y","DataQualityCheck_Description.doc (http://dcf.mir.gdynia.pl/?page_id=367)","NPZDRpl","RDB-FishFrame, Intercatch, JRC","Y","DataQualityCheck_Description.doc (http://dcf.mir.gdynia.pl/?page_id=367)","N","NA","Software for data accuracy checks has been launched, and is still under development with the new features.","The model and assumptions of the data accuracy checks software have been specified in 2019. The environment has been set up and the first type of a check has been implemented. The new features are still being  developed and the information about possible accuracy checks is currently being collected from the available literature.  Imputation is not performed at national level but at Stock Data Coordination level. Data are provided to end user \"as-is\" (as collected, validated and recorded in national database)."]
["POL","POL",2019,"Baltic Sea","ICES","Salmonids at sea and on shore","Vessel list of 165  boats landing salmonids species  in 10 ranked port","Y","DCF - Sampling Design 2017-2019 -   http://dcf.mir.gdynia.pl/?page_id=367","Y","Y","DataQualityCheck_Description.doc (http://dcf.mir.gdynia.pl/?page_id=367)","NPZDRpl","RDB-FishFrame, Intercatch, JRC","Y","DataQualityCheck_Description.doc (http://dcf.mir.gdynia.pl/?page_id=367)","N","NA","Software for data accuracy checks has been launched, and is still under development with the new features.","The model and assumptions of the data accuracy checks software have been specified in 2019. The environment has been set up and the first type of a check has been implemented. The new features are still being  developed and the information about possible accuracy checks is currently being collected from the available literature.  Imputation is not performed at national level but at Stock Data Coordination level. Data are provided to end user \"as-is\" (as collected, validated and recorded in national database)."]
["POL","POL",2019,"Baltic Sea","ICES","Salmonids at sea and on shore","Vessel list of 51  longliners landing salmon  in 4 ranked port","Y","DCF - Sampling Design 2017-2019 -   http://dcf.mir.gdynia.pl/?page_id=367","Y","Y","DataQualityCheck_Description.doc (http://dcf.mir.gdynia.pl/?page_id=367)","NPZDRpl","RDB-FishFrame, Intercatch, JRC","Y","DataQualityCheck_Description.doc (http://dcf.mir.gdynia.pl/?page_id=367)","N","NA","Software for data accuracy checks has been launched, and is still under development with the new features.","The model and assumptions of the data accuracy checks software have been specified in 2019. The environment has been set up and the first type of a check has been implemented. The new features are still being  developed and the information about possible accuracy checks is currently being collected from the available literature.  Imputation is not performed at national level but at Stock Data Coordination level. Data are provided to end user \"as-is\" (as collected, validated and recorded in national database)."]
["POL","POL",2019,"Baltic Sea","ICES","At sea cod recreational fishery","Angling with LHP on boats","Y","Sampling Plan - cod recreational - POL DCF  (http://dcf.mir.gdynia.pl/?page_id=367)","Y","Y","DataQualityCheck_Description.doc (http://dcf.mir.gdynia.pl/?page_id=367)","NPZDRpl","WGRFS","N","NA","N","NA","Types of accuracy checks for recreational fishery have not been identified.","Imputation is not performed at national level. Data delivered to the ICS WGRFS.  See Text Box 1D for comments."]
["POL","POL",2019,"North Sea and Eastern Arctic","ICES","at sea","1 trawler targeting cod","Y","\"DCF - Sampling Design and Plan description - Demersal - NS&EA\" -  at:  http://dcf.mir.gdynia.pl/?page_id=367","N","Y","DataQualityCheck_Description.doc (http://dcf.mir.gdynia.pl/?page_id=367)","NPZDRpl","RDB-FishFrame, Intercatch, JRC","Y","DataQualityCheck_Description.doc (http://dcf.mir.gdynia.pl/?page_id=367)","N","NA","Software for data accuracy checks has been launched, and is still under development with the new features.","The model and assumptions of the data accuracy checks software have been specified in 2019. The environment has been set up and the first type of a check has been implemented. The new features are still being  developed and the information about possible accuracy checks is currently being collected from the available literature. Non-responses and refusal are not applicable (one vessel involved). Imputation is not performed at national level but at Stock Data Coordination level. Data are provided to end user \"as-is\" (as collected,validated and recorded in national database)."]
["POL","DEU - LTU -LVA - NLD - POL",2019,"other regions","CECAF","at sea","Pelagic trawlers fishing in CECAF","Y","\"Biological Data Collection of pelagic fisheries in CECAF waters \" at:  http://dcf.mir.gdynia.pl/?page_id=367","NA","Y","DataQualityCheck_Description.doc (http://dcf.mir.gdynia.pl/?page_id=367)","NA","CECAF WG (FAO Working Group on the Assessment of Small Pelagic Fish off Northwest Africa)","Y","DataQualityCheck_Description.doc (http://dcf.mir.gdynia.pl/?page_id=367)","NA","NA","Software for data accuracy checks has been launched, and is still under development with the new features.","The model and assumptions of the data accuracy checks software have been specified in 2019. The environment has been set up and the first type of a check has been implemented. The new features are still being  developed and the information about possible accuracy checks is currently being collected from the available literature. Data collection coordinated and executed by POL and data provision executed by NLD under joint sampling programme based on multilateral agreement (see Table 7C).  Data collected in CECAF areas are being converted into the national database format."]
["POL","DEU - LTU - NLD - POL",2019,"other regions","SPRFMO","at sea","Pelagic trawlers fishing in SPRFMO","Y","SPRFMO Observer Programme (COM 16-2018), SPRFMO Data Standards (COM 02-2018) at:  https://www.sprfmo.int/measures/superseded-cmms/","NA","Y","DataQualityCheck_Description.doc (http://dcf.mir.gdynia.pl/?page_id=367)","Temporary database in Excel","Internal SPRFMO database","Y","DataQualityCheck_Description.doc (http://dcf.mir.gdynia.pl/?page_id=367)","N","NA","Software for data accuracy checks has been launched, and is still under development with the new features.","The model and assumptions of the data accuracy checks software have been specified in 2019. The environment has been set up and the first type of a check has been implemented. The new features are still being  developed and the information about possible accuracy checks is currently being collected from the available literature. Non-responses and refusal are not applicable for the SPRMFO area. Imputation is not performed at national level. Data delivered to the SPRFMO Secretariat and Scientific Committee. National database during modification to enable storage of data from SPRFMO. Data collection and provision coordinated by POL under joint sampling programme based on multilateral agreement (see Table 7C)."]
["POL","POL",2019,"ODER EMU","ICES","Anguilla anguilla*sampling","NA","Y","Sampling design Diadromous (http://dcf.mir.gdynia.pl/?page_id=367)","NA","N","NA","Temporary database in Excel","WGEEL database","N","NA","N","NA",null,"Imputation is not performed at national level. Data delivered to the ICES WGEEL"]
["POL","POL",2019,"VISTULA EMU","ICES","Anguilla anguilla*sampling","NA","Y","Sampling design Diadromous (http://dcf.mir.gdynia.pl/?page_id=367)","NA","N","NA","Temporary database in Excel","WGEEL database","N","NA","N","NA",null,"Imputation is not performed at national level. Data delivered to the ICES WGEEL"]
["POL","POL",2019,"ODER EMU","ICES","Anguilla anguilla*trap","NA","Y","Sampling design Diadromous (http://dcf.mir.gdynia.pl/?page_id=367)","NA","N","NA","Temporary database in Excel","WGEEL database","N","NA","N","NA",null,"Imputation is not performed at national level. Data delivered to the ICES WGEEL"]
["POL","POL",2019,"VISTULA EMU","ICES","Anguilla anguilla*trap","NA","Y","Sampling design Diadromous (http://dcf.mir.gdynia.pl/?page_id=367)","NA","N","NA","Temporary database in Excel","WGEEL database","N","NA","N","NA",null,"Imputation is not performed at national level. Data delivered to the ICES WGEEL"]
["POL","POL",2019,"ODER EMU","ICES","Anguilla anguilla*electrofishing","NA","Y","Sampling design Diadromous (http://dcf.mir.gdynia.pl/?page_id=367)","NA","N","NA","Temporary database in Excel","WGEEL database","N","NA","N","NA",null,"The quality of electrofishing is currently being assessed by RCG Diadromous"]
["POL","POL",2019,"VISTULA EMU","ICES","Anguilla anguilla*electrofishing","NA","Y","Sampling design Diadromous (http://dcf.mir.gdynia.pl/?page_id=367)","NA","N","NA","Temporary database in Excel","WGEEL database","N","NA","N","NA",null,"The quality of electrofishing is currently being assessed by RCG Diadromous"]
["POL","POL",2019,"Baltic Sea","ICES","Salmo trutta*sampling","NA","Y","Sampling design Diadromous (http://dcf.mir.gdynia.pl/?page_id=367)","NA","N","NA","Temporary database in Excel","WGBAST database","N","NA","N","NA",null,"Imputation is not performed at national level. Data delivered to the ICS WGBAST"]
["POL","POL",2019,"Baltic Sea","ICES","Salmo trutta*electrofishing","NA","Y","Sampling design Diadromous (http://dcf.mir.gdynia.pl/?page_id=367)","NA","N","NA","Temporary database in Excel","WGBAST database","N","NA","N","NA",null,"The quality of electrofishing is currently being assessed by RCG Diadromous"]

{"sheet":"Table5B Quality assurance frame","index":17,"n_rows":8,"n_cols":33,"rows_kept":8,"cut":false,"hidden":false,"merged":[[4,31,5,31],[4,32,5,32],[6,30,7,30],[6,31,7,31],[3,0,4,6],[3,7,3,11],[3,12,3,21],[3,22,3,30],[4,7,4,8],[4,9,4,11],[4,12,4,14],[4,15,4,19],[4,23,4,24],[4,26,4,27],[4,28,4,30]]}
["Table 5B: Quality assurance framework for socio-economic data"]
[null,null,null,null,null,null,null,null,null,null,null,null,null,null,null,null,null,null,null,null,null,null,null,null,null,null,null,null,null,null,null,"WP  years","2017-2019"]
[null,null,null,null,null,null,null,null,null,null,null,null,null,null,null,null,null,null,null,null,null,null,null,null,null,null,null,null,null,null,null,"AR year",2019]
[null,null,null,null,null,null,null,"Institutional environment",null,null,null,null,"Statistical processes",null,null,null,null,null,null,null,null,null,"Statistical Outputs"]
[null,null,null,null,null,null,null,"P3 Impartiality and objectiveness",null,"P4 Confidentiality",null,null,"P5 Sound methodology",null,null,"P6 Appropriate statistical procedures",null,null,null,null,"P7 Non-excessive burden on respondents","P8 Cost effectiveness","P9 Relevance","P10 Accuracy and reliability",null,"P11 Timeliness and punctuality","P12 coherence and comparability",null,"P13 Accessibility and Clarity",null,null,"Comments","AR Comments"]
["MS","Sector Name","Sampling year/ period","Region","RFMO/RFO/IO/NSB","Type of data collection scheme","Data Sources","Statistically sound sources and methods","Error checking","Are procedures for confidential data handling in place and documented?","Are protocols to enforce confidentiality between DCF partners in place and documented?","Are protocols to enforce confidentiality with external users in place and documented?","Is sound methodology documented ?","Does it follow international standards, guidelines and best practices?","Are methodologies consistent at MS, regional and EU level?","Is there consistency between administrative and other statistical data?","Are there agreements for access and quality of administrative data between partners?","Are data collection, entry and coding checked?","Are editing and imputation methods used and checked?","Are revisions documented and available?","Is duplication of data collection avoided?","Do automatic techniques for data capture, data coding and validation exist?","Are end-users listed and updated?","Are sources, intermediate results and outputs regularly assessed and validated?","Are errors measured and documented? ","Are procedures in place to ensure timely execution?","Are procedures in place to monitor internal coherence?","Are statistics comparable over time?","Are methodological documents publicly available?","Are data stored in databases?","Where can documentation be found? "]
["POL","Fishing","2017-2019","All regions","agencies, institutions dealing with socioeconomic statistics","Census, estimation","questionairres, logbooks, first sale documents, Fleet register","Y","Y","Y","Y","Y","Y","Y","Y","Y","Y","Y","Y","Y","Y","Y","Y","Y","Y","Y","Y","Y","Y","Y","National law on public statistics and statistical surveys (http://isap.sejm.gov.pl/isap.nsf/download.xsp/WDU20160001426/O/D20161426.pdf);  National regulation on the formats of reporting and statistical questionairres and rules of reporting data (http://prawo.sejm.gov.pl/isap.nsf/DocDetails.xsp?id=WDU20170000837);   National formats and rules on reporting catch, landings, effort (http://www.cmr.gov.pl/index.html#header3-4)"]
["POL","Processing","2017-2019","All regions","agencies, institutions dealing with socioeconomic statistics","Census, estimation","questionairres","Y","Y","Y","NA","Y","Y","Y","Y","Y","NA","Y","Y","Y","Y","Y","Y","Y","Y","Y","Y","Y","Y","Y"]

{"sheet":"Table6A_Data_availability","index":18,"n_rows":15,"n_cols":10,"rows_kept":15,"cut":false,"hidden":false,"merged":[[9,9,14,9]]}
["Table 6A: Data availability"]
[null,null,null,null,null,null,null,null,"WP  years","2017-2019"]
[null,null,null,null,null,null,null,null,"AR year",2019]
["MS","Data set","Section","Variable group","Year(s) of WP implementation","Reference year ","Final data available after","Comments","Date when data was available","AR Comments"]
["POL","Fleet economic","3A","Revenue/costs","2017-2019","N-1","N+1, November 30",null,"February 15, 2020","N = 2019"]
["POL","Aquaculture economic",null,null,null,null,null,"Based on the data until 2015, according to  classification of aquaculture activities by Eurostat statistics, Poland has no marine aquaculture sector. Hence, no sampling is planned","NA","N = 2019"]
["POL","Fishing Activity Variable","3A","capacity","2017-2019","N","N+1, January 31",null,"February 15, 2020","N = 2019"]
["POL","Fishing Activity Variable","3A","landings","2017-2019","N","N+1, March 31",null,"March 31, 2020","N = 2019"]
["POL","Fish processing economic","3C","all","2017-2019","N-1","N+1, November 30",null,"February 15, 2020","N = 2019"]
["POL","Biological variables","1C","all","2017-2019","N","N+1, March 31",null,"March 31, 2020","By ommission not included in WP and spotted during the evaluation of AR 2017  (N=2019)"]
["POL","Recreational Fisheries","1D","all","2017-2019","N-1","N, May 31",null,"May 31, 2019"]
["POL","Anadromous and catadromous species","1E","all","2017-2019","N","N+1, March 15",null,"March 15, 2020"]
["POL","Incidental by-catch","1F","all","2017-2019","N","N+1, March 31",null,"March 31, 2020"]
["POL","Research surveys at sea","1H","all","2017-2019","N","N+1, March 31",null,"March 31, 2020"]
["POL","Pilot Study 1","1D","all","2017-2019","N","N+2, April 30",null,"NA"]

{"sheet":"Table7A_Planned Regional_coord","index":19,"n_rows":39,"n_cols":8,"rows_kept":39,"cut":false,"hidden":false,"merged":[]}
["Table 7A: Planned regional and international coordination"]
[null,null,null,null,null,null,"WP  years","2017-2019"]
[null,null,null,null,null,null,"AR year",2019]
["MS","Acronym","Name of meeting","RFMO/RFO/IO","Planned MS participation","Comments","Number of participants","AR Comments"]
["POL","RCM Baltic","Regional Coordination Meeting for the Baltic Sea",null,"X",null,2]
["POL","RCM NS&EA","Regional Coordination Meeting for the North Sea and Eastern Arctic",null,"X",null,1]
["POL","RCM LDF","Regional Coordination Meeting for the Long Distance Fisheries",null,"X",null,1]
["POL","EGFDC","Expert Group on Fisheries Data Collection",null,"X",null,1,"LM and NC meeting"]
["POL","PGECON","Planning Group on Economic Issues ",null,"X",null,2]
["POL","PGDATA","Planning Group on Data Needs for Assessment and Advice","ICES","X",null,null,"Not attended due to the experienced staff shortage at the time of the meeting."]
["POL","WGBIOP","Working Group on Biological Parameters ","ICES","X",null,2]
["POL","WGEEL","Working Group on Eel","ICES","X",null,2]
["POL","WGBAST","Working Group on Baltic Salmon and Trout","ICES","X",null,2]
["POL","WGRFS","Working Group on Recreational Fisheries Surveys","ICES","X",null,2]
["POL","WGCATCH","Working Group on Commercial Catches","ICES","X",null,3]
["POL","WGBIFS","Working Group on Baltic International Fish Survey ","ICES","X",null,2]
["POL","WGBFAS","Baltic Fisheries Assessment Working Group","ICES","X",null,3]
["POL","WGCHAIRS","Annual Meeting of Advisory Working Groups Chairs","ICES","X",null,null,"N.A. (no WG chair from POL in 2019)"]
["POL","WGBYC","Working Group on Bycatch of Protected Species","ICES","X",null,1]
["POL","WGBIOP","Working Group on Biological Parameters ","ICES","X",null,null,"Double entry in WP (already included in row 11)"]
["POL","WGSFD","Working Group on Spatial Fisheries Data ","ICES","X",null,1]
["POL","DIG","Data and Information Group","ICES","X",null,1]
["POL","WKRDB","Workshop on Regional Data Base","ICES","X",null,null,"See rows 33 and 38-40 below for details"]
["POL","WKBaltSalmon","Baltic salmon Benchmark WKBaltSalmon","ICES","X",null,null,"No meeting in 2019"]
["POL","WGZE","ICES Working Group on Zooplankton Ecology","ICES",null,null,1,"Not listed in WP"]
["POL","WGOH","ICES Working Group on Oceanic Hydrography","ICES",null,null,1,"Not listed in WP"]
["POL","SCRDB","Steering Committee for the Regional Database & Estimation System","ICES",null,null,1,"Not listed in WP"]
["POL","WGML","Working Group on Marine Litter","ICES",null,null,1,"Not listed in WP"]
["POL","WKBALTCOD2","Benchmark workshop for Baltic Cod","ICES",null,null,1,"Not listed in WP"]
["POL","WKBECOSS","ICES Workshop on Better Coordinated Sampling Stomachs ","ICES",null,null,2,"Not listed in WP"]
["POL","WKVALPEL","Workshop on age validation studies of small pelagic species ","ICES",null,null,1,"Not listed in WP"]
["POL","RDBES Core Group","Core Group for the Regional Database & Estimation System",null,null,null,2,"Not listed in WP. One physical meeting and 11 online (virtual) meetings in 2019"]
["POL","WKRDB-EST","Workshop on Estimation with the RDBES data model ","ICES",null,null,2,"Not listed in WP"]
["POL","WKRDB-POP","The Workshop on Populating the RDBES data model ","ICES",null,null,2,"Not listed in WP"]
["POL","RCG ISSG","RCGs  Intersessional Group on input to the revision of the EU-MAP",null,null,null,1,"Not listed in WP"]
["POL","RCG ISSG","RCGs  Intersessional Group on Baltic Small Pelagic Workshop",null,null,null,1,"Not listed in WP"]
["POL","RCG ISSG","RCG ISSG on Data Quality",null,null,null,1,"Not listed in WP. A number of online meetings via Skype"]
["POL","RCG ISSG","RCG ISSG on Metier issues ",null,null,null,1,"Not listed in WP. A number of online meetings via Skype"]
["POL","WKAREA3","Workshop on eel age reading calibration","ICES",null,null,2,"Not listed in WP"]

{"sheet":"Table7B_Follow up of Recommenda","index":20,"n_rows":31,"n_cols":11,"rows_kept":31,"cut":false,"hidden":false,"merged":[]}
["Table 7B: Follow-up of recommendations and agreements"]
[null,null,null,null,null,null,null,null,null,"WP  years","2017-2019"]
[null,null,null,null,null,null,null,null,null,"AR year",2019]
["MS","Region","RFMO/RFO/IO","Source","Section ","Topic","Recommendation number","Recommendation/ Agreement","Follow-up action","Comments","MS action taken "]
["POL","Baltic Sea","ICES","LM 2012","VII.C","Metier related variables","RCM Baltic 2012 ","MS should upload all landing data into the Regional Data Base allow-ing the RCM to analyse the possible needs for bilateral agreements.\nThe RCMs should each year perform an analysis on landings in for-eign countries and conclude where bilateral agreements need to be made. MS should set up agreements, fixing the details of sampling, compilation and submission of data in each case when it is indicated by the RCM that a bilateral agreement is needed. To include the agreed analysis in FishFrame would be very convenient and time saving.\nMS should set up agreements, fixing the details of sampling, compi-lation and submission of data in each case it is concluded by the RCM that a bilateral agreement is needed.\n","Poland follows the recommendation.\nBilateral agreements were set in 2011 with Sweden and in 2013 with Denmark.\n",null,"Fulfilled. No action needed"]
["POL","Baltic Sea","ICES","LM 2012","IV","Metier related variables","RCM Baltic 2012 ","To ensure possibilities for adequate sampling of biological and métier related data including landings in foreign MS, national institutes need to have online access to national logbook data and national VMS data.","Fulfilled",null,"No action needed"]
["POL","Other regions","CECAF","RCM LDF 2011","VII.C","Sampling programme","RCM LDF 2011","To implement a joint observer program in the fishery of small pelagic in the CECAF area during the years 2012 and 2013.","Fulfilled",null,"Obsolete - No action needed"]
["POL","Other regions","SPRFMO","RCM LDF 2013","VII.C","Sampling programme","RCM LDF 2013","To renew a joint observer program in the pelagic trawl fishery for small pelagic species in the CECAF area for another two years period.","Fulfilled – Amendment extending the joint sampling program for 2014-2015 was signed",null,"Ongoing. Agreement extended for 2019-2020   (http://dcf.mir.gdynia.pl/?page_id=365)"]
["POL","Other regions","SPRFMO","RCM LDF 2013","VII.C","Sampling programme","RCM LDF 2013","To implementation of the multilateral agreement on a joint sampling program of fisheries activity in the SPRMFO area","Fulfilled – Agreement signed in 2015",null,"Ongoing. Agreement extended for 2019-2020   (http://dcf.mir.gdynia.pl/?page_id=365)"]
["POL","All regions (all RCMs)",null,"LM 2013","V ","Quality assurance","LM 12","MS to document Quality Control and Quality Approach procedures in summary for review at the next RCM. ","Fulfilled",null,"Obsolete - No action needed"]
["POL","All regions",null,"LM 2014","V ","Implications of the landing obligation ‑ Scientific data collection and at‑sea sampling","LM 2","RCM NS&EA recommends that MS maintain scientific schemes for the collection of scientific data for stock assessment and advice. Additionally that the role of scientific observer is not conflated with any monitoring role. Appropriate modifications to at‑sea sampling protocols and recording should be devised for sampling the retained discard fraction.","Partly fulfilled","At‑sea sampling schemes and protocols in place. Recording, storage and estimation process in national database to be solved once RDB is modified ","Fulfilled. No action needed"]
["POL","All regions",null,"LM 2014","V ","Implications of the landing obligation ‑ Scientific data storage, IT systems and estimation","LM 3","RCM NS&EA recommends that scientific institutions and ICES ensure that data recording systems, IT systems and estimation routines are able to appropriately deal with the retained discard fraction. Also, authorities should adjust logbooks and IT systems to Accommodate the accurate recordings of all catch components, including the part that can be released under the de minimis exemptions\n","Ongoing","Modification of the RDB (ICES) were initated  in 2015. The national DB can be modified accordingly once RDB is set-up ","Fulfilled. No action needed"]
["POL","All regions",null,"LM 2014","V ","Quality assurance","LM 10","MS reload all their data in reference to the restricted lists.\n","Fulfilled","Data for 2011-2014 reloaded in 2015.                                                      Data for 2009-2010 reloaded in 2016.","Obsolete - No action needed"]
["POL","Baltic","ICES","LM 2014","V ","Quality assurance ","LM A1","All MS to ensure that all historical data (including data in salmon and eel) for the period 2009‑2013 are uploaded to RDB FishFrame\n","Agreement fulfilled",null,"Obsolete - No action needed"]
["POL","North Sea and Eastern Arctic","ICES","LM 2014","V ","Quality control","LM A2","All MS attending the RCM NS&EA will document their data checks and quality control procedures in reference to the data capture and data processing stages of their national sampling programmes ","Agreement fulfilled",null,"Obsolete - No action needed"]
["POL","North Sea and Eastern Arctic","ICES","LM 2015","V ","Quality assurance ","LM 11","All MS to upload their data in time for the RCM.","Fulfilled",null,"Fulfilled and Ongoing"]
["POL","Other regions","CECAF, SPRFMO","LM 2016 ","VII.C","Sampling programme","RCM LDF 2016 - 4","The current multi-annual and multi-lateral agreements for biological sampling in CECAF (partners: GER, LAT, LIT, NED, POL) and SPFRMO area (partners: GER, LIT, NED, POL) terminate as of 31st December 2016. Given that the current arrangements with a subcontractor can’t continue, a new set-up for the multi-lateral agreements is required. Poland and The Netherlands agreed to investigate possibilities to arrange a joint sampling plan. RCM LDF recommends Poland and The Netherlands to liaise and draft an agreement for the respective areas and to propose this draft to the other MS involved","Ongoing","Extention of sampling agreements for both regions (CECAF and SPRFMO) expecte by the end of 2016 or early 2017.","Ongoing. Both Agreements extended for 2019-2020   (http://dcf.mir.gdynia.pl/?page_id=365)"]
["POL","North Sea and Eastern Arctic","ICES","LM 2018",null,"Suggestions for intersessional subgroups","RCG NS&EA 2018-A1 and RCG Baltic 2018-A1 ","RCG NSEA 2018 agrees to establish intersessional subgroups. Tasks for intersessional groups are defined in annex 2. Participants in each subgroup are suggested in RCG NS&EA 2018 report.","NA",null,"Ongoing - POL follows this agreement"]
["POL","North Sea and Eastern Arctic","ICES","LM 2018",null,"Outcome of FishPi2 ","RCG NS&EA 2018-A2 and RCG Baltic 2018-A2 ","RCG NSEA 2018 agree the outcome of FishPi2 WP1-WP8 will contribute to strengthen the regional coordination and will have impact on the development of RCG work. Outcome has to be considered in future work within the RCG.","NA",null,"Ongoing"]
["POL","North Sea and Eastern Arctic","ICES","LM 2018",null,"Planning of work for EU-Map revision  ","RCG NS&EA 2018-A3","Establish a pan-regional subgroup ‘RCG – EUMAP 2020 & beyond: objective is to be proactive for the new EUMAP from 2020/2021 onwards. Suggestion is to have one person by MS – to be started by correspondence – physical meeting ex in January. Request to be formulated to the EC to establish and sent timeline to NC & RCG how EC sees the progressing of the EUMAP & EMFF for the years 2018-2019-2020","NA",null,"Fulfilled"]
["POL","North Sea and Eastern Arctic","ICES","LM 2018",null,"RDB upload of 2018 data","RCG NS&EA 2018-A4 and RCG Baltic 2018-A8 ","RCG NSEA 2018 agreed to prepare all steps of data to be able to upload the data collected in 2018 in March 2019, to make intersessional work and RCG meeting in June possible. \nTo ensure to have data for the data subgroup to work and run the overviews, all data from all MS need to be uploaded 1 month before the RCG","NA",null,"Fulfilled"]
["POL","Baltic Sea","ICES","LM 2019",null,"RDB Data Policy  ","RCG Baltic 2018-A76","The RCG Baltic agrees to adopt the new RDB ES data policy as circulated to all NCs on the 31th August 2018","NA",null,"Fulfilled"]
["POL","Baltic Sea","ICES","LM 2019",null,"RDB Data Policy  ","RCG Baltic 2018-A7 ","The NCs at the RCG Baltic 2018 agreed to grant ICES expert groups and related benchmark groups providing advice to fisheries management access to detailed data for the sub-division 22-32 (Baltic Sea) stored in the RDBES but only for the use by these groups","NA",null,"Fulfilled"]
["POL","North Sea and Eastern Arctic","ICES","LM 2017","1 G,H","Review of survey tables","RCG NS&EA 2017 - 2\n","The RCG NS&EA  recommends that member states review the information detailed in the AWP check table table  xx of this report, in order to identify any errors or omissions with any found to be reported back to the RCG NS&EA by 1.11-2017.\n \na. All MS all regions to review acronyms and descriptions in columns A to C (member state, acronym and region).\nb. MS to comment on proposed Survey IDs and amend where there are gaps and to choose and enter their preferred Survey ID in column AD. Altering columns A to C will affect the proposed IDs. MS need to be mindful that shared surveys will already be tied to some common acronym\nc. The RCG NS&EA  recommends that ICES check the stock table in this rapport table xx for socks used in assessment \nd. MS to check stock table for MS participation in column G” Member state(s) responsible for survey(s)” \n",null,null,"Fulfilled. No action needed"]
["POL","NS&EA","all","LM 2018",null,"Review and amendment of proposed control regulation to ensure DCF data requirements are met","RCG NSEA 2018-R3 and RCG Baltic 2018-R5","The RCG NSEA 2018 recommends that the draft Control regulation is reviewed and amended where required to allow retention of personal data for more than 5 year for scientific purposes, to fulfil data requirements under the DCF.","MS to coordinate review and comments on articles 110, 111, 112, 113 and amend where appropriate, to ensure full data functionality to implement DCF.\nMS to make coordinated submission during legislative negotiations based on review.",null,"POL is willing to cooperate with othe MS on this issue"]
["POL","NS&EA","ICES","LM 2018",null,"Endorsement of outcome from metier workshop 2018","RCG NSEA 2018-R4","The RCG NSEA 2018 recommends to have a publicly available repository for common reference lists, scripts, documentation and métier descriptions.","It would be useful to have a publicly available repository for common reference lists, scripts, documentation and métier descriptions, and it was suggested that a GitHub under the ICES RCG’s would be preferable due to the flexibility that it offers. There is a need for harmonisation and standardisation of the procedures and rules used to define the métiers (common approaches and reference tables following DCF standards) in order to improve the interoperability and compatibility across nations.",null,"POL is actively involved in the RCGs and intersession groups working on this matter."]
["POL","NS&EA","ICES","LM 2018",null,"Draft process and guidelines for external requests","RCG NSEA 2018-R6","RCGNSEA 2018 recommends to design a proper set of guidelines for all WKs and WGs to follow for writing recommendations to others.","Guidelines are needed on how the request should be framed and substantiated.\nWith regards to the procedure, when an end-user has a request or recommendation to RCG the following route should be followed.\nTimely communication with RCG chairs and circulation ahead of the meeting\nMinor requests involving simple decisions should be put to discussion and answered in the next RCG meeting\nMajor requests involving more complex decisions will likely require the planning of intersessional work (e.g., by an RCG subgroup) at the next RCG meeting with feedback for decision in yr+1\nWith regards to the requests themselves:\nRecommendations should have a clear title, a clear background and justification and, particularly a clear set of goals and/or actions that the requester wishes the RCG to take.\nWhere applicable it will be beneficial for discussion that the request is accompanied by a stand alone document, documenting its legal framework, background analyses,\ndiscussion of possible end-uses affected and benefits of implementation.",null,"This is a task for the RCG not a single MS. POL is open for cooperation on that issue."]
["POL","Baltic","ICES","LM 2018",null,"Availability of last-haul data","RCG Baltic 2018-R1","The RCG Baltic 2018 recommended that the last-haul data from the national control authorities (from the beginning until the end of 2018) should be provided to the National DCF Correspondents.","COM should forward this request to national control authorities which should make these data available to the National Correspondents.\nAlternatively, National Correspondents could approach their national fisheries control authority directly and convey the request for last-haul data of RCG Baltic.",null,"POL has access to the last-haul data."]
["POL","Baltic","ICES","LM 2018",null,"Development of the Regional Database and Estimation System (RDBES)","RCG Baltic 2018-R3","The RCG Baltic recommends the development and use of the RDBES to store and analyse sampling data.","SCRDB should steer the development and use of the RDBES and ensure MS are giving feedback about the development.",null,"POL actively participate in the SCRDB."]
["POL","all","all","LM 2018",null,"PGECON Governance and Rules of Procedure","PGECON 2018-R2-4","PGECON recommends that MS should indicate their position regarding the future of PGECON legal status (continuation of PGECON as subgroup of the Commission Expert Working Group on data collection or its evolution into an RCG). MS should discuss these options within their National coordination meetings or in another suitable scenario. Feedback from each MS should be addressed to PGECON chairs before the end of 2018 while the future PGECON Status will be confirmed at the next NC meeting.","Address feedback to PGECON chairs, preparation of PGECON RoP",null,"Feedback on the PGECON governance presented to PGECON and the Liaison Meeting."]
["POL","all","all","LM 2018",null,"Follow up on Workshop on Small Scale Fisheries","PGECON 2018-R8","[R6] PGECON recommends that when balance sheets are available, the total value of assets and value of long/short debts have to be split by vessel, according to the capital value of each vessel estimated trough the PIM which is used to “weight” the share on the total value.\n[R7] In case balance sheets are not available, estimation methodology of value of capital and value of debts have to be in line and derived from the PIM. In particular, the value of long/short term debts can be estimated by multiplying the financial position ratio by the value of assets.\n[R8] For the small scale fleet vessels less than 10 meters, it could be assumed that 1 Day at Sea is equivalent to 1 Fishing Day as far as no other data contradicts this hypothesis. Nevertheless, this assumption has to be assessed regionally by fishery, as significant differences can occur between them.\n[R9] People working only onshore and paid from vessels should be included if their activity has a direct link with the fishing operations. Employment on shore should include those activities, which directly related to small scale fisheries and mostly carried out by fishermen and their family members, but not entirely related to other economic sectors and specialties.","MS to apply recommendation in data collection and include in WP with next planned resubmission.",null,"POL has applied these recommendations. However, for the sake of consistency with previous years as well as difficulties (missing vessel market values) in applying PIM method value of capital has been estimated using scraping premium rates. Value of long/short debts have been reported by fishing vessel’s owner through questionnaires and relate to a single unit. Information on people working only onshore has not been collected, it is planned that the questionnaire will be supplemented for it in its 2021 edition."]

{"sheet":"Table7C_Bi- and multilateral ","index":21,"n_rows":25,"n_cols":10,"rows_kept":25,"cut":false,"hidden":false,"merged":[[20,0,24,0],[20,2,24,2],[20,3,24,3],[20,4,24,4],[20,5,24,5],[16,0,19,0],[16,2,19,2],[16,3,19,3],[16,4,19,4],[16,5,19,5],[11,6,15,6],[11,7,15,7],[11,8,15,8],[11,9,15,9],[20,6,24,6],[16,6,19,6],[20,7,24,7],[20,8,24,8],[20,9,24,9],[16,7,19,7],[16,8,19,8],[16,9,19,9],[11,0,15,0],[11,2,15,2],[11,3,15,3],[11,4,15,4],[11,5,15,5],[7,9,8,9],[9,0,10,0],[9,2,10,2],[9,3,10,3],[9,4,10,4],[9,5,10,5],[9,6,10,6],[9,7,10,7],[9,8,10,8],[9,9,10,9],[5,7,6,7],[5,8,6,8],[7,0,8,0],[7,2,8,2],[7,3,8,3],[7,4,8,4],[7,5,8,5],[7,6,8,6],[7,7,8,7],[5,0,6,0],[5,2,6,2],[5,3,6,3],[5,4,6,4],[5,5,6,5],[5,6,6,6],[7,8,8,8]]}
["Table7C: Bi- and multilateral agreements"]
[]
[null,null,null,null,null,null,null,null,"WP  years","2017-2019"]
[null,null,null,null,null,null,null,null,"AR year",2019]
["MSs","Contact persons","Content","Coordination","Description of sampling / sampling protocol / sampling intensity","Data transmission  ","Access to vessels ","Validity ","Comments","AR Comments"]
["POL - DEU","POL - Tomasz Nermer (nermer@mir.gdynia.pl); ","Biological sampling of yellow and silver eels from commercial fisheries in the Oder River Basin District will be covered by POL.","NA","Target sample size: 100 yellow and 100 silver eel from commercial fisheries in the Oder River Basin District (sample size might be adjusted to a lower level depending on the availability of eel from POL commercial fisheries).","POL is responsible for submitting data to relevant ICES Expert Groups and to the EC. POL will provide data to DEU when requested.","NA","from 2013 onwards","http://dcf.mir.gdynia.pl/?page_id=365","Ongoing "]
[null," DEU - Jan-Dag Pohlmann (jan.pohlmann@thuenen.de)",null,null,null,null,null,null,null,"(renewed on 23.07.2018)"]
["POL - DNK","POL - Irek Wojcik (iwojcik@mir.gdynia.pl)","Vessels fishing under the Polish register, which land for first sale into Denmark, will be sampled as part of the Polish National Programme under the requirements of the EC Data Collection Framework (199/2008). ","NA","Length and age of discards and landings","DNK responsible for submitting data from DNK vessels, and POL from POL vessels, to the respective end-users.","NA","from 2013 onwards","http://dcf.mir.gdynia.pl/?page_id=365","Ongoing"]
[null,"DNK - Marie Storr-Paulsen (msp@aqua.dtu.dk)"]
["POL - SWE","SWE - Anna Haslow  (anna.haslow@havochvatten.se)","Vessels fishing under the Polish register, which land for first sale into Sweden, will be sampled as part of the Polish Annual Workplan 2017. ","NA","Length and age of discards and landings, in  accordance with Polish Annual Workplan.","SWE responsible for submitting data from SWE vessels, and POL from POL vessels, to the respective end-users.","NA","until 31 Dec 2017","(http://dcf.mir.gdynia.pl/?page_id=365)","Terminated on 31 Dec 2017. Arrangements for a new agreement were under way in 2018 but it was not finalized. However, the previous arrangements were continued by the MS concerned."]
[null," POL - Irek Wojcik (iwojcik@mir.gdynia.pl)"]
["DEU - LTU  - LVA - NLD - POL","LTU - Vilda Griuniene (Vilda.Griuniene@zum.lt)","DEU, LVA, LTU, NLD, POL to cooperate in the biological data collection on pelagic fisheries in CECAF waters in  2014-2015 and 2016-2017 (new extension).\n","NL to coordinate the execution of this multi-lateral agreement. NL will contract independent contractor 'Corten Marine Research' (CMR) as agent between NL and IMROP, the Mauritanian Fisheries Research Institute. CMR will hire Mauritanian observers from IMROP to carry out the actual sampling. CMR and IMROP will have an agreement in which the mutual obligations will be formalized; among others that only the additional costs for this specific task will be priced.","Biological sampling carried on board fishing vessels in CECAF area by Mauritanian observers. Observers introduced by CMR and follow the sampling protocol as described in \"Biological Data Collection of pelagic fisheries in CECAF waters in compliance with the DCF\", version 31-05-2011.","CMR is responsible for data collection, quality control and delivery to the CECAF pelagic working group of all data collected under this agreement. CMR also reports all data to CVO and CVO will distribute the data to the partners.","Each Partner ensures access to its fleet for Mauritanian observers under this agreement. Denied access to vessels does not exempt a Partner from legal or financial obligations.","This agreement commenced on January 1, 2012. It is subject to dissolve in case the pelagic fishery in the CECAF area by EU vessels closes. The agreement was extended to a new end date: 31 December 2016. It is planned to sign by the end of 2016 a new Amendment, extending the Agreement for 2017.","(http://dcf.mir.gdynia.pl/?page_id=365)","Obsolete (terminated on 31 Dec 2017)"]
[null,"DEU - Christoph Stransky (christoph.stransky@thuenen.de)"]
[null,"LVA - Georgs Kornilovs (georgs.kornilovs@bior.gov.lv)"]
[null,"NLD - Sieto Verver (sieto.verver@wur.nl)"]
[null,"POL - Irek Wojcik (iwojcik@mir.gdynia.pl)"]
["DEU - LTU  - NLD - POL","LTU - Vilda Griuniene (Vilda.Griuniene@zum.lt)","DEU, LTU, NLD and POL to cooperate in the biological data collection on pelagic fisheries in SPRMFO waters.\n","POL is planned to be responsible for placement observers onboard, in coordination with NLD in respect of the expected vessels' movements.","Biological sampling will be carried out on board EU fishing vessels in SPRFMO area by observers arranged by POL in coordination with NLD in respect of the expected vessels' movements. These observers will follow the sampling protocol as described in “Observer Manual for biological data collection in SPRFMO waters”, based on data collection requirements set out in “SPRFMO. CMM 4.02. Conservation and Management Measure on Standards for the Collection, Reporting, Verification and Exchange of Data (SPRFMO Data Standards)”.","POL is planned to be responsible for data collection, quality control and delivery to the SPRFMO scientific working group of all data collected under this agreement. POL will distribute the data to Partners upon request. ","Each Partner ensures access to its fleet for observers under this agreement. Denied access to vessels does not exempt a Partner from legal or financial obligations.","2017 - 2018","Agreement planned to be finalized and sign by the end of 2016 or early 2017.","Ongoing. Agreement extended for 2019-2020   (http://dcf.mir.gdynia.pl/?page_id=365)"]
[null,"DEU - Christoph Stransky (christoph.stransky@thuenen.de)"]
[null,"NLD - Sieto Verver (sieto.verver@wur.nl)"]
[null,"POL - Irek Wojcik (iwojcik@mir.gdynia.pl)"]
["DEU - LTU  - LVA - NLD - POL","DEU - Christoph Stransky (christoph.stransky@thuenen.de)","DEU, LVA, LTU, NLD, POL to cooperate in the biological data collection on pelagic fisheries in CECAF waters in  2018-2020.\n","POL to coordinate the execution of data collection under this multi-lateral agreement. ","Biological sampling carried on board EU fishing vessels in CECAF area by observers arranged by POL. Observers follow the sampling protocol as described in \"Biological Data Collection of pelagic fisheries in CECAF waters - Manual for scientific observers on board EU pelagic trawlers in CECAF area\", version 8-03-2018.","Poland is responsible for data collection, data entry and storage of the sampling data. The Netherlands is responsible for data validation, data processing and data delivery to relevant enduser. Poland and the Netherlands will collaborate to achieve timely delivery while ensuring to meet the required quality standards.","Each Partner ensures access to its fleet for observers under this agreement. Denied access to vessels does not exempt a Partner from legal or financial obligations.","2018 - 2020","Agreement, signed in December 2017      (http://dcf.mir.gdynia.pl/?page_id=365)","New"]
[null,"LVA - Aivars Berzins (Aivars.Berzins@bior.lv)"]
[null,"LTU - Indre Sidlauskiene"]
[null,"NLD - Sieto Verver (sieto.verver@wur.nl)"]
[null,"POL - Irek Wojcik (iwojcik@mir.gdynia.pl)"]